Workbook

Sheet K on Soybean SQRT (hidden)
B1: RELYLD | C1: KRATE | D1: YEAR | E1: SITE | F1: YEAROB | G1: KSOIL | H1: DCLAY
A2: 1 | B2: 90.04914005 | C2: 0 | D2: 2004 | E2: 1 | F2: 1 | G2: 101 | H2: 0 | Q2: Rice Price | U2: 10 | V2: $/cwt | Y2: Conventional
A3: 2 | B3: 91.76904177 | C3: 40 | D3: 2004 | E3: 1 | F3: 14 | G3: 101 | H3: 0 | J3: Dependent Variable: RELYLD | Y3: Clearfield
A4: 3 | B4: 89.31203931 | C4: 80 | D4: 2004 | E4: 1 | F4: 31 | G4: 101 | H4: 0 | J4: Method: Panel EGLS (Period random effects) | Q4: Cost of K (0-0-60) | U4: 450 | V4: $/ton
A5: 4 | B5: 100 | C5: 120 | D5: 2004 | E5: 1 | F5: 41 | G5: 101 | H5: 0 | J5: Date: 03/12/19 Time: 15:57 | Y5: Clay
A6: 5 | B6: 96.92874693 | C6: 160 | D6: 2004 | E6: 1 | F6: 52 | G6: 101 | H6: 0 | J6: Sample: 2001 2018 IF KRATE<>135 | Q6: How much K do you currently apply per acre? | U6: 25 | V6: lbs/acre | Y6: Loam
A7: 6 | B7: 77.50865052 | C7: 0 | D7: 2004 | E7: 3 | F7: 2 | G7: 85 | H7: 0 | J7: Periods included: 17
A8: 7 | B8: 82.52595156 | C8: 30 | D8: 2004 | E8: 3 | F8: 12 | G8: 86 | H8: 0 | J8: Cross-sections included: 79 | Q8: What yield do you expect at that application rate? | U8: 180 | V8: bu/acre | Y8: Yes
A9: 8 | B9: 100 | C9: 60 | D9: 2004 | E9: 3 | F9: 23 | G9: 85 | H9: 0 | J9: Total panel (unbalanced) observations: 440 | Y9: No
A10: 9 | B10: 99.30795848 | C10: 90 | D10: 2004 | E10: 3 | F10: 39 | G10: 89 | H10: 0 | J10: Wallace and Hussain estimator of component variances | Q10: Do you use conventional or hybrid seed? | U10: Conventional
A11: 10 | B11: 96.71280277 | C11: 120 | D11: 2004 | E11: 3 | F11: 42 | G11: 95 | H11: 0
A12: 11 | B12: 69.81707317 | C12: 0 | D12: 2004 | E12: 4 | F12: 3 | G12: 73 | H12: 0 | J12: Variable | K12: Coefficient | L12: Std. Error | M12: t-Statistic | N12: Prob. | Q12: What is your soil test K? | U12: 110
A13: 12 | B13: 83.53658537 | C13: 30 | D13: 2004 | E13: 4 | F13: 13 | G13: 80 | H13: 0
A14: 13 | B14: 87.04268293 | C14: 60 | D14: 2004 | E14: 4 | F14: 24 | G14: 78 | H14: 0 | J14: C | K14: 85.53190393 | L14: 1.088768197 | M14: 78.55841503 | N14: 1.523340846e-257 | Q14: Does the field have mostly clayey or loamy soil texture? | U14: Loam
A15: 14 | B15: 91.61585366 | C15: 90 | D15: 2004 | E15: 4 | F15: 40 | G15: 79 | H15: 0 | J15: DRREC | K15: 1.821873436 | L15: 0.6169528489 | M15: 2.953018921 | N15: 0.00331893321
A16: 15 | B16: 100 | C16: 120 | D16: 2004 | E16: 4 | F16: 43 | G16: 85 | H16: 0 | J16: KRATE | K16: 0.1546276126 | L16: 0.01680227412 | M16: 9.202778833 | N16: 1.519289268e-18 | Q16: Do you operate South of I-40? | U16: No
A17: 16 | B17: 74.81203008 | C17: 0 | D17: 2005 | E17: 5 | F17: 1 | G17: 71 | H17: 0 | J17: KRATE^2 | K17: -0.000421958113 | L17: 8.710848e-05 | M17: -4.84405322 | N17: 1.77718926e-06
A18: 17 | B18: 84.02255639 | C18: 30 | D18: 2005 | E18: 5 | F18: 12 | G18: 70 | H18: 0 | J18: DCLFIELD | K18: 2.254139283 | L18: 0.9265560337 | M18: 2.432814855 | N18: 0.01538783875 | Q18: Predicted RELYLD based on above questions: | U18: =+K14+IF($U$16="Yes",K15,0)+$U$6*($U$12*K21+K16+IF($U$10="Clearfield",K23,0))+$U$6^2*(K17+IF($U$14="Clay",K22))+IF($U$14="Clay",K20,0)+IF($U$10="Clearfield",K18,0)+$U$12*K19 -> 93.32878185
A19: 18 | B19: 89.47368421 | C19: 60 | D19: 2005 | E19: 5 | F19: 23 | G19: 81 | H19: 0 | J19: KSOIL | K19: 0.04813541892 | L19: 0.009622753276 | M19: 5.00225014 | N19: 8.265255539e-07
A20: 19 | B20: 94.54887218 | C20: 90 | D20: 2005 | E20: 5 | F20: 39 | G20: 92 | H20: 0 | J20: DCLAY | K20: -3.267803257 | L20: 1.636446995 | M20: -1.996889155 | N20: 0.04646560705 | Q20: Yield/RELYLD | U20: =+U8/U18 -> 1.928665482
A21: 20 | B21: 100 | C21: 120 | D21: 2005 | E21: 5 | F21: 41 | G21: 91 | H21: 0 | J21: KSOIL*KRATE | K21: -0.0003999944219 | L21: 8.797209869e-05 | M21: -4.546832779 | N21: 7.086112312e-06
A22: 21 | B22: 70.80536913 | C22: 0 | D22: 2005 | E22: 6 | F22: 2 | G22: 65 | H22: 0 | J22: DCLAY*KRATE^2 | Q22: dRELYLD/dKRATE | U22: =+K16+U12*K21+IF(U10="Clearfield",K23,0)+2*U6*(K17+IF(U14="Clay",K22)) -> 0.08953032052 | W22: =+K16+U12*K21+IF(U10="Clearfield",K23,0)+2*U28*(K17+IF(U14="Clay",K22)) -> 0.0431645616
A23: 22 | B23: 81.04026846 | C23: 30 | D23: 2005 | E23: 6 | F23: 13 | G23: 68 | H23: 0 | J23: DCLFIELD*KRATE | K23: -0.02087856875 | L23: 0.009566473542 | M23: -2.182472847 | N23: 0.02961379485
A24: 23 | B24: 94.63087248 | C24: 60 | D24: 2005 | E24: 6 | F24: 24 | G24: 63 | H24: 0 | Q24: =CONCATENATE("VMP of K @ KRATE = ",U6," lbs/acre and soil test K of ",U12) -> VMP of K @ KRATE = 25 lbs/acre and soil test K of 110 | U24: =+U22*U2/2.22*U20 -> 0.7778109854 | W24: =+W22*U2/2.22*U20 -> 0.375
A25: 24 | B25: 92.7852349 | C25: 90 | D25: 2005 | E25: 6 | F25: 40 | G25: 83 | H25: 0 | K25: Effects Specification
A26: 25 | B26: 100 | C26: 120 | D26: 2005 | E26: 6 | F26: 42 | G26: 79 | H26: 0 | M26: S.D. | N26: Rho | Q26: Cost per lb of K | U26: =+U4/0.6/2000 -> 0.375
A27: 26 | B27: 96.96394687 | C27: 0 | D27: 2005 | E27: 8 | F27: 3 | G27: 154 | H27: 0
A28: 27 | B28: 100 | C28: 40 | D28: 2005 | E28: 8 | F28: 14 | G28: 154 | H28: 0 | J28: Period random | M28: 1.060097175 | N28: 0.04768826784 | Q28: Profit Maximizing K rate: | U28: =IF((U26/(U2/2.22*U20)-(K16+U12*K21+IF(U10="Clearfield",K23,0)))/(2*(K17+IF(U14="Clay",K22)))>180,180,(U26/(U2/2.22*U20)-(K16+U12*K21+IF(U10="Clearfield",K23,0)))/(2*(K17+IF(U14="Clay",K22)))) -> 79.94118668 | W28: 125 | X28: Alt User K
A29: 28 | B29: 98.86148008 | C29: 80 | D29: 2005 | E29: 8 | F29: 31 | G29: 154 | H29: 0 | J29: Idiosyncratic random | M29: 4.737284535 | N29: 0.9523117322
A30: 29 | B30: 94.30740038 | C30: 120 | D30: 2005 | E30: 8 | F30: 43 | G30: 154 | H30: 0 | Q30: Expected Yield at Profit-Maximizing K rate: | U30: =(+K14+IF(U16="Yes",K15,0)+U28*(U12*K21+K16+IF(U10="Clearfield",K23,0))+U28^2*(K17+IF(U14="Clay",K22))+IF(U14="Clay",K20,0)+IF(U10="Clearfield",K18,0)+U12*K19)*U20 -> 187.0303852 | W30: =(+K14+IF(U16="Yes",K15,0)+W28*(U12*K21+K16+IF(U10="Clearfield",K23,0))+W28^2*(K17+IF(U14="Clay",K22))+IF(U14="Clay",K20,0)+IF(U10="Clearfield",K18,0)+U12*K19)*U20 -> 189.1292434
A31: 30 | B31: 99.24098672 | C31: 160 | D31: 2005 | E31: 8 | F31: 52 | G31: 154 | H31: 0 | K31: Weighted Statistics
A32: 31 | B32: 77.47747748 | C32: 0 | D32: 2005 | E32: 9 | F32: 4 | G32: 72 | H32: 1 | Q32: Added Profit in $/acre | U32: =+(U30-U8)*U2/2.22-(U28-U6)*U26 -> 11.06545677 | W32: =+(W30-U8)*U2/2.22-(W28-U6)*U26 -> 3.622718031
A33: 32 | B33: 85.58558559 | C33: 40 | D33: 2005 | E33: 9 | F33: 15 | G33: 72 | H33: 1 | J33: R-squared | K33: 0.2954420526 | L33: Mean dependent var | N33: 60.43268787
A34: 33 | B34: 97.83783784 | C34: 80 | D34: 2005 | E34: 9 | F34: 32 | G34: 72 | H34: 1 | J34: Adjusted R-squared | K34: 0.2823644109 | L34: S.D. dependent var | N34: 9.884122327 | BH34: K rate | BI34: Exp. Yield
A35: 34 | B35: 98.73873874 | C35: 120 | D35: 2005 | E35: 9 | F35: 44 | G35: 72 | H35: 1 | J35: S.E. of regression | K35: 4.743914196 | L35: Sum squared resid | N35: 9699.535137 | BH35: 0 | BI35: =(+$K$14+IF($U$16="Yes",$K$15,0)+BH35*($U$12*$K$21+$K$16+IF($U$10="Clearfield",$K$23,0))+BH35^2*($K$17+IF($U$14="Clay",$K$22))+IF($U$14="Clay",$K$20,0)+IF($U$10="Clearfield",$K$18,0)+$U$12*$K$19)*$U$20 -> 175.174514
A36: 35 | B36: 100 | C36: 160 | D36: 2005 | E36: 9 | F36: 53 | G36: 72 | H36: 1 | J36: F-statistic | K36: 22.59138605 | L36: Durbin-Watson stat | N36: 2.49064464 | BH36: 10 | BI36: =(+$K$14+IF($U$16="Yes",$K$15,0)+BH36*($U$12*$K$21+$K$16+IF($U$10="Clearfield",$K$23,0))+BH36^2*($K$17+IF($U$14="Clay",$K$22))+IF($U$14="Clay",$K$20,0)+IF($U$10="Clearfield",$K$18,0)+$U$12*$K$19)*$U$20 -> 177.2267808
A37: 36 | B37: 94.12628488 | C37: 0 | D37: 2005 | E37: 10 | F37: 5 | G37: 167 | H37: 0 | J37: Prob(F-statistic) | K37: 7.693327162e-29 | BH37: 20 | BI37: 179.1162844
A38: 37 | B38: 94.71365639 | C38: 40 | D38: 2005 | E38: 10 | F38: 16 | G38: 167 | H38: 0 | BH38: 30 | BI38: 180.8430248
A39: 38 | B39: 97.65051395 | C39: 80 | D39: 2005 | E39: 10 | F39: 33 | G39: 167 | H39: 0 | K39: Unweighted Statistics | BH39: 40 | BI39: 182.407002
A40: 39 | B40: 99.85315712 | C40: 120 | D40: 2005 | E40: 10 | F40: 45 | G40: 167 | H40: 0 | BH40: 50 | BI40: 183.8082159
A41: 40 | B41: 100 | C41: 160 | D41: 2005 | E41: 10 | F41: 54 | G41: 167 | H41: 0 | J41: R-squared | K41: 0.2961173096 | L41: Mean dependent var | N41: 95.92045455 | BH41: 60 | BI41: 185.0466667
A42: 41 | B42: 92.02898551 | C42: 0 | D42: 2005 | E42: 12 | F42: 6 | G42: 108 | H42: 0 | J42: Sum squared resid | K42: 10114.18604 | L42: Durbin-Watson stat | N42: 2.482420507 | BH42: 70 | BI42: 186.1223542
A43: 42 | B43: 94.56521739 | C43: 40 | D43: 2005 | E43: 12 | F43: 17 | G43: 108 | H43: 0 | BH43: 80 | BI43: 187.0352786
A44: 43 | B44: 99.0942029 | C44: 80 | D44: 2005 | E44: 12 | F44: 34 | G44: 108 | H44: 0 | BH44: 90 | BI44: 187.7854397
A45: 44 | B45: 79.89130435 | C45: 120 | D45: 2005 | E45: 12 | F45: 46 | G45: 108 | H45: 0 | BH45: 100 | BI45: 188.3728376
A46: 45 | B46: 100 | C46: 160 | D46: 2005 | E46: 12 | F46: 55 | G46: 108 | H46: 0 | BH46: 110 | BI46: 188.7974724
A47: 46 | B47: 88.08373591 | C47: 0 | D47: 2006 | E47: 13 | F47: 1 | G47: 102 | H47: 0 | M47: =174/192 -> 0.90625 | BH47: 120 | BI47: 189.0593439
A48: 47 | B48: 91.14331723 | C48: 40 | D48: 2006 | E48: 13 | F48: 14 | G48: 102 | H48: 0 | BH48: 130 | BI48: 189.1584521
A49: 48 | B49: 100 | C49: 80 | D49: 2006 | E49: 13 | F49: 31 | G49: 102 | H49: 0 | BH49: 140 | BI49: 189.0947972
A50: 49 | B50: 99.8389694 | C50: 120 | D50: 2006 | E50: 13 | F50: 41 | G50: 102 | H50: 0 | BH50: 150 | BI50: 188.8683791
A51: 50 | B51: 98.71175523 | C51: 160 | D51: 2006 | E51: 13 | F51: 52 | G51: 102 | H51: 0 | BH51: 160 | BI51: 188.4791978
A52: 51 | B52: 92.5087108 | C52: 0 | D52: 2006 | E52: 14 | F52: 2 | G52: 104 | H52: 0 | BH52: 170 | BI52: 187.9272532
A53: 52 | B53: 95.47038328 | C53: 40 | D53: 2006 | E53: 14 | F53: 15 | G53: 104 | H53: 0 | BH53: 180 | BI53: 187.2125455
A54: 53 | B54: 95.47038328 | C54: 80 | D54: 2006 | E54: 14 | F54: 32 | G54: 104 | H54: 0
A55: 54 | B55: 99.30313589 | C55: 120 | D55: 2006 | E55: 14 | F55: 42 | G55: 104 | H55: 0
A56: 55 | B56: 100 | C56: 160 | D56: 2006 | E56: 14 | F56: 53 | G56: 104 | H56: 0
A57: 56 | B57: 96.84741488 | C57: 0 | D57: 2006 | E57: 15 | F57: 3 | G57: 154 | H57: 0
A58: 57 | B58: 94.8297604 | C58: 40 | D58: 2006 | E58: 15 | F58: 16 | G58: 154 | H58: 0 | J58: Dependent Variable: RELYLD | Q58: Predicted RELYLD based on above questions: | U58: =+K69+IF($U$16="Yes",K70,0)+$U$6*($U$12*K76+K71+IF($U$10="Clearfield",K77,0)+IF($U$14="Clay",K78))+$U$6^0.5*K72+IF($U$14="Clay",K75,0)+IF($U$10="Clearfield",K73,0)+$U$12*K74 -> 94.5669452
A59: 58 | B59: 98.73896595 | C59: 80 | D59: 2006 | E59: 15 | F59: 33 | G59: 154 | H59: 0 | J59: Method: Panel EGLS (Period random effects)
A60: 59 | B60: 100 | C60: 120 | D60: 2006 | E60: 15 | F60: 43 | G60: 154 | H60: 0 | J60: Date: 03/13/19 Time: 09:12 | Q60: Yield/RELYLD | U60: =+U8/U58 -> 1.903413498
A61: 60 | B61: 94.95586381 | C61: 160 | D61: 2006 | E61: 15 | F61: 54 | G61: 154 | H61: 0 | J61: Sample: 2001 2018 IF KRATE<>135
A62: 61 | B62: 73.73134328 | C62: 0 | D62: 2006 | E62: 17 | F62: 4 | G62: 86 | H62: 0 | J62: Periods included: 17 | Q62: dRELYLD/dKRATE | U62: =+K71+U12*K76+IF(U10="Clearfield",K77,0)+IF(U14="Clay",K78,0)+0.5*U6^-0.5*K72 -> 0.05961510745 | W62: =+K71+U12*K76+IF(U10="Clearfield",K77,0)+IF(U14="Clay",K78,0)+0.5*U68^-0.5*K72 -> 0.04373721215
A63: 62 | B63: 82.3880597 | C63: 40 | D63: 2006 | E63: 17 | F63: 17 | G63: 86 | H63: 0 | J63: Cross-sections included: 79
A64: 63 | B64: 93.28358209 | C64: 80 | D64: 2006 | E64: 17 | F64: 34 | G64: 86 | H64: 0 | J64: Total panel (unbalanced) observations: 440 | Q64: =CONCATENATE("VMP of K @ KRATE = ",U6," lbs/acre and soil test K of ",U12) -> VMP of K @ KRATE = 25 lbs/acre and soil test K of 110 | U64: =+U62*U2/2.22*U60 -> 0.5111360371 | W64: =+W62*U2/2.22*U60 -> 0.375
A65: 64 | B65: 98.20895522 | C65: 120 | D65: 2006 | E65: 17 | F65: 44 | G65: 86 | H65: 0 | J65: Wallace and Hussain estimator of component variances
A66: 65 | B66: 100 | C66: 160 | D66: 2006 | E66: 17 | F66: 55 | G66: 86 | H66: 0 | Q66: Cost per lb of K | U66: =+U4/0.6/2000 -> 0.375 | W66: =(K71+U12*K76+IF(U10="Clearfield",K77,0)+IF(U14="Clay",K78)+0.5*W68^-0.5*K72)*U2/2.22*U60 -> 1.383980984 | X66: VMP at Alt User K
A67: 66 | B67: 79.68503937 | C67: 0 | D67: 2006 | E67: 20 | F67: 5 | G67: 103 | H67: 0 | J67: Variable | K67: Coefficient | L67: Std. Error | M67: t-Statistic | N67: Prob.
A68: 67 | B68: 87.55905512 | C68: 40 | D68: 2006 | E68: 20 | F68: 18 | G68: 108 | H68: 0 | Q68: Optimal K | U68: =IF(((U66/(U2/2.22*U60)-(K71+U12*K76+IF(U10="Clearfield",K77,0)+IF(U14="Clay",K78,0)))*2/K72)^-2>180,180,((U66/(U2/2.22*U60)-(K71+U12*K76+IF(U10="Clearfield",K77,0)+IF(U14="Clay",K78,0)))*2/K72)^-2) -> 38.36754456 | W68: 5 | X68: Alt User K
A69: 68 | B69: 92.75590551 | C69: 80 | D69: 2006 | E69: 20 | F69: 35 | G69: 118 | H69: 0 | J69: C | K69: 83.57802419 | L69: 1.206595779 | M69: 69.26762523 | N69: 2.275095698e-235
A70: 69 | B70: 100 | C70: 120 | D70: 2006 | E70: 20 | F70: 45 | G70: 131 | H70: 0 | J70: DRREC | K70: 1.901372692 | L70: 0.6112073646 | M70: 3.110847156 | N70: 0.001989737646 | Q70: Expected Yield | U70: =(+K69+IF(U16="Yes",K70,0)+U68*(K71+IF(U10="Clearfield",K77,0)+IF(U14="Clay",K78,0)+U12*K76)+U68^0.5*(K72)+IF(U14="Clay",K75,0)+IF(U10="Clearfield",K73,0)+U12*K74)*U60 -> 181.2932979 | W70: =(K69+IF($U$16="Yes",K70,0)+$W$68*($U$12*K76+K71+IF($U$10="Clearfield",K77,0)+IF($U$14="Clay",K78,0))+$W$68^0.5*K72+IF($U$14="Clay",K75,0)+IF($U$10="Clearfield",K73,0)+$U$12*K74)*U60 -> 176.5329818
A71: 70 | B71: 94.80314961 | C71: 160 | D71: 2006 | E71: 20 | F71: 56 | G71: 133 | H71: 0 | J71: KRATE | K71: 0.05527424609 | L71: 0.01945111966 | M71: 2.841699967 | N71: 0.004700819505
A72: 71 | B72: 77.48344371 | C72: 0 | D72: 2006 | E72: 21 | F72: 6 | G72: 96 | H72: 0 | J72: KRATE^.5 | K72: 0.8235966589 | L72: 0.1795438504 | M72: 4.587161615 | N72: 5.902285465e-06 | Q72: Added Profit in $/acre | U72: =+(U70-U8)*U2/2.22-(U68-U6)*U66 -> 0.8128370095 | W72: =+(W70-U8)*U2/2.22-(W68-U6)*U66 -> -8.117199183
A73: 72 | B73: 85.09933775 | C73: 40 | D73: 2006 | E73: 21 | F73: 19 | G73: 95 | H73: 0 | J73: DCLFIELD | K73: 2.333261436 | L73: 0.9170687768 | M73: 2.544260032 | N73: 0.0112997258
A74: 73 | B74: 92.54966887 | C74: 80 | D74: 2006 | E74: 21 | F74: 36 | G74: 94 | H74: 0 | J74: KSOIL | K74: 0.06763228791 | L74: 0.01098263876 | M74: 6.158109118 | N74: 1.69129018e-09
A75: 74 | B75: 97.84768212 | C75: 120 | D75: 2006 | E75: 21 | F75: 46 | G75: 111 | H75: 0 | J75: DCLAY | K75: -9.296610794 | L75: 2.441795438 | M75: -3.807284857 | N75: 0.0001609195768
A76: 75 | B76: 100 | C76: 160 | D76: 2006 | E76: 21 | F76: 57 | G76: 123 | H76: 0 | J76: KSOIL*KRATE | K76: -0.0007092618593 | L76: 0.0001239922289 | M76: -5.720212189 | N76: 1.99520725e-08 | Q76: K rate | R76: Exp. Yield
A77: 76 | B77: 64.6884273 | C77: 0 | D77: 2007 | E77: 22 | F77: 1 | G77: 60 | H77: 0 | J77: DCLFIELD*KRATE | K77: -0.02113021601 | L77: 0.009446821853 | M77: -2.236753941 | N77: 0.02581434428 | Q77: 0.01 | R77: =(+$K$69+IF($U$16="Yes",$K$70,0)+Q77*($U$12*$K$76+$K$71+IF($U$10="Clearfield",$K$77,0)+IF($U$14="Clay",$K$78,0))+Q77^0.5*($K$72)+IF($U$14="Clay",$K$75,0)+IF($U$10="Clearfield",$K$73,0)+$U$12*$K$74)*$U$60 -> 173.4004141
A78: 77 | B78: 86.64688427 | C78: 40 | D78: 2007 | E78: 22 | F78: 14 | G78: 72 | H78: 0 | J78: DCLAY*KRATE | K78: 0.09240656048 | L78: 0.02766610215 | M78: 3.340064314 | N78: 0.0009106295903 | Q78: 2 | R78: 175.3744827
A79: 78 | B79: 89.91097923 | C79: 80 | D79: 2007 | E79: 22 | F79: 31 | G79: 78 | H79: 0 | Q79: 7 | R79: 177.0886352
A80: 79 | B80: 100 | C80: 120 | D80: 2007 | E80: 22 | F80: 41 | G80: 81 | H80: 0 | K80: Effects Specification | Q80: 15 | R80: 178.666161
A81: 80 | B81: 92.28486647 | C81: 160 | D81: 2007 | E81: 22 | F81: 52 | G81: 96 | H81: 0 | M81: S.D. | N81: Rho | Q81: 25 | R81: 180
A82: 81 | B82: 65.50764951 | C82: 0 | D82: 2007 | E82: 23 | F82: 2 | G82: 71 | H82: 0 | Q82: 45 | R82: 181.8120114
A83: 82 | B83: 91.09874826 | C83: 40 | D83: 2007 | E83: 23 | F83: 15 | G83: 67 | H83: 0 | J83: Period random | M83: 1.099880019 | N83: 0.05237979079 | Q83: 60 | R83: 182.7894705
A84: 83 | B84: 94.01947149 | C84: 80 | D84: 2007 | E84: 23 | F84: 32 | G84: 72 | H84: 0 | J84: Idiosyncratic random | M84: 4.678219447 | N84: 0.9476202092 | Q84: 70 | R84: 183.3294806
A85: 84 | B85: 92.6286509 | C85: 120 | D85: 2007 | E85: 23 | F85: 42 | G85: 78 | H85: 0 | Q85: 80 | R85: 183.8021417
A86: 85 | B86: 100 | C86: 160 | D86: 2007 | E86: 23 | F86: 53 | G86: 97 | H86: 0 | K86: Weighted Statistics | Q86: 90 | R86: 184.2197618
A87: 86 | B87: 82.85302594 | C87: 0 | D87: 2007 | E87: 24 | F87: 3 | G87: 113 | H87: 0 | Q87: 100 | R87: 184.5913025
A88: 87 | B88: 92.93948127 | C88: 40 | D88: 2007 | E88: 24 | F88: 16 | G88: 113 | H88: 0 | J88: R-squared | K88: 0.3131037289 | L88: Mean dependent var | N88: 58.69433819 | Q88: 110 | R88: 184.923529
A89: 88 | B89: 91.6426513 | C89: 80 | D89: 2007 | E89: 24 | F89: 33 | G89: 113 | H89: 0 | J89: Adjusted R-squared | K89: 0.2987268302 | L89: S.D. dependent var | N89: 10.00229228 | Q89: 120 | R89: 185.2216971
A90: 89 | B90: 100 | C90: 120 | D90: 2007 | E90: 24 | F90: 43 | G90: 113 | H90: 0 | J90: S.E. of regression | K90: 4.685069483 | L90: Sum squared resid | N90: 9438.446708 | Q90: 130 | R90: 185.4899866
A91: 90 | B91: 91.93083573 | C91: 160 | D91: 2007 | E91: 24 | F91: 54 | G91: 113 | H91: 0 | J91: F-statistic | K91: 21.77825243 | L91: Durbin-Watson stat | N91: 2.440948805 | Q91: 140 | R91: 185.7317863
A92: 91 | B92: 92.43027888 | C92: 0 | D92: 2007 | E92: 26 | F92: 4 | G92: 102 | H92: 0 | J92: Prob(F-statistic) | K92: 1.9758798e-30 | Q92: 150 | R92: 185.9498893
A93: 92 | B93: 96.21513944 | C93: 40 | D93: 2007 | E93: 26 | F93: 17 | G93: 102 | H93: 0 | Q93: 160 | R93: 186.1466296
A94: 93 | B94: 100 | C94: 80 | D94: 2007 | E94: 26 | F94: 34 | G94: 102 | H94: 0 | K94: Unweighted Statistics | Q94: 170 | R94: 186.3239817
A95: 94 | B95: 95.01992032 | C95: 120 | D95: 2007 | E95: 26 | F95: 44 | G95: 102 | H95: 0 | Q95: 180 | R95: 186.4836333
A96: 95 | B96: 94.22310757 | C96: 160 | D96: 2007 | E96: 26 | F96: 55 | G96: 102 | H96: 0 | J96: R-squared | K96: 0.3119695218 | L96: Mean dependent var | N96: 95.92045455
A97: 96 | B97: 87.73234201 | C97: 0 | D97: 2007 | E97: 27 | F97: 5 | G97: 139 | H97: 0 | J97: Sum squared resid | K97: 9886.403451 | L97: Durbin-Watson stat | N97: 2.431277786
A98: 97 | B98: 88.84758364 | C98: 40 | D98: 2007 | E98: 27 | F98: 18 | G98: 139 | H98: 0
A99: 98 | B99: 100 | C99: 80 | D99: 2007 | E99: 27 | F99: 35 | G99: 139 | H99: 0
A100: 99 | B100: 94.42379182 | C100: 120 | D100: 2007 | E100: 27 | F100: 45 | G100: 139 | H100: 0
A101: 100 | B101: 91.44981413 | C101: 160 | D101: 2007 | E101: 27 | F101: 56 | G101: 139 | H101: 0 | J101: Dependent Variable: RELYLD | Q101: Predicted RELYLD based on above questions: | U101: =+K112+IF($U$16="Yes",K113,0)+LN($U$6)*(K117+$U$12*K120+IF($U$10="Clearfield",K119,0)+IF($U$14="Clay",K118))+IF($U$14="Clay",K116,0)+IF($U$10="Clearfield",K114,0)+$U$12*K115 -> 96.18393227
A102: 101 | B102: 90.23622047 | C102: 0 | D102: 2007 | E102: 28 | F102: 6 | G102: 272 | H102: 1 | J102: Method: Panel EGLS (Period random effects)
A103: 102 | B103: 100 | C103: 40 | D103: 2007 | E103: 28 | F103: 19 | G103: 272 | H103: 1 | J103: Date: 03/13/19 Time: 16:57 | Q103: Yield/RELYLD | U103: =+U8/U101 -> 1.871414443
A104: 103 | B104: 91.33858268 | C104: 80 | D104: 2007 | E104: 28 | F104: 36 | G104: 272 | H104: 1 | J104: Sample: 2001 2018 IF KRATE<>135
A105: 104 | B105: 91.49606299 | C105: 120 | D105: 2007 | E105: 28 | F105: 46 | G105: 272 | H105: 1 | J105: Periods included: 17 | Q105: dRELYLD/dKRATE | U105: =(K117+IF(U14="Clay",K118,0)+IF(U10="Clearfield",K119,0)+U12*K120)/U6 -> 0.01701949554 | W105: =(K117+IF(U14="Clay",K118,0)+IF(U10="Clearfield",K119,0)+U12*K120)/U111 -> 0.04448506867
A106: 105 | B106: 93.22834646 | C106: 160 | D106: 2007 | E106: 28 | F106: 57 | G106: 272 | H106: 1 | J106: Cross-sections included: 79
A107: 106 | B107: 90.35433071 | C107: 0 | D107: 2007 | E107: 30 | F107: 7 | G107: 94 | H107: 0 | J107: Total panel (unbalanced) observations: 440 | Q107: =CONCATENATE("VMP of K @ KRATE = ",U49," lbs/acre and soil test K of ",U55) -> VMP of K @ KRATE = lbs/acre and soil test K of | U107: =+U105*U2/2.22*U103 -> 0.1434708548 | W107: =+W105*U2/2.22*U103 -> 0.375
A108: 107 | B108: 97.44094488 | C108: 40 | D108: 2007 | E108: 30 | F108: 20 | G108: 94 | H108: 0 | J108: Wallace and Hussain estimator of component variances
A109: 108 | B109: 100 | C109: 80 | D109: 2007 | E109: 30 | F109: 37 | G109: 94 | H109: 0 | Q109: Cost per lb of K | U109: =+U4/0.6/2000 -> 0.375 | W109: =(K117+IF(U14="Clay",K118,0)+IF(U10="Clearfield",K119,0)+U12*K120)/W111*U2/2.22*U103 -> 0.717354274 | X109: VMP at Alt User K
A110: 109 | B110: 96.65354331 | C110: 120 | D110: 2007 | E110: 30 | F110: 47 | G110: 94 | H110: 0 | J110: Variable | K110: Coefficient | L110: Std. Error | M110: t-Statistic | N110: Prob.
A111: 110 | B111: 93.30708661 | C111: 160 | D111: 2007 | E111: 30 | F111: 58 | G111: 94 | H111: 0 | Q111: Optimal K | U111: =IF(((K117+IF(U14="Clay",K118,0)+IF(U10="Clearfield",K119,0)+U12*K120)/(U109/(U2/2.22*U103)))>180,180,((K117+IF(U14="Clay",K118,0)+IF(U10="Clearfield",K119,0)+U12*K120)/(U109/(U2/2.22*U103)))) -> 9.564723654 | W111: 5 | X111: Alt User K
A112: 111 | B112: 91.94630872 | C112: 0 | D112: 2007 | E112: 31 | F112: 8 | G112: 94 | H112: 0 | J112: C | K112: 92.04835626 | L112: 0.8118564696 | M112: 113.3800859 | N112: 0
A113: 112 | B113: 96.51006711 | C113: 40 | D113: 2007 | E113: 31 | F113: 21 | G113: 94 | H113: 0 | J113: DRREC | K113: 1.674272927 | L113: 0.6247099459 | M113: 2.680080472 | N113: 0.007642508367 | Q113: Expected Yield | U113: =(+K112+IF(U16="Yes",K113,0)+LN(U111)*(K117+IF(U10="Clearfield",K119,0)+IF(U14="Clay",K118,0)+U12*K120)+IF(U14="Clay",K116,0)+IF(U10="Clearfield",K114,0)+U12*K115)*U103 -> 179.234955 | W113: =(+K112+IF(U16="Yes",K113,0)+LN(W111)*(K117+IF(U10="Clearfield",K119,0)+IF(U14="Clay",K118,0)+U12*K120)+IF(U14="Clay",K116,0)+IF(U10="Clearfield",K114,0)+U12*K115)*U103 -> 178.7184637
A114: 113 | B114: 100 | C114: 80 | D114: 2007 | E114: 31 | F114: 38 | G114: 94 | H114: 0 | J114: DCLFIELD | K114: 0.9538761766 | L114: 0.599352375 | M114: 1.591511465 | N114: 0.1122276617
A115: 114 | B115: 92.08053691 | C115: 120 | D115: 2007 | E115: 31 | F115: 48 | G115: 94 | H115: 0 | J115: KSOIL | K115: 0.02514531757 | L115: 0.007907350482 | M115: 3.179992796 | N115: 0.001579079719 | Q115: Added Profit in $/acre | U115: =+(U113-U8)*U2/2.22-(U111-U6)*U109 -> 2.34207981 | W115: =+(W113-U8)*U2/2.22-(W111-U6)*U109 -> 1.727314174
A116: 115 | B116: 97.18120805 | C116: 160 | D116: 2007 | E116: 31 | F116: 59 | G116: 94 | H116: 0 | J116: DCLAY | K116: -3.488411949 | L116: 1.646380839 | M116: -2.118836581 | N116: 0.03467569419
A117: 116 | B117: 91.5862069 | C117: 0 | D117: 2008 | E117: 32 | F117: 1 | G117: 125 | H117: 0 | J117: LNK | K117: 0.9466911285 | L117: 0.1187053689 | M117: 7.975133199 | N117: 1.383119288e-14
A118: 117 | B118: 95.72413793 | C118: 40 | D118: 2008 | E118: 32 | F118: 14 | G118: 125 | H118: 0 | J118: LNK*DCLAY | K118: 0.4990002373 | L118: 0.2438559311 | M118: 2.046291165 | N118: 0.04133396676 | Q118: K rate | R118: Exp. Yield
A119: 118 | B119: 98.48275862 | C119: 80 | D119: 2008 | E119: 32 | F119: 31 | G119: 125 | H119: 0 | J119: LNK*DCLFIELD | K119: -0.1496455639 | L119: 0.09193539344 | M119: -1.627725279 | N119: 0.1043139117 | Q119: 0.01 | R119: =(+$K$112+IF($U$16="Yes",$K$113,0)+LN(Q119)*($K$117+IF($U$10="Clearfield",$K$119,0)+IF($U$14="Clay",$K$118,0)+$U$12*$K$120)+IF($U$14="Clay",$K$116,0)+IF($U$10="Clearfield",$K$114,0)+$U$12*$K$115)*$U$103 -> 173.7699997
A120: 119 | B120: 96.82758621 | C120: 120 | D120: 2008 | E120: 32 | F120: 41 | G120: 125 | H120: 0 | J120: LNK*KSOIL | K120: -0.004738215818 | L120: 0.001134485983 | M120: -4.176530947 | N120: 3.583942662e-05 | Q120: 2 | R120: 177.9888551
A121: 120 | B121: 100 | C121: 160 | D121: 2008 | E121: 32 | F121: 52 | G121: 125 | H121: 0 | Q121: 5 | R121: 178.7184637
A122: 121 | B122: 89.61748634 | C122: 0 | D122: 2008 | E122: 33 | F122: 2 | G122: 114 | H122: 0 | K122: Effects Specification | Q122: 7 | R122: 178.9863842
A123: 122 | B123: 91.66666667 | C123: 40 | D123: 2008 | E123: 33 | F123: 15 | G123: 114 | H123: 0 | M123: S.D. | N123: Rho | Q123: 10 | R123: 179.2703914
A124: 123 | B124: 87.29508197 | C124: 80 | D124: 2008 | E124: 33 | F124: 32 | G124: 114 | H124: 0 | Q124: 15 | R124: 179.5932483
A125: 124 | B125: 98.36065574 | C125: 120 | D125: 2008 | E125: 33 | F125: 42 | G125: 114 | H125: 0 | J125: Period random | M125: 1.106470735 | N125: 0.05032333769 | Q125: 30 | R125: 180.145176
A126: 125 | B126: 100 | C126: 160 | D126: 2008 | E126: 33 | F126: 53 | G126: 114 | H126: 0 | J126: Idiosyncratic random | M126: 4.806656593 | N126: 0.9496766623 | Q126: 50 | R126: 180.5519276
A127: 126 | B127: 88.4137931 | C127: 0 | D127: 2008 | E127: 34 | F127: 3 | G127: 87 | H127: 0 | Q127: 70 | R127: 180.8198481
A128: 127 | B128: 95.72413793 | C128: 40 | D128: 2008 | E128: 34 | F128: 16 | G128: 87 | H128: 0 | K128: Weighted Statistics | Q128: 90 | R128: 181.0199605
A129: 128 | B129: 98.48275862 | C129: 80 | D129: 2008 | E129: 34 | F129: 33 | G129: 87 | H129: 0 | Q129: 100 | R129: 181.1038552
A130: 129 | B130: 96.82758621 | C130: 120 | D130: 2008 | E130: 34 | F130: 43 | G130: 87 | H130: 0 | J130: R-squared | K130: 0.2740428809 | L130: Mean dependent var | N130: 59.43892963 | Q130: 110 | R130: 181.1797472
A131: 130 | B131: 100 | C131: 160 | D131: 2008 | E131: 34 | F131: 54 | G131: 87 | H131: 0 | J131: Adjusted R-squared | K131: 0.2605680388 | L131: S.D. dependent var | N131: 9.954107887 | Q131: 120 | R131: 181.2490312
A132: 131 | B132: 100 | C132: 0 | D132: 2008 | E132: 35 | F132: 4 | G132: 155 | H132: 0 | J132: S.E. of regression | K132: 4.812796269 | L132: Sum squared resid | N132: 9983.256415 | Q132: 130 | R132: 181.3127663
A133: 132 | B133: 100 | C133: 40 | D133: 2008 | E133: 35 | F133: 17 | G133: 155 | H133: 0 | J133: F-statistic | K133: 20.33737231 | L133: Durbin-Watson stat | N133: 2.371216243 | Q133: 140 | R133: 181.3717757
A134: 133 | B134: 98.6135182 | C134: 80 | D134: 2008 | E134: 35 | F134: 34 | G134: 155 | H134: 0 | J134: Prob(F-statistic) | K134: 3.890647391e-26 | Q134: 150 | R134: 181.4267122
A135: 134 | B135: 100 | C135: 120 | D135: 2008 | E135: 35 | F135: 44 | G135: 155 | H135: 0 | Q135: 160 | R135: 181.4781019
A136: 135 | B136: 98.26689775 | C136: 160 | D136: 2008 | E136: 35 | F136: 55 | G136: 155 | H136: 0 | K136: Unweighted Statistics | Q136: 170 | R136: 181.526375
A137: 136 | B137: 81.4159292 | C137: 0 | D137: 2008 | E137: 38 | F137: 5 | G137: 110 | H137: 0 | Q137: 180 | R137: 181.5718882
A138: 137 | B138: 100 | C138: 40 | D138: 2008 | E138: 38 | F138: 18 | G138: 113 | H138: 0 | J138: R-squared | K138: 0.2734639836 | L138: Mean dependent var | N138: 95.92045455
A139: 138 | B139: 99.70501475 | C139: 80 | D139: 2008 | E139: 38 | F139: 35 | G139: 113 | H139: 0 | J139: Sum squared resid | K139: 10439.69476 | L139: Durbin-Watson stat | N139: 2.364096255
A140: 139 | B140: 97.19764012 | C140: 120 | D140: 2008 | E140: 38 | F140: 45 | G140: 133 | H140: 0
A141: 140 | B141: 100 | C141: 160 | D141: 2008 | E141: 38 | F141: 56 | G141: 147 | H141: 0
A142: 141 | B142: 95.5 | C142: 0 | D142: 2009 | E142: 39 | F142: 1 | G142: 102 | H142: 0 | W142: TRUE
A143: 142 | B143: 98.33333333 | C143: 45 | D143: 2009 | E143: 39 | F143: 22 | G143: 102 | H143: 0 | J143: =0.8301513*2.47105*0.453592 -> 0.930473849 | Q143: Profit-Maximizing K Rate Calculator
A144: 143 | B144: 100 | C144: 90 | D144: 2009 | E144: 39 | F144: 39 | G144: 102 | H144: 0
A145: 144 | B145: 90.67669173 | C145: 0 | D145: 2009 | E145: 42 | F145: 2 | G145: 98 | H145: 0 | J145: Dependent Variable: RY | Q145: What is your expected soybean price? | U145: 0.3993974133 | V145: =IF(W142,CONCATENATE("$ kg",Z155),"$/bu") -> $ kg⁻¹
A146: 145 | B146: 100 | C146: 60 | D146: 2009 | E146: 42 | F146: 23 | G146: 98 | H146: 0 | J146: Method: Panel EGLS (Period random effects)
A147: 146 | B147: 88.57142857 | C147: 120 | D147: 2009 | E147: 42 | F147: 41 | G147: 98 | H147: 0 | J147: Date: 06/03/20 Time: 12:34 | Q147: What do you expect to pay for muriate of potash fertilizer? | U147: 512.5661376 | V147: =IF(W142,CONCATENATE("$ Mg",Z155),"$/ton") -> $ Mg⁻¹ | W147: =+U147/IF(W142,1000,2000)/IF(W142,0.49809078131038,0.6) -> 1.029061683 | X147: =IF(W142,CONCATENATE("$ kg",Z155," K"),CONCATENATE("$/lb of K",Z153,"O")) -> $ kg⁻¹ K
A148: 147 | B148: 99.07264297 | C148: 0 | D148: 2009 | E148: 43 | F148: 3 | G148: 104 | H148: 0 | J148: Sample: 2004 2019
A149: 148 | B149: 100 | C149: 60 | D149: 2009 | E149: 43 | F149: 24 | G149: 104 | H149: 0 | J149: Periods included: 16 | Q149: What is the yield potential of your field? | U149: 4219 | V149: =IF(W142,CONCATENATE("kg ha",Z155),"bu/acre") -> kg ha⁻¹ | W149: =+U149/100 -> 42.19 | X149: kg ha-1/relative yield % (100% = yield potential) | Y149: =180*IF(W142,BP172,1) -> 167.4916362 | Z149: Max. Fert applied per acre in the experiment
A150: 149 | B150: 95.67233385 | C150: 120 | D150: 2009 | E150: 43 | F150: 42 | G150: 104 | H150: 0 | J150: Cross-sections included: 59 | BV150: Labels
A151: 150 | B151: 86.77165354 | C151: 0 | D151: 2009 | E151: 44 | F151: 4 | G151: 84 | H151: 0 | J151: Total panel (unbalanced) observations: 374 | Q151: What is your soil-test K value (STK) and range? | U151: 113 | V151: =IF(W142,CONCATENATE("mg K kg",Z155),"ppm") -> mg K kg⁻¹ | W151: Soil test range +/- | Y151: 10 | BI151: High | BJ151: =MMULT($BJ$157:$BO$157,BJ160:BJ165) -> -0.002719963723 | BK151: 8.055160094e-05 | BL151: -0.0001498576954 | BM151: 0.002811231461 | BN151: -2.577442566e-05 | BO151: 1.241997255e-06 | BP151: =SQRT(MMULT(BJ151:BO151,BR160:BR165))*1.96 -> 1.052584358 | BV151: =CONCATENATE(TEXT(T156,0)," ",BQ154," ",TEXT(BP151,"0.0")) -> 35 ± 1.1
A152: 151 | B152: 92.75590551 | C152: 60 | D152: 2009 | E152: 44 | F152: 25 | G152: 84 | H152: 0 | J152: Wallace and Hussain estimator of component variances | BI152: Avg | BJ152: =MMULT($BJ$156:$BO$156,BJ160:BJ165) -> 0.0203670838 | BK152: -1.10834293e-06 | BL152: -0.0001352035035 | BM152: 0.0009163081636 | BN152: -2.269325796e-05 | BO152: 1.476917759e-06 | BP152: =SQRT(MMULT(BJ152:BO152,BQ160:BQ165))*1.96 -> 1.502010278 | BQ152: 95% C.I. of profit maximizing rate at conditional mean | BV152: =CONCATENATE(TEXT(U156,0)," ",BQ154," ",TEXT(BP152,"0.0")) -> 55 ± 1.5
A153: 152 | B153: 100 | C153: 120 | D153: 2009 | E153: 44 | F153: 43 | G153: 84 | H153: 0 | J153: White cross-section standard errors & covariance (d.f. corrected) | Q153: What is your cost to apply fertilizer (equipment, labor, fuel or custom)? | U153: 15 | V153: =IF(W142,CONCATENATE("$ ha",Z155),"$/acre") -> $ ha⁻¹ | W153: =CONCATENATE("...your rate in ",IF(W142,CONCATENATE("kg K ha",Z155),CONCATENATE("lbs of K",Z153,"O/acre")),":") -> ...your rate in kg K ha⁻¹: | Y153: =(237-1.61*U151)*0.9305091 -> 51.24313614 | Z153: ₂ | BI153: Low | BJ153: =MMULT($BJ$155:$BO$155,BJ160:BJ165) -> 0.05579888637 | BK153: =MMULT($BJ$155:$BO$155,BK160:BK165) -> -0.0001510476318 | BL153: -4.471113126e-05 | BM153: -0.003081705655 | BN153: -7.99497435e-06 | BO153: 1.292875357e-06 | BP153: =SQRT(MMULT(BJ153:BO153,BP160:BP165))*1.96 -> 1.873822094 | BV153: =CONCATENATE(TEXT(V156,0)," ",BQ154," ",TEXT(BP153,"0.0")) -> 71 ± 1.9
A154: 153 | B154: 66.2139219 | C154: 0 | D154: 2009 | E154: 45 | F154: 5 | G154: 85 | H154: 0 | J154: Variable | K154: Coefficient | L154: Std. Error | M154: t-Statistic | N154: Prob. | O154: English | Q154: =CONCATENATE("Profit change comparing applying at ",TEXT(ROUND(U156,1),"0.0"),IF(W142,CONCATENATE(" kg K ha",Z155),CONCATENATE("lb K",Z153,"O/acre"))," to no fertilizer:") -> Profit change comparing applying at 55.0 kg K ha⁻¹ to no fertilizer: | U154: =+U160*$U$145/IF(W142,1,1)-U156*$W$147-IF(U156>0,$U$153)-R165*$U$145/IF(W142,1,1) -> 6.438516055 | V154: =IF(W142,CONCATENATE("$ ha",Z155),"$/acre") -> $ ha⁻¹ | W154: ...to your rate: | Y154: =+U162 -> 0.09905518224 | Z154: =CONCATENATE("Fertilizer-K Application Rate (lbs K",Z153,"O/acre)") -> Fertilizer-K Application Rate (lbs K₂O/acre) | BQ154: ±
A155: 154 | B155: 77.58913413 | C155: 40 | D155: 2009 | E155: 45 | F155: 14 | G155: 99 | H155: 0 | T155: =CONCATENATE(U151+Y151," ppm soil K") -> 123 ppm soil K | U155: =CONCATENATE(U151," ppm soil K") -> 113 ppm soil K | V155: =CONCATENATE(U151-Y151," ppm soil K") -> 103 ppm soil K | W155: K yield max | Z155: ⁻¹ | BI155: Low | BJ155: =+V156 -> 70.83053816 | BK155: =+BJ155^2 -> 5016.965136 | BL155: =+(U151-Y151)*BJ155 -> 7295.545431 | BM155: =+(U151-Y151)^0.5*BJ155 -> 718.8514513 | BN155: =+(U151-Y151)^0.5*BK155 -> 50916.63515 | BO155: =+(U151-Y151)*BK155 -> 516747.409
A156: 155 | B156: 83.36162988 | C156: 80 | D156: 2009 | E156: 45 | F156: 31 | G156: 101 | H156: 0 | J156: C | K156: 13.04610573 | L156: 8.219766 | M156: 1.587163 | N156: 0.1133 | O156: 13.04610573 | Q156: Profit Maximizing K rate: | T156: =IF((IF(W142,K159,O159)+2*IF(W142,K160,O160)*0.1+IF(W142,K161,O161)*(U151+Y151)+IF(W142,K162,O162)*(U151+Y151)^0.5+2*IF(W142,K163,O163)*(U151+Y151)^0.5*0.1+2*IF(W142,K164,O164)*(U151+Y151)*0.1)<0,0,IF(((IF(W142,K159,O159)+2*IF(W142,K160,O160)*Y149+IF(W142,K161,O161)*(U151+Y151)+IF(W142,K162,O162)*(U151+Y151)^0.5+2*IF(W142,K163,O163)*(U151+Y151)^0.5*Y149+2*IF(W142,K164,O164)*(U151+Y151)*Y149)*U145/IF(W142,1,1)*W149)>W147,IF(Y149<T188,Y149,T188),IF((W147/(U145/IF(W142,1,1)*W149)-IF(W142,K159,O159)-IF(W142,K161,O161)*(U151+Y151)-IF(W142,K162,O162)*(U151+Y151)^0.5)/(2*(IF(W142,K160,O160)+IF(W142,K163,O163)*(U151+Y151)^0.5+IF(W142,K164,O164)*(U151+Y151)))<0,0,IF((W147/(U145/IF(W142,1,1)*W149)-IF(W142,K159,O159)-IF(W142,K161,O161)*(U151+Y151)-IF(W142,K162,O162)*(U151+Y151)^0.5)/(2*(IF(W142,K160,O160)+IF(W142,K163,O163)*(U151+Y151)^0.5+IF(W142,K164,O164)*(U151+Y151)))>T188,T188,(W147/(U145/IF(W142,1,1)*W149)-IF(W142,K159,O159)-IF(W142,K161,O161)*(U151+Y151)-IF(W142,K162,O162)*(U151+Y151)^0.5)/(2*(IF(W142,K160,O160)+IF(W142,K163,O163)*(U151+Y151)^0.5+IF(W142,K164,O164)*(U151+Y151))))))) -> 35.29425102 | U156: =IF((IF(W142,K159,O159)+2*IF(W142,K160,O160)*0.1+IF(W142,K161,O161)*(U151)+IF(W142,K162,O162)*(U151)^0.5+2*IF(W142,K163,O163)*(U151)^0.5*0.1+2*IF(W142,K164,O164)*(U151)*0.1)<0,0,IF(((IF(W142,K159,O159)+2*IF(W142,K160,O160)*Y149+IF(W142,K161,O161)*(U151)+IF(W142,K162,O162)*(U151)^0.5+2*IF(W142,K163,O163)*(U151)^0.5*Y149+2*IF(W142,K164,O164)*(U151)*Y149)*U145/IF(W142,1,1)*W149)>W147,IF(Y149<U188,Y149,U188),IF((W147/(U145/IF(W142,1,1)*W149)-IF(W142,K159,O159)-IF(W142,K161,O161)*(U151)-IF(W142,K162,O162)*(U151)^0.5)/(2*(IF(W142,K160,O160)+IF(W142,K163,O163)*(U151)^0.5+IF(W142,K164,O164)*(U151)))<0,0,IF((W147/(U145/IF(W142,1,1)*W149)-IF(W142,K159,O159)-IF(W142,K161,O161)*(U151)-IF(W142,K162,O162)*(U151)^0.5)/(2*(IF(W142,K160,O160)+IF(W142,K163,O163)*(U151)^0.5+IF(W142,K164,O164)*(U151)))>U188,U188,(W147/(U145/IF(W142,1,1)*W149)-IF(W142,K159,O159)-IF(W142,K161,O161)*(U151)-IF(W142,K162,O162)*(U151)^0.5)/(2*(IF(W142,K160,O160)+IF(W142,K163,O163)*(U151)^0.5+IF(W142,K164,O164)*(U151))))))) -> 54.98035729 | V156: =IF((IF(W142,K159,O159)+2*IF(W142,K160,O160)*0.1+IF(W142,K161,O161)*(U151-Y151)+IF(W142,K162,O162)*(U151-Y151)^0.5+2*IF(W142,K163,O163)*(U151-Y151)^0.5*0.1+2*IF(W142,K164,O164)*(U151-Y151)*0.1)<0,0,IF(((IF(W142,K159,O159)+2*IF(W142,K160,O160)*Y149+IF(W142,K161,O161)*(U151-Y151)+IF(W142,K162,O162)*(U151-Y151)^0.5+2*IF(W142,K163,O163)*(U151-Y151)^0.5*Y149+2*IF(W142,K164,O164)*(U151-Y151)*Y149)*U145/IF(W142,1,1)*W149)>W147,IF(Y149<V188,Y149,V188),IF((W147/(U145/IF(W142,1,1)*W149)-IF(W142,K159,O159)-IF(W142,K161,O161)*(U151-Y151)-IF(W142,K162,O162)*(U151-Y151)^0.5)/(2*(IF(W142,K160,O160)+IF(W142,K163,O163)*(U151-Y151)^0.5+IF(W142,K164,O164)*(U151-Y151)))<0,0,IF((W147/(U145/IF(W142,1,1)*W149)-IF(W142,K159,O159)-IF(W142,K161,O161)*(U151-Y151)-IF(W142,K162,O162)*(U151-Y151)^0.5)/(2*(IF(W142,K160,O160)+IF(W142,K163,O163)*(U151-Y151)^0.5+IF(W142,K164,O164)*(U151-Y151)))>V188,V188,(W147/(U145/IF(W142,1,1)*W149)-IF(W142,K159,O159)-IF(W142,K161,O161)*(U151-Y151)-IF(W142,K162,O162)*(U151-Y151)^0.5)/(2*(IF(W142,K160,O160)+IF(W142,K163,O163)*(U151-Y151)^0.5+IF(W142,K164,O164)*(U151-Y151))))))) -> 70.83053816 | W156: =+U187 -> 127.5294201 | Z156: =CONCATENATE("Soybean Grain Yield (kg ha",Z155,")") -> Soybean Grain Yield (kg ha⁻¹) | BI156: Avg | BJ156: =+U156 -> 54.98035729 | BK156: =+BJ156^2 -> 3022.839687 | BL156: =+U151*BJ156 -> 6212.780373 | BM156: =U151^0.5*BJ156 -> 584.4492148 | BN156: =+U151^0.5*BK156 -> 32133.22665 | BO156: =U151*BK156 -> 341580.8847
A157: 156 | B157: 96.26485569 | C157: 120 | D157: 2009 | E157: 45 | F157: 44 | G157: 105 | H157: 0 | J157: KSOIL | K157: -0.3699784222 | L157: 0.045536 | M157: -8.124924 | N157: 0 | O157: -0.3699784222 | Q157: VMP @ Profit Max: | T157: 91.95580414 | U157: 91.95580414 | V157: 91.95580414 | Z157: =CONCATENATE("Fertilizer-K Application Rate (kg K ha",Z155,")") -> Fertilizer-K Application Rate (kg K ha⁻¹) | BI157: High | BJ157: =+T156 -> 35.29425102 | BK157: =+BJ157^2 -> 1245.684155 | BL157: =+(U151+Y151)*BJ157 -> 4341.192875 | BM157: =+(U151+Y151)^0.5*BJ157 -> 391.4321794 | BN157: =+(U151+Y151)^0.5*BK157 -> 13815.3056 | BO157: =(U151+Y151)*BK157 -> 153219.1511
A158: 157 | B158: 100 | C158: 160 | D158: 2009 | E158: 45 | F158: 52 | G158: 123 | H158: 0 | J158: KSOIL^.5 | K158: 11.25855885 | L158: 1.221937 | M158: 9.213696 | N158: 0 | O158: 11.25855885 | Q158: UAEX recommendation: | T158: =237-1.61*(U151+Y151) -> 38.97 | U158: =+Y153 -> 51.24313614 | V158: =237-1.61*(U151-Y151) -> 71.17 | BJ158: Coefficient Covariance Matrix as available in Eviews under the View Menu in the Equation Editor
A159: 158 | B159: 76.82333874 | C159: 0 | D159: 2009 | E159: 46 | F159: 6 | G159: 81 | H159: 0 | J159: MKRATE | K159: 1.260773491 | L159: 0.186145 | M159: 6.773063 | N159: 0 | O159: 1.173161194 | T159: =+T156-T158 -> -3.675748982 | U159: =+U156-U158 -> 3.73722115 | V159: =+V156-V158 -> -0.3394618377 | W159: Est. Yield Max | BJ159: K | BK159: K^2 | BL159: S*K | BM159: S^.5*K | BN159: S^.5*K^2 | BO159: S*K^2 | BP159: Low | BQ159: Avg | BR159: High | BW159: English
A160: 159 | B160: 86.54781199 | C160: 40 | D160: 2009 | E160: 46 | F160: 15 | G160: 94 | H160: 0 | J160: MKRATE^2 | K160: -0.004270066746 | L160: 0.000889 | M160: -4.800978 | N160: 0 | O160: -0.003697225193 | Q160: Est. Yield at Profit-Max K: | T160: =IF((+K156+K157*(U151+Y151)+K158*(U151+Y151)^0.5+IF(W142,K159,O159)*T156+IF(W142,K160,O160)*T156^2+IF(W142,K161,O161)*(U151+Y151)*T156+IF(W142,K162,O162)*(U151+Y151)^0.5*T156+IF(W142,K163,O163)*(U151+Y151)^0.5*T156^2+IF(W142,K164,O164)*(U151+Y151)*T156^2)*W149>U149,U149,(+K156+K157*(U151+Y151)+K158*(U151+Y151)^0.5+IF(W142,K159,O159)*T156+IF(W142,K160,O160)*T156^2+IF(W142,K161,O161)*(U151+Y151)*T156+IF(W142,K162,O162)*(U151+Y151)^0.5*T156+IF(W142,K163,O163)*(U151+Y151)^0.5*T156^2+IF(W142,K164,O164)*(U151+Y151)*T156^2)*W149) -> 4007.759534 | U160: =IF((+K156+K157*U151+K158*U151^0.5+IF(W142,K159,O159)*U156+IF(W142,K160,O160)*U156^2+IF(W142,K161,O161)*U151*U156+IF(W142,K162,O162)*U151^0.5*U156+IF(W142,K163,O163)*U151^0.5*U156^2+IF(W142,K164,O164)*(U151)*U156^2)*W149>U149,U149,(+K156+K157*U151+K158*U151^0.5+IF(W142,K159,O159)*U156+IF(W142,K160,O160)*U156^2+IF(W142,K161,O161)*U151*U156+IF(W142,K162,O162)*U151^0.5*U156+IF(W142,K163,O163)*U151^0.5*U156^2+IF(W142,K164,O164)*(U151)*U156^2)*W149) -> 4031.194531 | V160: =IF((+K156+K157*(U151-Y151)+K158*(U151-Y151)^0.5+IF(W142,K159,O159)*V156+IF(W142,K160,O160)*V156^2+IF(W142,K161,O161)*(U151-Y151)*V156+IF(W142,K162,O162)*(U151-Y151)^0.5*V156+IF(W142,K163,O163)*(U151-Y151)^0.5*V156^2+IF(W142,K164,O164)*(U151-Y151)*V156^2)*W149>U149,U149,(+K156+K157*(U151-Y151)+K158*(U151-Y151)^0.5+IF(W142,K159,O159)*V156+IF(W142,K160,O160)*V156^2+IF(W142,K161,O161)*(U151-Y151)*V156+IF(W142,K162,O162)*(U151-Y151)^0.5*V156+IF(W142,K163,O163)*(U151-Y151)^0.5*V156^2+IF(W142,K164,O164)*(U151-Y151)*V156^2)*W149) -> 4052.508363 | W160: =IF((+K156+K157*U151+K158*U151^0.5+IF(W142,K159,O159)*W156+IF(W142,K160,O160)*W156^2+IF(W142,K161,O161)*U151*W156+IF(W142,K162,O162)*U151^0.5*W156+IF(W142,K163,O163)*U151^0.5*W156^2+IF(W142,K164,O164)*(U151)*W156^2)*W149>U149,U149,(+K156+K157*U151+K158*U151^0.5+IF(W142,K159,O159)*W156+IF(W142,K160,O160)*W156^2+IF(W142,K161,O161)*U151*W156+IF(W142,K162,O162)*U151^0.5*W156+IF(W142,K163,O163)*U151^0.5*W156^2+IF(W142,K164,O164)*(U151)*W156^2)*W149) -> 4124.657155 | BI160: KRATE | BJ160: =IF($W$142,BU167,BU160) -> 0.0346500498 | BK160: =IF($W$142,BV167,BV160) -> -0.0001608797525 | BL160: 0.0001690043633 | BM160: -0.005006588313 | BN160: 2.254190923e-05 | BO160: -7.220134567e-07 | BP160: =+BJ155 -> 70.83053816 | BQ160: =+BJ156 -> 54.98035729 | BR160: =+BJ157 -> 35.29425102 | BU160: 0.03000164745 | BV160: -0.0001296173833 | BW160: 0.0001463319492 | BX160: -0.004334940305 | BY160: 1.81615352e-05 | BZ160: -5.817108337e-07
A161: 160 | B161: 94.81361426 | C161: 80 | D161: 2009 | E161: 46 | F161: 32 | G161: 98 | H161: 0 | J161: KSOIL*MKRATE | K161: 0.00555251162 | L161: 0.001058 | M161: 5.247849 | N161: 0 | O161: 0.005166662535 | Q161: Est. Yield at UAEX rec.: | T161: =IF((+K156+K157*(U151+Y151)+K158*(U151+Y151)^0.5+IF(W142,K159,O159)*T158+IF(W142,K160,O160)*T158^2+IF(W142,K161,O161)*(U151+Y151)*T158+IF(W142,K162,O162)*(U151+Y151)^0.5*T158+IF(W142,K163,O163)*(U151+Y151)^0.5*T158^2+IF(W142,K164,O164)*(U151+Y151)*T158^2)*W149>U149,U149,(+K156+K157*(U151+Y151)+K158*(U151+Y151)^0.5+IF(W142,K159,O159)*T158+IF(W142,K160,O160)*T158^2+IF(W142,K161,O161)*(U151+Y151)*T158+IF(W142,K162,O162)*(U151+Y151)^0.5*T158+IF(W142,K163,O163)*(U151+Y151)^0.5*T158^2+IF(W142,K164,O164)*(U151+Y151)*T158^2)*W149) -> 4017.030951 | U161: =IF((+K156+K157*U151+K158*U151^0.5+IF(W142,K159,O159)*U158+IF(W142,K160,O160)*U158^2+IF(W142,K161,O161)*U151*U158+IF(W142,K162,O162)*U151^0.5*U158+IF(W142,K163,O163)*U151^0.5*U158^2+IF(W142,K164,O164)*(U151)*U158^2)*W149>U149,U149,(+K156+K157*U151+K158*U151^0.5+IF(W142,K159,O159)*U158+IF(W142,K160,O160)*U158^2+IF(W142,K161,O161)*U151*U158+IF(W142,K162,O162)*U151^0.5*U158+IF(W142,K163,O163)*U151^0.5*U158^2+IF(W142,K164,O164)*(U151)*U158^2)*W149) -> 4021.317436 | V161: =IF((+K156+K157*(U151-Y151)+K158*(U151-Y151)^0.5+IF(W142,K159,O159)*V158+IF(W142,K160,O160)*V158^2+IF(W142,K161,O161)*(U151-Y151)*V158+IF(W142,K162,O162)*(U151-Y151)^0.5*V158+IF(W142,K163,O163)*(U151-Y151)^0.5*V158^2+IF(W142,K164,O164)*(U151-Y151)*V158^2)*W149>U149,U149,(+K156+K157*(U151-Y151)+K158*(U151-Y151)^0.5+IF(W142,K159,O159)*V158+IF(W142,K160,O160)*V158^2+IF(W142,K161,O161)*(U151-Y151)*V158+IF(W142,K162,O162)*(U151-Y151)^0.5*V158+IF(W142,K163,O163)*(U151-Y151)^0.5*V158^2+IF(W142,K164,O164)*(U151-Y151)*V158^2)*W149) -> 4053.380548 | BI161: KRATE^2 | BJ161: =IF($W$142,BU168,BU161) -> -0.0001608797525 | BK161: 7.910609198e-07 | BL161: -8.278657192e-07 | BM161: 2.394802559e-05 | BN161: -1.166446549e-07 | BO161: 3.946297707e-09 | BP161: =+BK155 -> 5016.965136 | BQ161: =+BK156 -> 3022.839687 | BR161: =+BK157 -> 1245.684155 | BU161: -0.0001296173833 | BV161: 5.930515021e-07 | BW161: -6.669937426e-07 | BX161: 1.929441314e-05 | BY161: -8.744748486e-08 | BZ161: 2.958505121e-09
A162: 161 | B162: 96.75850891 | C162: 120 | D162: 2009 | E162: 46 | F162: 45 | G162: 105 | H162: 0 | J162: KSOIL^.5*MKRATE | K162: -0.1675288894 | L162: 0.027783 | M162: -6.030002 | N162: 0 | O162: -0.1558871544 | Q162: Added Profit in $/acre | T162: =+(T160-T161)*U145/IF(W142,1,1)-(T156-T158)*W147-IF(T158=0,IF(T156=0,0,U153),IF(T156=0,IF(T158>0,-U153,0))) -> 0.07959225296 | U162: =+(U160-U161)*U145/IF(W142,1,1)-(U156-U158)*W147-IF(U158=0,IF(U156=0,0,U153),IF(U156=0,IF(U158>0,-U153,0))) -> 0.09905518224 | V162: =+(V160-V161)*U145/IF(W142,1,1)-(V156-V158)*W147-IF(V158=0,IF(V156=0,0,U153),IF(V156=0,IF(V158>0,-U153,0))) -> 0.0009784118391 | W162: =+(U160-W160)*U145/IF(W142,1,1)-(U156-W156)*W147-IF(W156=0,IF(U156=0,0,U153),IF(U156=0,IF(W156>0,-U153,0))) -> 37.32873032 | BI162: KSOIL*KRATE | BJ162: =IF($W$142,BU169,BU162) -> 0.0001690043633 | BK162: -8.278657192e-07 | BL162: 1.119479919e-06 | BM162: -2.811297293e-05 | BN162: 1.391642103e-07 | BO162: -5.623533231e-09 | BP162: =+BL155 -> 7295.545431 | BQ162: =+BL156 -> 6212.780373 | BR162: =+BL157 -> 4341.192875 | BU162: 0.0001463319492 | BV162: -6.669937426e-07 | BW162: 9.69298516e-07 | BX162: -2.434153796e-05 | BY162: 1.121216344e-07 | BZ162: -4.530760713e-09
A163: 162 | B163: 100 | C163: 160 | D163: 2009 | E163: 46 | F163: 53 | G163: 115 | H163: 0 | J163: KSOIL^.5*MKRATE^2 | K163: 0.0005607463354 | L163: 0.000139 | M163: 4.045355 | N163: 0.0001 | O163: 0.0004855206257 | Q163: Yield change: | T163: =+T161-T160 -> 9.271417533 | U163: =+U161-U160 -> -9.877095186 | V163: =+V161-V160 -> 0.8721858141 | W163: =+W160-U160 -> 93.46262415 | BI163: KSOIL^0.5*KRATE | BJ163: =IF($W$142,BU170,BU163) -> -0.005006588313 | BK163: 2.394802559e-05 | BL163: -2.811297293e-05 | BM163: 0.0007718705403 | BN163: -3.6585277e-06 | BO163: 1.314188741e-07 | BP163: =+BM155 -> 718.8514513 | BQ163: =+BM156 -> 584.4492148 | BR163: =+BM157 -> 391.4321794 | BU163: -0.004334940305 | BV163: 1.929441314e-05 | BW163: -2.434153796e-05 | BX163: 0.0006683219204 | BY163: -2.947597692e-06 | BZ163: 1.058813822e-07
A164: 163 | B164: 78.63397548 | C164: 0 | D164: 2010 | E164: 47 | F164: 1 | G164: 73 | H164: 0 | J164: KSOIL*MKRATE^2 | K164: -1.868703455e-05 | L164: 5.73e-06 | M164: -3.263828 | N164: 0.0012 | O164: -1.618011592e-05 | Q164: K rate | R164: =CONCATENATE("Est. Yield (STK = ",U151,")") -> Est. Yield (STK = 113) | S164: =CONCATENATE("Est. Yield (STK = ",U151-Y151,")") -> Est. Yield (STK = 103) | T164: =CONCATENATE("Est. Yield (STK = ",U151+Y151,")") -> Est. Yield (STK = 123) | AA164: Year | AB164: Potash Fertilizer Price in $/ton | AC164: Soybean Price in $/bu | AD164: Soybean Yield in bu/acre | AE164: $/kg Ps | AF164: $/Mg K | AG164: Y in kg/ha | AI164: $/kg K | BI164: KSOIL0.5*KRATE^2 | BJ164: =IF($W$142,BU171,BU164) -> 2.254190923e-05 | BK164: -1.166446549e-07 | BL164: 1.391642103e-07 | BM164: -3.6585277e-06 | BN164: 1.92140827e-08 | BO164: -7.413790048e-10 | BP164: =+BN155 -> 50916.63515 | BQ164: =+BN156 -> 32133.22665 | BR164: =+BN157 -> 13815.3056 | BU164: 1.81615352e-05 | BV164: -8.744748486e-08 | BW164: 1.121216344e-07 | BX164: -2.947597692e-06 | BY164: 1.440463094e-08 | BZ164: -5.558054018e-10
A165: 164 | B165: 95.79684764 | C165: 45 | D165: 2010 | E165: 47 | F165: 22 | G165: 73 | H165: 0 | Q165: 0 | R165: =IF((+$K$156+$K$157*$U$151+$K$158*$U$151^0.5+$K$159*Q165+$K$160*Q165^2+$K$161*$U$151*Q165+$K$162*$U$151^0.5*Q165+$K$163*$U$151^0.5*Q165^2+$K$164*$U$151*Q165^2)*$W$149>$U$149,$U$149,(+$K$156+$K$157*$U$151+$K$158*$U$151^0.5+$K$159*Q165+$K$160*Q165^2+$K$161*$U$151*Q165+$K$162*$U$151^0.5*Q165+$K$163*$U$151^0.5*Q165^2+$K$164*$U$151*Q165^2)*$W$149) -> 3835.858526 | S165: =IF((+$K$156+$K$157*($U$151-$Y$151)+$K$158*($U$151-$Y$151)^0.5+$K$159*Q165+$K$160*Q165^2+$K$161*($U$151-$Y$151)*Q165+$K$162*($U$151-$Y$151)^0.5*Q165+$K$163*($U$151-$Y$151)^0.5*Q165^2+$K$164*($U$151-$Y$151)*Q165^2)*$W$149>$U$149,$U$149,(+$K$156+$K$157*($U$151-$Y$151)+$K$158*($U$151-$Y$151)^0.5+$K$159*Q165+$K$160*Q165^2+$K$161*($U$151-$Y$151)*Q165+$K$162*($U$151-$Y$151)^0.5*Q165+$K$163*($U$151-$Y$151)^0.5*Q165^2+$K$164*($U$151-$Y$151)*Q165^2)*$W$149) -> 3763.35733 | T165: =IF((+$K$156+$K$157*($U$151+$Y$151)+$K$158*($U$151+$Y$151)^0.5+$K$159*Q165+$K$160*Q165^2+$K$161*($U$151+$Y$151)*Q165+$K$162*($U$151+$Y$151)^0.5*Q165+$K$163*($U$151+$Y$151)^0.5*Q165^2+$K$164*($U$151+$Y$151)*Q165^2)*$W$149>$U$149,$U$149,(+$K$156+$K$157*($U$151+$Y$151)+$K$158*($U$151+$Y$151)^0.5+$K$159*Q165+$K$160*Q165^2+$K$161*($U$151+$Y$151)*Q165+$K$162*($U$151+$Y$151)^0.5*Q165+$K$163*($U$151+$Y$151)^0.5*Q165^2+$K$164*($U$151+$Y$151)*Q165^2)*$W$149) -> 3898.449564 | U165: =ROUNDUP((MAX(BJ175:BJ548,U149)+IF(W142,500,10))/10,0)*10 -> 4720 | AA165: 2009 | AB165: =26.1*20 -> 522 | AC165: 9.66 | AD165: 39 | AE165: =+AC165/60*2204.62/1000 -> 0.35494382 | AF165: =+AB165/2000*2204 -> 575.244 | AG165: =+(AD165*60*0.4536)*2.4711 -> 2622.884846 | AI165: =+AF165/1000/0.49809078131038 -> 1.154897905 | AR165: =CONCATENATE("Obs. Yields (",U151-Y151," < STK < ",U151+Y151,")") -> Obs. Yields (103 < STK < 123) | BI165: KSOIL*KRATE^2 | BJ165: =IF($W$142,BU172,BU165) -> -7.220134567e-07 | BK165: 3.946297707e-09 | BL165: -5.623533231e-09 | BM165: 1.314188741e-07 | BN165: -7.413790048e-10 | BO165: 3.27813103e-11 | BP165: =+BO155 -> 516747.409 | BQ165: =+BO156 -> 341580.8847 | BR165: =+BO157 -> 153219.1511 | BU165: -5.817108337e-07 | BV165: 2.958505121e-09 | BW165: -4.530760713e-09 | BX165: 1.058813822e-07 | BY165: -5.558054018e-10 | BZ165: 2.457586366e-11
A166: 165 | B166: 100 | C166: 90 | D166: 2010 | E166: 47 | F166: 39 | G166: 73 | H166: 0 | K166: Effects Specification | Q166: 2 | R166: =IF((+$K$156+$K$157*$U$151+$K$158*$U$151^0.5+$K$159*Q166+$K$160*Q166^2+$K$161*$U$151*Q166+$K$162*$U$151^0.5*Q166+$K$163*$U$151^0.5*Q166^2+$K$164*$U$151*Q166^2)*$W$149>$U$149,$U$149,(+$K$156+$K$157*$U$151+$K$158*$U$151^0.5+$K$159*Q166+$K$160*Q166^2+$K$161*$U$151*Q166+$K$162*$U$151^0.5*Q166+$K$163*$U$151^0.5*Q166^2+$K$164*$U$151*Q166^2)*$W$149) -> 3844.845757 | S166: =IF((+$K$156+$K$157*($U$151-$Y$151)+$K$158*($U$151-$Y$151)^0.5+$K$159*Q166+$K$160*Q166^2+$K$161*($U$151-$Y$151)*Q166+$K$162*($U$151-$Y$151)^0.5*Q166+$K$163*($U$151-$Y$151)^0.5*Q166^2+$K$164*($U$151-$Y$151)*Q166^2)*$W$149>$U$149,$U$149,(+$K$156+$K$157*($U$151-$Y$151)+$K$158*($U$151-$Y$151)^0.5+$K$159*Q166+$K$160*Q166^2+$K$161*($U$151-$Y$151)*Q166+$K$162*($U$151-$Y$151)^0.5*Q166+$K$163*($U$151-$Y$151)^0.5*Q166^2+$K$164*($U$151-$Y$151)*Q166^2)*$W$149) -> 3774.448398 | T166: =IF((+$K$156+$K$157*($U$151+$Y$151)+$K$158*($U$151+$Y$151)^0.5+$K$159*Q166+$K$160*Q166^2+$K$161*($U$151+$Y$151)*Q166+$K$162*($U$151+$Y$151)^0.5*Q166+$K$163*($U$151+$Y$151)^0.5*Q166^2+$K$164*($U$151+$Y$151)*Q166^2)*$W$149>$U$149,$U$149,(+$K$156+$K$157*($U$151+$Y$151)+$K$158*($U$151+$Y$151)^0.5+$K$159*Q166+$K$160*Q166^2+$K$161*($U$151+$Y$151)*Q166+$K$162*($U$151+$Y$151)^0.5*Q166+$K$163*($U$151+$Y$151)^0.5*Q166^2+$K$164*($U$151+$Y$151)*Q166^2)*$W$149) -> 3905.625911 | U166: =ROUNDDOWN((S165-IF(W142,500,10))/10,0)*10 -> 3260 | AA166: 2010 | AB166: =23*20 -> 460 | AC166: 10.9 | AD166: 39.5 | AE166: =+AC166/60*2204.62/1000 -> 0.4005059667 | AF166: =+AB166/2000*2204 -> 506.92 | AG166: =+(AD166*60*0.4536)*2.4711 -> 2656.511575 | AI166: =+AF166/1000/0.49809078131038 -> 1.017726123 | AR166: =CONCATENATE("Estimated Yield Response to K Fertilizer and Profit-Maximizing Application Rates for a Range of Initial Soil-Test K Values (STK) at Specified Yield Potential") -> Estimated Yield Response to K Fertilizer and Profit-Maximizing Application Rates for a Range of Initial Soil-Test K Values (STK) at Specified Yield Potential | BW166: Metric
A167: 166 | B167: 92.92543021 | C167: 0 | D167: 2010 | E167: 49 | F167: 2 | G167: 73 | H167: 0 | M167: S.D. | N167: Rho | Q167: 5 | R167: 3858.060244 | S167: 3790.76612 | T167: 3916.169192 | AA167: 2011 | AB167: =29.19*20 -> 583.8 | AC167: 12.3 | AD167: 42.2 | AE167: 0.4519471 | AF167: 643.3476 | AG167: 2838.095911 | AI167: 1.291627198 | BU167: 0.0346500498 | BV167: -0.0001608797525 | BW167: 0.0001690043633 | BX167: -0.005006588313 | BY167: 2.254190923e-05 | BZ167: -7.220134567e-07
A168: 167 | B168: 98.47036329 | C168: 40 | D168: 2010 | E168: 49 | F168: 14 | G168: 109 | H168: 0 | Q168: 7 | R168: 3866.69233 | S168: 3801.432016 | T168: 3923.050552 | AA168: 2012 | AB168: =29.8*20 -> 596 | AC168: 14.3 | AD168: 48.3 | AE168: 0.5254344333 | AF168: 656.792 | AG168: 3248.342002 | AI168: 1.318619064 | BU168: -0.0001608797525 | BV168: 7.910609198e-07 | BW168: -8.278657192e-07 | BX168: 2.394802559e-05 | BY168: -1.166446549e-07 | BZ168: 3.946297707e-09
A169: 168 | B169: 100 | C169: 80 | D169: 2010 | E169: 49 | F169: 31 | G169: 115 | H169: 0 | J169: Period random | M169: 1.143795 | N169: 0.0549 | Q169: 10 | R169: 3879.374102 | S169: 3817.11198 | T169: 3933.151351 | AA169: 2013 | AB169: =23.75*20 -> 475 | AC169: 13.1 | AD169: 46.4 | AE169: 0.4813420333 | AF169: 523.45 | AG169: 3120.560433 | AI169: 1.050912845 | BU169: 0.0001690043633 | BV169: -8.278657192e-07 | BW169: 1.119479919e-06 | BX169: -2.811297293e-05 | BY169: 1.391642103e-07 | BZ169: -5.623533231e-09
A170: 169 | B170: 93.30783939 | C170: 120 | D170: 2010 | E170: 49 | F170: 41 | G170: 142 | H170: 0 | J170: Idiosyncratic random | M170: 4.746554 | N170: 0.9451 | Q170: 15 | R170: 3899.8001 | S170: 3842.394911 | T170: 3949.396041 | AA170: 2014 | AB170: =23.6*20 -> 472 | AC170: 10.6 | AD170: 51.9 | AE170: 0.3894828667 | AF170: 520.144 | AG170: 3490.454449 | AI170: 1.044275501 | BU170: -0.005006588313 | BV170: 2.394802559e-05 | BW170: -2.811297293e-05 | BX170: 0.0007718705403 | BY170: -3.6585277e-06 | BZ170: 1.314188741e-07
A171: 170 | B171: 96.94072658 | C171: 160 | D171: 2010 | E171: 49 | F171: 52 | G171: 151 | H171: 0 | Q171: 30 | R171: 3955.750936 | S171: 3911.866124 | T171: 3993.705295 | AA171: 2015 | AB171: =21.27*20 -> 425.4 | AC171: 9.46 | AD171: 51.4 | AE171: 0.3475950867 | AF171: 468.7908 | AG171: 3456.827721 | AI171: 0.9411754194 | BU171: 2.254190923e-05 | BV171: -1.166446549e-07 | BW171: 1.391642103e-07 | BX171: -3.6585277e-06 | BY171: 1.92140827e-08 | BZ171: -7.413790048e-10
A172: 171 | B172: 74.32432432 | C172: 0 | D172: 2011 | E172: 51 | F172: 1 | G172: 167 | H172: 0 | K172: Weighted Statistics | Q172: 45 | R172: 4003.711034 | S172: 3971.770971 | T172: 4031.377327 | AA172: 2016 | AB172: =16.97*20 -> 339.4 | AC172: 9.83 | AD172: 50 | AE172: 0.3611902433 | AF172: 374.0188 | AG172: 3362.67288 | AI172: 0.7509048833 | BP172: 0.9305090901 | BQ172: convert lbs of K20/acre to kg K ha-1 | BU172: -7.220134567e-07 | BV172: 3.946297707e-09 | BW172: -5.623533231e-09 | BX172: 1.314188741e-07 | BY172: -7.413790048e-10 | BZ172: 3.27813103e-11
A173: 172 | B173: 91.89189189 | C173: 40 | D173: 2011 | E173: 51 | F173: 14 | G173: 57 | H173: 0 | Q173: 60 | R173: 4043.680395 | S173: 4022.10945 | T173: 4062.412137 | AA173: 2017 | AB173: =18.98*20 -> 379.6 | AC173: 9.77 | AD173: 52.9 | AE173: 0.3589856233 | AF173: 418.3192 | AG173: 3557.707907 | AI173: 0.8398452967 | BJ173: Actual RelYld Obs Converted to Yield | BN173: Min Yield
A174: 173 | B174: 95.94594595 | C174: 80 | D174: 2011 | E174: 51 | F174: 31 | G174: 63 | H174: 0 | J174: R-squared | K174: 0.611528 | L174: Mean dependent var | N174: 60.15285 | Q174: 75 | R174: 4075.659018 | S174: 4062.881562 | T174: 4086.809724 | AA174: 2018 | AB174: =20*20 -> 400 | AC174: 8.81 | AD174: 53.2 | AE174: 0.3237117033 | AF174: 440.8 | AG174: 3577.883944 | AI174: 0.8849792378 | BI174: RelYld | BJ174: Yield | BK174: Krate | BL174: Ksoil | BN174: =MIN(BN175:BN548) -> 999 | BP174: Mkrate
A175: 174 | B175: 98.64864865 | C175: 120 | D175: 2011 | E175: 51 | F175: 41 | G175: 72 | H175: 0 | J175: Adjusted R-squared | K175: 0.603013 | L175: S.D. dependent var | N175: 8.607961 | Q175: 90 | R175: 4099.646903 | S175: 4094.087306 | T175: 4104.570088 | AA175: Avg. | AB175: =AVERAGE($AB$165:$AB$174) -> 465.32 | AC175: =AVERAGE($AC$165:$AC$174) -> 10.873 | AD175: =AVERAGE($AD$165:$AD$174) -> 47.48 | AE175: =+AC175/60*2204.62/1000 -> 0.3995138877 | AF175: 512.78264 | AG175: =+(AD175*60*0.4536)*2.4711 -> 3193.194167 | AI175: 1.029496347 | BI175: =_xlfn.NUMBERVALUE(IF(AND($G2>=($U$151-$Y$151),$G2<=($U$151+$Y$151)),B2,"")) -> 0 | BJ175: =_xlfn.NUMBERVALUE(IFERROR(+BI175*$W$149,"")) -> 0 | BK175: =_xlfn.NUMBERVALUE(IF(AND($G2>=($U$151-$Y$151),$G2<=($U$151+$Y$151)),C2,"")) -> 0 | BL175: =_xlfn.NUMBERVALUE(IF(AND($G2>=($U$151-$Y$151),$G2<=($U$151+$Y$151)),G2,"")) -> 0 | BN175: =IF(BJ175=0,999,BJ175) -> 999 | BP175: =+BK175*$BP$172 -> 0
A176: 175 | B176: 100 | C176: 160 | D176: 2011 | E176: 51 | F176: 52 | G176: 83 | H176: 0 | J176: S.E. of regression | K176: 4.745963 | L176: Sum squared resid | N176: 8221.32 | Q176: 105 | R176: 4115.644051 | S176: 4115.726684 | T176: 4115.693231 | AA176: Min. | AB176: =MIN($AB$165:$AB$174) -> 339.4 | AC176: =MIN($AC$165:$AC$174) -> 8.81 | AD176: =MIN($AD$165:$AD$174) -> 39 | BI176: =_xlfn.NUMBERVALUE(IF(AND($G3>=($U$151-$Y$151),$G3<=($U$151+$Y$151)),B3,"")) -> 0 | BJ176: =_xlfn.NUMBERVALUE(IFERROR(+BI176*$W$149,"")) -> 0 | BK176: =_xlfn.NUMBERVALUE(IF(AND($G3>=($U$151-$Y$151),$G3<=($U$151+$Y$151)),C3,"")) -> 0 | BL176: =_xlfn.NUMBERVALUE(IF(AND($G3>=($U$151-$Y$151),$G3<=($U$151+$Y$151)),G3,"")) -> 0 | BN176: =IF(BJ176=0,999,BJ176) -> 999 | BP176: =+BK176*$BP$172 -> 0
A177: 176 | B177: 89.65517241 | C177: 0 | D177: 2011 | E177: 53 | F177: 2 | G177: 89 | H177: 0 | J177: F-statistic | K177: 71.82226 | L177: Durbin-Watson stat | N177: 1.923694 | Q177: 120 | R177: 4123.650461 | S177: 4127.799694 | T177: 4120.17915 | AA177: Max. | AB177: =MAX($AB$165:$AB$174) -> 596 | AC177: =MAX($AC$165:$AC$174) -> 14.3 | AD177: =MAX($AD$165:$AD$174) -> 53.2 | BI177: 0 | BJ177: 0 | BK177: 0 | BL177: 0 | BN177: 999 | BP177: 0
A178: 177 | B178: 98.27586207 | C178: 40 | D178: 2011 | E178: 53 | F178: 15 | G178: 113 | H178: 0 | J178: Prob(F-statistic) | K178: 0 | Q178: 135 | R178: 4123.666134 | S178: 4130.306336 | T178: 4118.027848 | BI178: 0 | BJ178: 0 | BK178: 0 | BL178: 0 | BN178: 999 | BP178: 0
A179: 178 | B179: 100 | C179: 80 | D179: 2011 | E179: 53 | F179: 32 | G179: 120 | H179: 0 | Q179: 150 | R179: 4115.691069 | S179: 4123.246612 | T179: 4109.239323 | BI179: 0 | BJ179: 0 | BK179: 0 | BL179: 0 | BN179: 999 | BP179: 0
A180: 179 | B180: 94.82758621 | C180: 120 | D180: 2011 | E180: 53 | F180: 42 | G180: 126 | H180: 0 | K180: Unweighted Statistics | Q180: 165 | R180: 4099.725266 | S180: 4106.62052 | T180: 4093.813575 | BI180: 0 | BJ180: 0 | BK180: 0 | BL180: 0 | BN180: 999 | BP180: 0
A181: 180 | B181: 93.10344828 | C181: 160 | D181: 2011 | E181: 53 | F181: 53 | G181: 143 | H181: 0 | Q181: 180 | R181: 4075.768726 | S181: 4080.428061 | T181: 4071.750605 | BI181: 0 | BJ181: 0 | BK181: 0 | BL181: 0 | BN181: 999 | BP181: 0
A182: 181 | B182: 92.06349206 | C182: 0 | D182: 2012 | E182: 57 | F182: 1 | G182: 164 | H182: 0 | J182: R-squared | K182: 0.605919 | L182: Mean dependent var | N182: 93.9008 | R182: 3835.858526 | S182: 3763.35733 | T182: 3898.449564 | BI182: 0 | BJ182: 0 | BK182: 0 | BL182: 0 | BN182: 999 | BP182: 0
A183: 182 | B183: 98.41269841 | C183: 40 | D183: 2012 | E183: 57 | F183: 14 | G183: 105 | H183: 0 | J183: Sum squared resid | K183: 8692.296 | L183: Durbin-Watson stat | N183: 1.870458 | R183: 3835.858526 | S183: 3763.35733 | T183: 3898.449564 | BI183: 0 | BJ183: 0 | BK183: 0 | BL183: 0 | BN183: 999 | BP183: 0
A184: 183 | B184: 100 | C184: 80 | D184: 2012 | E184: 57 | F184: 31 | G184: 126 | H184: 0 | Q184: Disclaimer: This software is provided ‘as is’ and without warranties as to performance or merchantability. Further, statements may have been made to you about this software, and they do not constitute warranties and shall not be relied upon by the user to use the program or act on its results. This program is provided without any expressed or implied warranties whatsoever. Because the diversity of conditions and hardware under which this program may be used, no warranty of merchantability or warranty of fitness for a particular purpose is offered. The user is advised to test the program thoroughly before relying on it. The user assumes the entire risk of using the program. The authors will not be liable for any claim or damage brought against the user by any third party, nor will the authors be liable for any consequential, indirect, or special damages suffered by the user as a result of the software. Results pertain to silt loam soils common in major rice producing regions of the humid mid-Southern U.S. | BI184: 0 | BJ184: 0 | BK184: 0 | BL184: 0 | BN184: 999 | BP184: 0
A185: 184 | B185: 96.82539683 | C185: 120 | D185: 2012 | E185: 57 | F185: 41 | G185: 142 | H185: 0 | BI185: 0 | BJ185: 0 | BK185: 0 | BL185: 0 | BN185: 999 | BP185: 0
A186: 185 | B186: 96.82539683 | C186: 160 | D186: 2012 | E186: 57 | F186: 52 | G186: 156 | H186: 0 | BI186: 0 | BJ186: 0 | BK186: 0 | BL186: 0 | BN186: 999 | BP186: 0
A187: 186 | B187: 96.875 | C187: 0 | D187: 2012 | E187: 58 | F187: 2 | G187: 185 | H187: 0 | R187: Potash fertilizer needed @ RY = 100 if possible or K max or zero if yield max at negative K: | T187: =IF((IF(W142,K159,O159)+IF(W142,K161,O161)*($U$151+$Y$151)+IF(W142,K162,O162)*($U$151+$Y$151)^0.5)/(-2*(IF(W142,K160,O160)+IF(W142,K163,O163)*($U$151+$Y$151)^0.5+IF(W142,K164,O164)*($U$151+$Y$151)))>$Y$149,$Y$149,(IF(W142,K159,O159)+IF(W142,K161,O161)*($U$151+$Y$151)+IF(W142,K162,O162)*($U$151+$Y$151)^0.5)/(-2*(IF(W142,K160,O160)+IF(W142,K163,O163)*($U$151+$Y$151)^0.5+IF(W142,K164,O164)*($U$151+$Y$151)))) -> 122.6380958 | U187: =IF((IF(W142,K159,O159)+IF(W142,K161,O161)*($U$151)+IF(W142,K162,O162)*($U$151)^0.5)/(-2*(IF(W142,K160,O160)+IF(W142,K163,O163)*($U$151)^0.5+IF(W142,K164,O164)*($U$151)))>$Y$149,$Y$149,(IF(W142,K159,O159)+IF(W142,K161,O161)*($U$151)+IF(W142,K162,O162)*($U$151)^0.5)/(-2*(IF(W142,K160,O160)+IF(W142,K163,O163)*($U$151)^0.5+IF(W142,K164,O164)*($U$151)))) -> 127.5294201 | V187: =IF((IF(W142,K159,O159)+IF(W142,K161,O161)*($U$151-$Y$151)+IF(W142,K162,O162)*($U$151-$Y$151)^0.5)/(-2*(IF(W142,K160,O160)+IF(W142,K163,O163)*($U$151-$Y$151)^0.5+IF(W142,K164,O164)*($U$151-$Y$151)))>$Y$149,$Y$149,(IF(W142,K159,O159)+IF(W142,K161,O161)*($U$151-$Y$151)+IF(W142,K162,O162)*($U$151-$Y$151)^0.5)/(-2*(IF(W142,K160,O160)+IF(W142,K163,O163)*($U$151-$Y$151)^0.5+IF(W142,K164,O164)*($U$151-$Y$151)))) -> 131.4303992 | BI187: 0 | BJ187: 0 | BK187: 0 | BL187: 0 | BN187: 999 | BP187: 0
A188: 187 | B188: 100 | C188: 80 | D188: 2012 | E188: 58 | F188: 32 | G188: 72 | H188: 0 | T188: =IF(T187<0,0,IFERROR((SQRT(T191^2+4*T192*T190)-T191)/(2*T192),$Y$149)) -> 167.4916362 | U188: =IF(U187<0,0,IFERROR((SQRT(U191^2+4*U192*U190)-U191)/(2*U192),$Y$149)) -> 167.4916362 | V188: =IF(V187<0,0,IFERROR((SQRT(V191^2+4*V192*V190)-V191)/(2*V192),$Y$149)) -> 167.4916362 | BI188: 0 | BJ188: 0 | BK188: 0 | BL188: 0 | BN188: 999 | BP188: 0
A189: 188 | B189: 89.85507246 | C189: 0 | D189: 2012 | E189: 59 | F189: 3 | G189: 72 | H189: 0 | BI189: 0 | BJ189: 0 | BK189: 0 | BL189: 0 | BN189: 999 | BP189: 0
A190: 189 | B190: 100 | C190: 80 | D190: 2012 | E190: 59 | F190: 33 | G190: 72 | H190: 0 | S190: c | T190: =100-$K$156-$K$157*(U151+Y151)-$K$158*(U151+Y151)^0.5 -> 7.59778232 | U190: =100-$K$156-$K$157*U151-$K$158*U151^0.5 -> 9.081333814 | V190: =100-$K$156-$K$157*(U151-Y151)-$K$158*(U151-Y151)^0.5 -> 10.79977886 | BI190: 0 | BJ190: 0 | BK190: 0 | BL190: 0 | BN190: 999 | BP190: 0
A191: 190 | B191: 95.83333333 | C191: 0 | D191: 2012 | E191: 60 | F191: 4 | G191: 72 | H191: 0 | S191: a | T191: =IF(W142,K159,O159)+IF(W142,K161,O161)*(U151+Y151)+IF(W142,K162,O162)*(U151+Y151)^0.5 -> 0.08574715663 | U191: =IF(W142,K159,O159)+IF(W142,K161,O161)*(U151)+IF(W142,K162,O162)*(U151)^0.5 -> 0.107350782 | V191: =IF(W142,K159,O159)+IF(W142,K161,O161)*(U151-Y151)+IF(W142,K162,O162)*(U151-Y151)^0.5 -> 0.1324496555 | BI191: 0 | BJ191: 0 | BK191: 0 | BL191: 0 | BN191: 999 | BP191: 0
A192: 191 | B192: 95.83333333 | C192: 45 | D192: 2012 | E192: 60 | F192: 22 | G192: 95 | H192: 0 | S192: b | T192: =+IF(W142,K160,O160)+IF(W142,K163,O163)*(U151+Y151)^0.5+IF(W142,K164,O164)*(U151+Y151) -> -0.0003495942924 | U192: =+IF(W142,K160,O160)+IF(W142,K163,O163)*(U151)^0.5+IF(W142,K164,O164)*(U151) -> -0.0004208863412 | V192: =+IF(W142,K160,O160)+IF(W142,K163,O163)*(U151-Y151)^0.5+IF(W142,K164,O164)*(U151-Y151) -> -0.0005038775514 | BI192: 0 | BJ192: 0 | BK192: 0 | BL192: 0 | BN192: 999 | BP192: 0
A193: 192 | B193: 100 | C193: 90 | D193: 2012 | E193: 60 | F193: 39 | G193: 95 | H193: 0 | BI193: 0 | BJ193: 0 | BK193: 0 | BL193: 0 | BN193: 999 | BP193: 0
A194: 193 | B194: 91.75572519 | C194: 0 | D194: 2012 | E194: 61 | F194: 5 | G194: 95 | H194: 0 | BI194: 0 | BJ194: 0 | BK194: 0 | BL194: 0 | BN194: 999 | BP194: 0
A195: 194 | B195: 99.84732824 | C195: 40 | D195: 2012 | E195: 61 | F195: 15 | G195: 64 | H195: 0 | BI195: 0 | BJ195: 0 | BK195: 0 | BL195: 0 | BN195: 999 | BP195: 0
A196: 195 | B196: 97.40458015 | C196: 80 | D196: 2012 | E196: 61 | F196: 34 | G196: 73 | H196: 0 | BI196: 0 | BJ196: 0 | BK196: 0 | BL196: 0 | BN196: 999 | BP196: 0
A197: 196 | B197: 100 | C197: 120 | D197: 2012 | E197: 61 | F197: 42 | G197: 78 | H197: 0 | BI197: 0 | BJ197: 0 | BK197: 0 | BL197: 0 | BN197: 999 | BP197: 0
A198: 197 | B198: 98.77862595 | C198: 160 | D198: 2012 | E198: 61 | F198: 53 | G198: 82 | H198: 0 | BI198: 0 | BJ198: 0 | BK198: 0 | BL198: 0 | BN198: 999 | BP198: 0
A199: 198 | B199: 72.95081967 | C199: 0 | D199: 2013 | E199: 62 | F199: 1 | G199: 91 | H199: 0 | BI199: 0 | BJ199: 0 | BK199: 0 | BL199: 0 | BN199: 999 | BP199: 0
A200: 199 | B200: 95.49180328 | C200: 40 | D200: 2013 | E200: 62 | F200: 14 | G200: 64 | H200: 0 | BI200: 0 | BJ200: 0 | BK200: 0 | BL200: 0 | BN200: 999 | BP200: 0
... 348 more rows

Sheet K on Soybean
B1: RELYLD | C1: KRATE | D1: YEAR | E1: SITE | F1: YEAROB | G1: KSOIL | H1: DCLAY
A2: 1 | B2: 90.04914005 | C2: 0 | D2: 2004 | E2: 1 | F2: 1 | G2: 101 | H2: 0 | Q2: Rice Price | U2: 10 | V2: $/cwt | Y2: Conventional
A3: 2 | B3: 91.76904177 | C3: 40 | D3: 2004 | E3: 1 | F3: 14 | G3: 101 | H3: 0 | J3: Dependent Variable: RELYLD | Y3: Clearfield
A4: 3 | B4: 89.31203931 | C4: 80 | D4: 2004 | E4: 1 | F4: 31 | G4: 101 | H4: 0 | J4: Method: Panel EGLS (Period random effects) | Q4: Cost of K (0-0-60) | U4: 450 | V4: $/ton
A5: 4 | B5: 100 | C5: 120 | D5: 2004 | E5: 1 | F5: 41 | G5: 101 | H5: 0 | J5: Date: 03/12/19 Time: 15:57 | Y5: Clay
A6: 5 | B6: 96.92874693 | C6: 160 | D6: 2004 | E6: 1 | F6: 52 | G6: 101 | H6: 0 | J6: Sample: 2001 2018 IF KRATE<>135 | Q6: How much K do you currently apply per acre? | U6: 25 | V6: lbs/acre | Y6: Loam
A7: 6 | B7: 77.50865052 | C7: 0 | D7: 2004 | E7: 3 | F7: 2 | G7: 85 | H7: 0 | J7: Periods included: 17
A8: 7 | B8: 82.52595156 | C8: 30 | D8: 2004 | E8: 3 | F8: 12 | G8: 86 | H8: 0 | J8: Cross-sections included: 79 | Q8: What yield do you expect at that application rate? | U8: 180 | V8: bu/acre | Y8: Yes
A9: 8 | B9: 100 | C9: 60 | D9: 2004 | E9: 3 | F9: 23 | G9: 85 | H9: 0 | J9: Total panel (unbalanced) observations: 440 | Y9: No
A10: 9 | B10: 99.30795848 | C10: 90 | D10: 2004 | E10: 3 | F10: 39 | G10: 89 | H10: 0 | J10: Wallace and Hussain estimator of component variances | Q10: Do you use conventional or hybrid seed? | U10: Conventional
A11: 10 | B11: 96.71280277 | C11: 120 | D11: 2004 | E11: 3 | F11: 42 | G11: 95 | H11: 0
A12: 11 | B12: 69.81707317 | C12: 0 | D12: 2004 | E12: 4 | F12: 3 | G12: 73 | H12: 0 | J12: Variable | K12: Coefficient | L12: Std. Error | M12: t-Statistic | N12: Prob. | Q12: What is your soil test K? | U12: 110
A13: 12 | B13: 83.53658537 | C13: 30 | D13: 2004 | E13: 4 | F13: 13 | G13: 80 | H13: 0
A14: 13 | B14: 87.04268293 | C14: 60 | D14: 2004 | E14: 4 | F14: 24 | G14: 78 | H14: 0 | J14: C | K14: 85.53190393 | L14: 1.088768197 | M14: 78.55841503 | N14: 1.523340846e-257 | Q14: Does the field have mostly clayey or loamy soil texture? | U14: Loam
A15: 14 | B15: 91.61585366 | C15: 90 | D15: 2004 | E15: 4 | F15: 40 | G15: 79 | H15: 0 | J15: DRREC | K15: 1.821873436 | L15: 0.6169528489 | M15: 2.953018921 | N15: 0.00331893321
A16: 15 | B16: 100 | C16: 120 | D16: 2004 | E16: 4 | F16: 43 | G16: 85 | H16: 0 | J16: KRATE | K16: 0.1546276126 | L16: 0.01680227412 | M16: 9.202778833 | N16: 1.519289268e-18 | Q16: Do you operate South of I-40? | U16: No
A17: 16 | B17: 74.81203008 | C17: 0 | D17: 2005 | E17: 5 | F17: 1 | G17: 71 | H17: 0 | J17: KRATE^2 | K17: -0.000421958113 | L17: 8.710848e-05 | M17: -4.84405322 | N17: 1.77718926e-06
A18: 17 | B18: 84.02255639 | C18: 30 | D18: 2005 | E18: 5 | F18: 12 | G18: 70 | H18: 0 | J18: DCLFIELD | K18: 2.254139283 | L18: 0.9265560337 | M18: 2.432814855 | N18: 0.01538783875 | Q18: Predicted RELYLD based on above questions: | U18: =+K14+IF($U$16="Yes",K15,0)+$U$6*($U$12*K21+K16+IF($U$10="Clearfield",K23,0))+$U$6^2*(K17+IF($U$14="Clay",K22))+IF($U$14="Clay",K20,0)+IF($U$10="Clearfield",K18,0)+$U$12*K19 -> 93.32878185
A19: 18 | B19: 89.47368421 | C19: 60 | D19: 2005 | E19: 5 | F19: 23 | G19: 81 | H19: 0 | J19: KSOIL | K19: 0.04813541892 | L19: 0.009622753276 | M19: 5.00225014 | N19: 8.265255539e-07
A20: 19 | B20: 94.54887218 | C20: 90 | D20: 2005 | E20: 5 | F20: 39 | G20: 92 | H20: 0 | J20: DCLAY | K20: -3.267803257 | L20: 1.636446995 | M20: -1.996889155 | N20: 0.04646560705 | Q20: Yield/RELYLD | U20: =+U8/U18 -> 1.928665482
A21: 20 | B21: 100 | C21: 120 | D21: 2005 | E21: 5 | F21: 41 | G21: 91 | H21: 0 | J21: KSOIL*KRATE | K21: -0.0003999944219 | L21: 8.797209869e-05 | M21: -4.546832779 | N21: 7.086112312e-06
A22: 21 | B22: 70.80536913 | C22: 0 | D22: 2005 | E22: 6 | F22: 2 | G22: 65 | H22: 0 | J22: DCLAY*KRATE^2 | Q22: dRELYLD/dKRATE | U22: =+K16+U12*K21+IF(U10="Clearfield",K23,0)+2*U6*(K17+IF(U14="Clay",K22)) -> 0.08953032052 | W22: =+K16+U12*K21+IF(U10="Clearfield",K23,0)+2*U28*(K17+IF(U14="Clay",K22)) -> 0.0431645616
A23: 22 | B23: 81.04026846 | C23: 30 | D23: 2005 | E23: 6 | F23: 13 | G23: 68 | H23: 0 | J23: DCLFIELD*KRATE | K23: -0.02087856875 | L23: 0.009566473542 | M23: -2.182472847 | N23: 0.02961379485
A24: 23 | B24: 94.63087248 | C24: 60 | D24: 2005 | E24: 6 | F24: 24 | G24: 63 | H24: 0 | Q24: =CONCATENATE("VMP of K @ KRATE = ",U6," lbs/acre and soil test K of ",U12) -> VMP of K @ KRATE = 25 lbs/acre and soil test K of 110 | U24: =+U22*U2/2.22*U20 -> 0.7778109854 | W24: =+W22*U2/2.22*U20 -> 0.375
A25: 24 | B25: 92.7852349 | C25: 90 | D25: 2005 | E25: 6 | F25: 40 | G25: 83 | H25: 0 | K25: Effects Specification
A26: 25 | B26: 100 | C26: 120 | D26: 2005 | E26: 6 | F26: 42 | G26: 79 | H26: 0 | M26: S.D. | N26: Rho | Q26: Cost per lb of K | U26: =+U4/0.6/2000 -> 0.375
A27: 26 | B27: 96.96394687 | C27: 0 | D27: 2005 | E27: 8 | F27: 3 | G27: 154 | H27: 0
A28: 27 | B28: 100 | C28: 40 | D28: 2005 | E28: 8 | F28: 14 | G28: 154 | H28: 0 | J28: Period random | M28: 1.060097175 | N28: 0.04768826784 | Q28: Profit Maximizing K rate: | U28: =IF((U26/(U2/2.22*U20)-(K16+U12*K21+IF(U10="Clearfield",K23,0)))/(2*(K17+IF(U14="Clay",K22)))>180,180,(U26/(U2/2.22*U20)-(K16+U12*K21+IF(U10="Clearfield",K23,0)))/(2*(K17+IF(U14="Clay",K22)))) -> 79.94118668 | W28: 125 | X28: Alt User K
A29: 28 | B29: 98.86148008 | C29: 80 | D29: 2005 | E29: 8 | F29: 31 | G29: 154 | H29: 0 | J29: Idiosyncratic random | M29: 4.737284535 | N29: 0.9523117322
A30: 29 | B30: 94.30740038 | C30: 120 | D30: 2005 | E30: 8 | F30: 43 | G30: 154 | H30: 0 | Q30: Expected Yield at Profit-Maximizing K rate: | U30: =(+K14+IF(U16="Yes",K15,0)+U28*(U12*K21+K16+IF(U10="Clearfield",K23,0))+U28^2*(K17+IF(U14="Clay",K22))+IF(U14="Clay",K20,0)+IF(U10="Clearfield",K18,0)+U12*K19)*U20 -> 187.0303852 | W30: =(+K14+IF(U16="Yes",K15,0)+W28*(U12*K21+K16+IF(U10="Clearfield",K23,0))+W28^2*(K17+IF(U14="Clay",K22))+IF(U14="Clay",K20,0)+IF(U10="Clearfield",K18,0)+U12*K19)*U20 -> 189.1292434
A31: 30 | B31: 99.24098672 | C31: 160 | D31: 2005 | E31: 8 | F31: 52 | G31: 154 | H31: 0 | K31: Weighted Statistics
A32: 31 | B32: 77.47747748 | C32: 0 | D32: 2005 | E32: 9 | F32: 4 | G32: 72 | H32: 1 | Q32: Added Profit in $/acre | U32: =+(U30-U8)*U2/2.22-(U28-U6)*U26 -> 11.06545677 | W32: =+(W30-U8)*U2/2.22-(W28-U6)*U26 -> 3.622718031
A33: 32 | B33: 85.58558559 | C33: 40 | D33: 2005 | E33: 9 | F33: 15 | G33: 72 | H33: 1 | J33: R-squared | K33: 0.2954420526 | L33: Mean dependent var | N33: 60.43268787
A34: 33 | B34: 97.83783784 | C34: 80 | D34: 2005 | E34: 9 | F34: 32 | G34: 72 | H34: 1 | J34: Adjusted R-squared | K34: 0.2823644109 | L34: S.D. dependent var | N34: 9.884122327 | BH34: K rate | BI34: Exp. Yield
A35: 34 | B35: 98.73873874 | C35: 120 | D35: 2005 | E35: 9 | F35: 44 | G35: 72 | H35: 1 | J35: S.E. of regression | K35: 4.743914196 | L35: Sum squared resid | N35: 9699.535137 | BH35: 0 | BI35: =(+$K$14+IF($U$16="Yes",$K$15,0)+BH35*($U$12*$K$21+$K$16+IF($U$10="Clearfield",$K$23,0))+BH35^2*($K$17+IF($U$14="Clay",$K$22))+IF($U$14="Clay",$K$20,0)+IF($U$10="Clearfield",$K$18,0)+$U$12*$K$19)*$U$20 -> 175.174514
A36: 35 | B36: 100 | C36: 160 | D36: 2005 | E36: 9 | F36: 53 | G36: 72 | H36: 1 | J36: F-statistic | K36: 22.59138605 | L36: Durbin-Watson stat | N36: 2.49064464 | BH36: 10 | BI36: =(+$K$14+IF($U$16="Yes",$K$15,0)+BH36*($U$12*$K$21+$K$16+IF($U$10="Clearfield",$K$23,0))+BH36^2*($K$17+IF($U$14="Clay",$K$22))+IF($U$14="Clay",$K$20,0)+IF($U$10="Clearfield",$K$18,0)+$U$12*$K$19)*$U$20 -> 177.2267808
A37: 36 | B37: 94.12628488 | C37: 0 | D37: 2005 | E37: 10 | F37: 5 | G37: 167 | H37: 0 | J37: Prob(F-statistic) | K37: 7.693327162e-29 | BH37: 20 | BI37: 179.1162844
A38: 37 | B38: 94.71365639 | C38: 40 | D38: 2005 | E38: 10 | F38: 16 | G38: 167 | H38: 0 | BH38: 30 | BI38: 180.8430248
A39: 38 | B39: 97.65051395 | C39: 80 | D39: 2005 | E39: 10 | F39: 33 | G39: 167 | H39: 0 | K39: Unweighted Statistics | BH39: 40 | BI39: 182.407002
A40: 39 | B40: 99.85315712 | C40: 120 | D40: 2005 | E40: 10 | F40: 45 | G40: 167 | H40: 0 | BH40: 50 | BI40: 183.8082159
A41: 40 | B41: 100 | C41: 160 | D41: 2005 | E41: 10 | F41: 54 | G41: 167 | H41: 0 | J41: R-squared | K41: 0.2961173096 | L41: Mean dependent var | N41: 95.92045455 | BH41: 60 | BI41: 185.0466667
A42: 41 | B42: 92.02898551 | C42: 0 | D42: 2005 | E42: 12 | F42: 6 | G42: 108 | H42: 0 | J42: Sum squared resid | K42: 10114.18604 | L42: Durbin-Watson stat | N42: 2.482420507 | BH42: 70 | BI42: 186.1223542
A43: 42 | B43: 94.56521739 | C43: 40 | D43: 2005 | E43: 12 | F43: 17 | G43: 108 | H43: 0 | BH43: 80 | BI43: 187.0352786
A44: 43 | B44: 99.0942029 | C44: 80 | D44: 2005 | E44: 12 | F44: 34 | G44: 108 | H44: 0 | BH44: 90 | BI44: 187.7854397
A45: 44 | B45: 79.89130435 | C45: 120 | D45: 2005 | E45: 12 | F45: 46 | G45: 108 | H45: 0 | BH45: 100 | BI45: 188.3728376
A46: 45 | B46: 100 | C46: 160 | D46: 2005 | E46: 12 | F46: 55 | G46: 108 | H46: 0 | BH46: 110 | BI46: 188.7974724
A47: 46 | B47: 88.08373591 | C47: 0 | D47: 2006 | E47: 13 | F47: 1 | G47: 102 | H47: 0 | M47: =174/192 -> 0.90625 | BH47: 120 | BI47: 189.0593439
A48: 47 | B48: 91.14331723 | C48: 40 | D48: 2006 | E48: 13 | F48: 14 | G48: 102 | H48: 0 | BH48: 130 | BI48: 189.1584521
A49: 48 | B49: 100 | C49: 80 | D49: 2006 | E49: 13 | F49: 31 | G49: 102 | H49: 0 | BH49: 140 | BI49: 189.0947972
A50: 49 | B50: 99.8389694 | C50: 120 | D50: 2006 | E50: 13 | F50: 41 | G50: 102 | H50: 0 | BH50: 150 | BI50: 188.8683791
A51: 50 | B51: 98.71175523 | C51: 160 | D51: 2006 | E51: 13 | F51: 52 | G51: 102 | H51: 0 | BH51: 160 | BI51: 188.4791978
A52: 51 | B52: 92.5087108 | C52: 0 | D52: 2006 | E52: 14 | F52: 2 | G52: 104 | H52: 0 | BH52: 170 | BI52: 187.9272532
A53: 52 | B53: 95.47038328 | C53: 40 | D53: 2006 | E53: 14 | F53: 15 | G53: 104 | H53: 0 | BH53: 180 | BI53: 187.2125455
A54: 53 | B54: 95.47038328 | C54: 80 | D54: 2006 | E54: 14 | F54: 32 | G54: 104 | H54: 0
A55: 54 | B55: 99.30313589 | C55: 120 | D55: 2006 | E55: 14 | F55: 42 | G55: 104 | H55: 0
A56: 55 | B56: 100 | C56: 160 | D56: 2006 | E56: 14 | F56: 53 | G56: 104 | H56: 0
A57: 56 | B57: 96.84741488 | C57: 0 | D57: 2006 | E57: 15 | F57: 3 | G57: 154 | H57: 0
A58: 57 | B58: 94.8297604 | C58: 40 | D58: 2006 | E58: 15 | F58: 16 | G58: 154 | H58: 0 | J58: Dependent Variable: RELYLD | Q58: Predicted RELYLD based on above questions: | U58: =+K69+IF($U$16="Yes",K70,0)+$U$6*($U$12*K76+K71+IF($U$10="Clearfield",K77,0)+IF($U$14="Clay",K78))+$U$6^0.5*K72+IF($U$14="Clay",K75,0)+IF($U$10="Clearfield",K73,0)+$U$12*K74 -> 94.5669452
A59: 58 | B59: 98.73896595 | C59: 80 | D59: 2006 | E59: 15 | F59: 33 | G59: 154 | H59: 0 | J59: Method: Panel EGLS (Period random effects)
A60: 59 | B60: 100 | C60: 120 | D60: 2006 | E60: 15 | F60: 43 | G60: 154 | H60: 0 | J60: Date: 03/13/19 Time: 09:12 | Q60: Yield/RELYLD | U60: =+U8/U58 -> 1.903413498
A61: 60 | B61: 94.95586381 | C61: 160 | D61: 2006 | E61: 15 | F61: 54 | G61: 154 | H61: 0 | J61: Sample: 2001 2018 IF KRATE<>135
A62: 61 | B62: 73.73134328 | C62: 0 | D62: 2006 | E62: 17 | F62: 4 | G62: 86 | H62: 0 | J62: Periods included: 17 | Q62: dRELYLD/dKRATE | U62: =+K71+U12*K76+IF(U10="Clearfield",K77,0)+IF(U14="Clay",K78,0)+0.5*U6^-0.5*K72 -> 0.05961510745 | W62: =+K71+U12*K76+IF(U10="Clearfield",K77,0)+IF(U14="Clay",K78,0)+0.5*U68^-0.5*K72 -> 0.04373721215
A63: 62 | B63: 82.3880597 | C63: 40 | D63: 2006 | E63: 17 | F63: 17 | G63: 86 | H63: 0 | J63: Cross-sections included: 79
A64: 63 | B64: 93.28358209 | C64: 80 | D64: 2006 | E64: 17 | F64: 34 | G64: 86 | H64: 0 | J64: Total panel (unbalanced) observations: 440 | Q64: =CONCATENATE("VMP of K @ KRATE = ",U6," lbs/acre and soil test K of ",U12) -> VMP of K @ KRATE = 25 lbs/acre and soil test K of 110 | U64: =+U62*U2/2.22*U60 -> 0.5111360371 | W64: =+W62*U2/2.22*U60 -> 0.375
A65: 64 | B65: 98.20895522 | C65: 120 | D65: 2006 | E65: 17 | F65: 44 | G65: 86 | H65: 0 | J65: Wallace and Hussain estimator of component variances
A66: 65 | B66: 100 | C66: 160 | D66: 2006 | E66: 17 | F66: 55 | G66: 86 | H66: 0 | Q66: Cost per lb of K | U66: =+U4/0.6/2000 -> 0.375 | W66: =(K71+U12*K76+IF(U10="Clearfield",K77,0)+IF(U14="Clay",K78)+0.5*W68^-0.5*K72)*U2/2.22*U60 -> 1.383980984 | X66: VMP at Alt User K
A67: 66 | B67: 79.68503937 | C67: 0 | D67: 2006 | E67: 20 | F67: 5 | G67: 103 | H67: 0 | J67: Variable | K67: Coefficient | L67: Std. Error | M67: t-Statistic | N67: Prob.
A68: 67 | B68: 87.55905512 | C68: 40 | D68: 2006 | E68: 20 | F68: 18 | G68: 108 | H68: 0 | Q68: Optimal K | U68: =IF(((U66/(U2/2.22*U60)-(K71+U12*K76+IF(U10="Clearfield",K77,0)+IF(U14="Clay",K78,0)))*2/K72)^-2>180,180,((U66/(U2/2.22*U60)-(K71+U12*K76+IF(U10="Clearfield",K77,0)+IF(U14="Clay",K78,0)))*2/K72)^-2) -> 38.36754456 | W68: 5 | X68: Alt User K
A69: 68 | B69: 92.75590551 | C69: 80 | D69: 2006 | E69: 20 | F69: 35 | G69: 118 | H69: 0 | J69: C | K69: 83.57802419 | L69: 1.206595779 | M69: 69.26762523 | N69: 2.275095698e-235
A70: 69 | B70: 100 | C70: 120 | D70: 2006 | E70: 20 | F70: 45 | G70: 131 | H70: 0 | J70: DRREC | K70: 1.901372692 | L70: 0.6112073646 | M70: 3.110847156 | N70: 0.001989737646 | Q70: Expected Yield | U70: =(+K69+IF(U16="Yes",K70,0)+U68*(K71+IF(U10="Clearfield",K77,0)+IF(U14="Clay",K78,0)+U12*K76)+U68^0.5*(K72)+IF(U14="Clay",K75,0)+IF(U10="Clearfield",K73,0)+U12*K74)*U60 -> 181.2932979 | W70: =(K69+IF($U$16="Yes",K70,0)+$W$68*($U$12*K76+K71+IF($U$10="Clearfield",K77,0)+IF($U$14="Clay",K78,0))+$W$68^0.5*K72+IF($U$14="Clay",K75,0)+IF($U$10="Clearfield",K73,0)+$U$12*K74)*U60 -> 176.5329818
A71: 70 | B71: 94.80314961 | C71: 160 | D71: 2006 | E71: 20 | F71: 56 | G71: 133 | H71: 0 | J71: KRATE | K71: 0.05527424609 | L71: 0.01945111966 | M71: 2.841699967 | N71: 0.004700819505
A72: 71 | B72: 77.48344371 | C72: 0 | D72: 2006 | E72: 21 | F72: 6 | G72: 96 | H72: 0 | J72: KRATE^.5 | K72: 0.8235966589 | L72: 0.1795438504 | M72: 4.587161615 | N72: 5.902285465e-06 | Q72: Added Profit in $/acre | U72: =+(U70-U8)*U2/2.22-(U68-U6)*U66 -> 0.8128370095 | W72: =+(W70-U8)*U2/2.22-(W68-U6)*U66 -> -8.117199183
A73: 72 | B73: 85.09933775 | C73: 40 | D73: 2006 | E73: 21 | F73: 19 | G73: 95 | H73: 0 | J73: DCLFIELD | K73: 2.333261436 | L73: 0.9170687768 | M73: 2.544260032 | N73: 0.0112997258
A74: 73 | B74: 92.54966887 | C74: 80 | D74: 2006 | E74: 21 | F74: 36 | G74: 94 | H74: 0 | J74: KSOIL | K74: 0.06763228791 | L74: 0.01098263876 | M74: 6.158109118 | N74: 1.69129018e-09
A75: 74 | B75: 97.84768212 | C75: 120 | D75: 2006 | E75: 21 | F75: 46 | G75: 111 | H75: 0 | J75: DCLAY | K75: -9.296610794 | L75: 2.441795438 | M75: -3.807284857 | N75: 0.0001609195768
A76: 75 | B76: 100 | C76: 160 | D76: 2006 | E76: 21 | F76: 57 | G76: 123 | H76: 0 | J76: KSOIL*KRATE | K76: -0.0007092618593 | L76: 0.0001239922289 | M76: -5.720212189 | N76: 1.99520725e-08 | Q76: K rate | R76: Exp. Yield
A77: 76 | B77: 64.6884273 | C77: 0 | D77: 2007 | E77: 22 | F77: 1 | G77: 60 | H77: 0 | J77: DCLFIELD*KRATE | K77: -0.02113021601 | L77: 0.009446821853 | M77: -2.236753941 | N77: 0.02581434428 | Q77: 0.01 | R77: =(+$K$69+IF($U$16="Yes",$K$70,0)+Q77*($U$12*$K$76+$K$71+IF($U$10="Clearfield",$K$77,0)+IF($U$14="Clay",$K$78,0))+Q77^0.5*($K$72)+IF($U$14="Clay",$K$75,0)+IF($U$10="Clearfield",$K$73,0)+$U$12*$K$74)*$U$60 -> 173.4004141
A78: 77 | B78: 86.64688427 | C78: 40 | D78: 2007 | E78: 22 | F78: 14 | G78: 72 | H78: 0 | J78: DCLAY*KRATE | K78: 0.09240656048 | L78: 0.02766610215 | M78: 3.340064314 | N78: 0.0009106295903 | Q78: 2 | R78: 175.3744827
A79: 78 | B79: 89.91097923 | C79: 80 | D79: 2007 | E79: 22 | F79: 31 | G79: 78 | H79: 0 | Q79: 7 | R79: 177.0886352
A80: 79 | B80: 100 | C80: 120 | D80: 2007 | E80: 22 | F80: 41 | G80: 81 | H80: 0 | K80: Effects Specification | Q80: 15 | R80: 178.666161
A81: 80 | B81: 92.28486647 | C81: 160 | D81: 2007 | E81: 22 | F81: 52 | G81: 96 | H81: 0 | M81: S.D. | N81: Rho | Q81: 25 | R81: 180
A82: 81 | B82: 65.50764951 | C82: 0 | D82: 2007 | E82: 23 | F82: 2 | G82: 71 | H82: 0 | Q82: 45 | R82: 181.8120114
A83: 82 | B83: 91.09874826 | C83: 40 | D83: 2007 | E83: 23 | F83: 15 | G83: 67 | H83: 0 | J83: Period random | M83: 1.099880019 | N83: 0.05237979079 | Q83: 60 | R83: 182.7894705
A84: 83 | B84: 94.01947149 | C84: 80 | D84: 2007 | E84: 23 | F84: 32 | G84: 72 | H84: 0 | J84: Idiosyncratic random | M84: 4.678219447 | N84: 0.9476202092 | Q84: 70 | R84: 183.3294806
A85: 84 | B85: 92.6286509 | C85: 120 | D85: 2007 | E85: 23 | F85: 42 | G85: 78 | H85: 0 | Q85: 80 | R85: 183.8021417
A86: 85 | B86: 100 | C86: 160 | D86: 2007 | E86: 23 | F86: 53 | G86: 97 | H86: 0 | K86: Weighted Statistics | Q86: 90 | R86: 184.2197618
A87: 86 | B87: 82.85302594 | C87: 0 | D87: 2007 | E87: 24 | F87: 3 | G87: 113 | H87: 0 | Q87: 100 | R87: 184.5913025
A88: 87 | B88: 92.93948127 | C88: 40 | D88: 2007 | E88: 24 | F88: 16 | G88: 113 | H88: 0 | J88: R-squared | K88: 0.3131037289 | L88: Mean dependent var | N88: 58.69433819 | Q88: 110 | R88: 184.923529
A89: 88 | B89: 91.6426513 | C89: 80 | D89: 2007 | E89: 24 | F89: 33 | G89: 113 | H89: 0 | J89: Adjusted R-squared | K89: 0.2987268302 | L89: S.D. dependent var | N89: 10.00229228 | Q89: 120 | R89: 185.2216971
A90: 89 | B90: 100 | C90: 120 | D90: 2007 | E90: 24 | F90: 43 | G90: 113 | H90: 0 | J90: S.E. of regression | K90: 4.685069483 | L90: Sum squared resid | N90: 9438.446708 | Q90: 130 | R90: 185.4899866
A91: 90 | B91: 91.93083573 | C91: 160 | D91: 2007 | E91: 24 | F91: 54 | G91: 113 | H91: 0 | J91: F-statistic | K91: 21.77825243 | L91: Durbin-Watson stat | N91: 2.440948805 | Q91: 140 | R91: 185.7317863
A92: 91 | B92: 92.43027888 | C92: 0 | D92: 2007 | E92: 26 | F92: 4 | G92: 102 | H92: 0 | J92: Prob(F-statistic) | K92: 1.9758798e-30 | Q92: 150 | R92: 185.9498893
A93: 92 | B93: 96.21513944 | C93: 40 | D93: 2007 | E93: 26 | F93: 17 | G93: 102 | H93: 0 | Q93: 160 | R93: 186.1466296
A94: 93 | B94: 100 | C94: 80 | D94: 2007 | E94: 26 | F94: 34 | G94: 102 | H94: 0 | K94: Unweighted Statistics | Q94: 170 | R94: 186.3239817
A95: 94 | B95: 95.01992032 | C95: 120 | D95: 2007 | E95: 26 | F95: 44 | G95: 102 | H95: 0 | Q95: 180 | R95: 186.4836333
A96: 95 | B96: 94.22310757 | C96: 160 | D96: 2007 | E96: 26 | F96: 55 | G96: 102 | H96: 0 | J96: R-squared | K96: 0.3119695218 | L96: Mean dependent var | N96: 95.92045455
A97: 96 | B97: 87.73234201 | C97: 0 | D97: 2007 | E97: 27 | F97: 5 | G97: 139 | H97: 0 | J97: Sum squared resid | K97: 9886.403451 | L97: Durbin-Watson stat | N97: 2.431277786
A98: 97 | B98: 88.84758364 | C98: 40 | D98: 2007 | E98: 27 | F98: 18 | G98: 139 | H98: 0
A99: 98 | B99: 100 | C99: 80 | D99: 2007 | E99: 27 | F99: 35 | G99: 139 | H99: 0
A100: 99 | B100: 94.42379182 | C100: 120 | D100: 2007 | E100: 27 | F100: 45 | G100: 139 | H100: 0
A101: 100 | B101: 91.44981413 | C101: 160 | D101: 2007 | E101: 27 | F101: 56 | G101: 139 | H101: 0 | J101: Dependent Variable: RELYLD | Q101: Predicted RELYLD based on above questions: | U101: =+K112+IF($U$16="Yes",K113,0)+LN($U$6)*(K117+$U$12*K120+IF($U$10="Clearfield",K119,0)+IF($U$14="Clay",K118))+IF($U$14="Clay",K116,0)+IF($U$10="Clearfield",K114,0)+$U$12*K115 -> 96.18393227
A102: 101 | B102: 90.23622047 | C102: 0 | D102: 2007 | E102: 28 | F102: 6 | G102: 272 | H102: 1 | J102: Method: Panel EGLS (Period random effects)
A103: 102 | B103: 100 | C103: 40 | D103: 2007 | E103: 28 | F103: 19 | G103: 272 | H103: 1 | J103: Date: 03/13/19 Time: 16:57 | Q103: Yield/RELYLD | U103: =+U8/U101 -> 1.871414443
A104: 103 | B104: 91.33858268 | C104: 80 | D104: 2007 | E104: 28 | F104: 36 | G104: 272 | H104: 1 | J104: Sample: 2001 2018 IF KRATE<>135
A105: 104 | B105: 91.49606299 | C105: 120 | D105: 2007 | E105: 28 | F105: 46 | G105: 272 | H105: 1 | J105: Periods included: 17 | Q105: dRELYLD/dKRATE | U105: =(K117+IF(U14="Clay",K118,0)+IF(U10="Clearfield",K119,0)+U12*K120)/U6 -> 0.01701949554 | W105: =(K117+IF(U14="Clay",K118,0)+IF(U10="Clearfield",K119,0)+U12*K120)/U111 -> 0.04448506867
A106: 105 | B106: 93.22834646 | C106: 160 | D106: 2007 | E106: 28 | F106: 57 | G106: 272 | H106: 1 | J106: Cross-sections included: 79
A107: 106 | B107: 90.35433071 | C107: 0 | D107: 2007 | E107: 30 | F107: 7 | G107: 94 | H107: 0 | J107: Total panel (unbalanced) observations: 440 | Q107: =CONCATENATE("VMP of K @ KRATE = ",U49," lbs/acre and soil test K of ",U55) -> VMP of K @ KRATE = lbs/acre and soil test K of | U107: =+U105*U2/2.22*U103 -> 0.1434708548 | W107: =+W105*U2/2.22*U103 -> 0.375
A108: 107 | B108: 97.44094488 | C108: 40 | D108: 2007 | E108: 30 | F108: 20 | G108: 94 | H108: 0 | J108: Wallace and Hussain estimator of component variances
A109: 108 | B109: 100 | C109: 80 | D109: 2007 | E109: 30 | F109: 37 | G109: 94 | H109: 0 | Q109: Cost per lb of K | U109: =+U4/0.6/2000 -> 0.375 | W109: =(K117+IF(U14="Clay",K118,0)+IF(U10="Clearfield",K119,0)+U12*K120)/W111*U2/2.22*U103 -> 0.717354274 | X109: VMP at Alt User K
A110: 109 | B110: 96.65354331 | C110: 120 | D110: 2007 | E110: 30 | F110: 47 | G110: 94 | H110: 0 | J110: Variable | K110: Coefficient | L110: Std. Error | M110: t-Statistic | N110: Prob.
A111: 110 | B111: 93.30708661 | C111: 160 | D111: 2007 | E111: 30 | F111: 58 | G111: 94 | H111: 0 | Q111: Optimal K | U111: =IF(((K117+IF(U14="Clay",K118,0)+IF(U10="Clearfield",K119,0)+U12*K120)/(U109/(U2/2.22*U103)))>180,180,((K117+IF(U14="Clay",K118,0)+IF(U10="Clearfield",K119,0)+U12*K120)/(U109/(U2/2.22*U103)))) -> 9.564723654 | W111: 5 | X111: Alt User K
A112: 111 | B112: 91.94630872 | C112: 0 | D112: 2007 | E112: 31 | F112: 8 | G112: 94 | H112: 0 | J112: C | K112: 92.04835626 | L112: 0.8118564696 | M112: 113.3800859 | N112: 0
A113: 112 | B113: 96.51006711 | C113: 40 | D113: 2007 | E113: 31 | F113: 21 | G113: 94 | H113: 0 | J113: DRREC | K113: 1.674272927 | L113: 0.6247099459 | M113: 2.680080472 | N113: 0.007642508367 | Q113: Expected Yield | U113: =(+K112+IF(U16="Yes",K113,0)+LN(U111)*(K117+IF(U10="Clearfield",K119,0)+IF(U14="Clay",K118,0)+U12*K120)+IF(U14="Clay",K116,0)+IF(U10="Clearfield",K114,0)+U12*K115)*U103 -> 179.234955 | W113: =(+K112+IF(U16="Yes",K113,0)+LN(W111)*(K117+IF(U10="Clearfield",K119,0)+IF(U14="Clay",K118,0)+U12*K120)+IF(U14="Clay",K116,0)+IF(U10="Clearfield",K114,0)+U12*K115)*U103 -> 178.7184637
A114: 113 | B114: 100 | C114: 80 | D114: 2007 | E114: 31 | F114: 38 | G114: 94 | H114: 0 | J114: DCLFIELD | K114: 0.9538761766 | L114: 0.599352375 | M114: 1.591511465 | N114: 0.1122276617
A115: 114 | B115: 92.08053691 | C115: 120 | D115: 2007 | E115: 31 | F115: 48 | G115: 94 | H115: 0 | J115: KSOIL | K115: 0.02514531757 | L115: 0.007907350482 | M115: 3.179992796 | N115: 0.001579079719 | Q115: Added Profit in $/acre | U115: =+(U113-U8)*U2/2.22-(U111-U6)*U109 -> 2.34207981 | W115: =+(W113-U8)*U2/2.22-(W111-U6)*U109 -> 1.727314174
A116: 115 | B116: 97.18120805 | C116: 160 | D116: 2007 | E116: 31 | F116: 59 | G116: 94 | H116: 0 | J116: DCLAY | K116: -3.488411949 | L116: 1.646380839 | M116: -2.118836581 | N116: 0.03467569419
A117: 116 | B117: 91.5862069 | C117: 0 | D117: 2008 | E117: 32 | F117: 1 | G117: 125 | H117: 0 | J117: LNK | K117: 0.9466911285 | L117: 0.1187053689 | M117: 7.975133199 | N117: 1.383119288e-14
A118: 117 | B118: 95.72413793 | C118: 40 | D118: 2008 | E118: 32 | F118: 14 | G118: 125 | H118: 0 | J118: LNK*DCLAY | K118: 0.4990002373 | L118: 0.2438559311 | M118: 2.046291165 | N118: 0.04133396676 | Q118: K rate | R118: Exp. Yield
A119: 118 | B119: 98.48275862 | C119: 80 | D119: 2008 | E119: 32 | F119: 31 | G119: 125 | H119: 0 | J119: LNK*DCLFIELD | K119: -0.1496455639 | L119: 0.09193539344 | M119: -1.627725279 | N119: 0.1043139117 | Q119: 0.01 | R119: =(+$K$112+IF($U$16="Yes",$K$113,0)+LN(Q119)*($K$117+IF($U$10="Clearfield",$K$119,0)+IF($U$14="Clay",$K$118,0)+$U$12*$K$120)+IF($U$14="Clay",$K$116,0)+IF($U$10="Clearfield",$K$114,0)+$U$12*$K$115)*$U$103 -> 173.7699997
A120: 119 | B120: 96.82758621 | C120: 120 | D120: 2008 | E120: 32 | F120: 41 | G120: 125 | H120: 0 | J120: LNK*KSOIL | K120: -0.004738215818 | L120: 0.001134485983 | M120: -4.176530947 | N120: 3.583942662e-05 | Q120: 2 | R120: 177.9888551
A121: 120 | B121: 100 | C121: 160 | D121: 2008 | E121: 32 | F121: 52 | G121: 125 | H121: 0 | Q121: 5 | R121: 178.7184637
A122: 121 | B122: 89.61748634 | C122: 0 | D122: 2008 | E122: 33 | F122: 2 | G122: 114 | H122: 0 | K122: Effects Specification | Q122: 7 | R122: 178.9863842
A123: 122 | B123: 91.66666667 | C123: 40 | D123: 2008 | E123: 33 | F123: 15 | G123: 114 | H123: 0 | M123: S.D. | N123: Rho | Q123: 10 | R123: 179.2703914
A124: 123 | B124: 87.29508197 | C124: 80 | D124: 2008 | E124: 33 | F124: 32 | G124: 114 | H124: 0 | Q124: 15 | R124: 179.5932483
A125: 124 | B125: 98.36065574 | C125: 120 | D125: 2008 | E125: 33 | F125: 42 | G125: 114 | H125: 0 | J125: Period random | M125: 1.106470735 | N125: 0.05032333769 | Q125: 30 | R125: 180.145176
A126: 125 | B126: 100 | C126: 160 | D126: 2008 | E126: 33 | F126: 53 | G126: 114 | H126: 0 | J126: Idiosyncratic random | M126: 4.806656593 | N126: 0.9496766623 | Q126: 50 | R126: 180.5519276
A127: 126 | B127: 88.4137931 | C127: 0 | D127: 2008 | E127: 34 | F127: 3 | G127: 87 | H127: 0 | Q127: 70 | R127: 180.8198481
A128: 127 | B128: 95.72413793 | C128: 40 | D128: 2008 | E128: 34 | F128: 16 | G128: 87 | H128: 0 | K128: Weighted Statistics | Q128: 90 | R128: 181.0199605
A129: 128 | B129: 98.48275862 | C129: 80 | D129: 2008 | E129: 34 | F129: 33 | G129: 87 | H129: 0 | Q129: 100 | R129: 181.1038552
A130: 129 | B130: 96.82758621 | C130: 120 | D130: 2008 | E130: 34 | F130: 43 | G130: 87 | H130: 0 | J130: R-squared | K130: 0.2740428809 | L130: Mean dependent var | N130: 59.43892963 | Q130: 110 | R130: 181.1797472
A131: 130 | B131: 100 | C131: 160 | D131: 2008 | E131: 34 | F131: 54 | G131: 87 | H131: 0 | J131: Adjusted R-squared | K131: 0.2605680388 | L131: S.D. dependent var | N131: 9.954107887 | Q131: 120 | R131: 181.2490312
A132: 131 | B132: 100 | C132: 0 | D132: 2008 | E132: 35 | F132: 4 | G132: 155 | H132: 0 | J132: S.E. of regression | K132: 4.812796269 | L132: Sum squared resid | N132: 9983.256415 | Q132: 130 | R132: 181.3127663
A133: 132 | B133: 100 | C133: 40 | D133: 2008 | E133: 35 | F133: 17 | G133: 155 | H133: 0 | J133: F-statistic | K133: 20.33737231 | L133: Durbin-Watson stat | N133: 2.371216243 | Q133: 140 | R133: 181.3717757
A134: 133 | B134: 98.6135182 | C134: 80 | D134: 2008 | E134: 35 | F134: 34 | G134: 155 | H134: 0 | J134: Prob(F-statistic) | K134: 3.890647391e-26 | Q134: 150 | R134: 181.4267122
A135: 134 | B135: 100 | C135: 120 | D135: 2008 | E135: 35 | F135: 44 | G135: 155 | H135: 0 | Q135: 160 | R135: 181.4781019
A136: 135 | B136: 98.26689775 | C136: 160 | D136: 2008 | E136: 35 | F136: 55 | G136: 155 | H136: 0 | K136: Unweighted Statistics | Q136: 170 | R136: 181.526375
A137: 136 | B137: 81.4159292 | C137: 0 | D137: 2008 | E137: 38 | F137: 5 | G137: 110 | H137: 0 | Q137: 180 | R137: 181.5718882
A138: 137 | B138: 100 | C138: 40 | D138: 2008 | E138: 38 | F138: 18 | G138: 113 | H138: 0 | J138: R-squared | K138: 0.2734639836 | L138: Mean dependent var | N138: 95.92045455
A139: 138 | B139: 99.70501475 | C139: 80 | D139: 2008 | E139: 38 | F139: 35 | G139: 113 | H139: 0 | J139: Sum squared resid | K139: 10439.69476 | L139: Durbin-Watson stat | N139: 2.364096255
A140: 139 | B140: 97.19764012 | C140: 120 | D140: 2008 | E140: 38 | F140: 45 | G140: 133 | H140: 0
A141: 140 | B141: 100 | C141: 160 | D141: 2008 | E141: 38 | F141: 56 | G141: 147 | H141: 0
A142: 141 | B142: 95.5 | C142: 0 | D142: 2009 | E142: 39 | F142: 1 | G142: 102 | H142: 0 | W142: FALSE
A143: 142 | B143: 98.33333333 | C143: 45 | D143: 2009 | E143: 39 | F143: 22 | G143: 102 | H143: 0 | J143: =0.8301513*2.47105*0.453592 -> 0.930473849 | Q143: Profit-Maximizing K Rate Calculator for Irrigated Soybeans as developed by Dr. M. Popp, Dr. N. Slaton, and Dr. T. Roberts
A144: 143 | B144: 100 | C144: 90 | D144: 2009 | E144: 39 | F144: 39 | G144: 102 | H144: 0
A145: 144 | B145: 90.67669173 | C145: 0 | D145: 2009 | E145: 42 | F145: 2 | G145: 98 | H145: 0 | J145: Dependent Variable: RY | Q145: What is your expected soybean price? | U145: 10 | V145: =IF(W142,CONCATENATE("$ kg",Z155),"$/bu") -> $/bu
A146: 145 | B146: 100 | C146: 60 | D146: 2009 | E146: 42 | F146: 23 | G146: 98 | H146: 0 | J146: Method: Panel EGLS (Period random effects)
A147: 146 | B147: 88.57142857 | C147: 120 | D147: 2009 | E147: 42 | F147: 41 | G147: 98 | H147: 0 | J147: Date: 08/10/20 Time: 15:22 | Q147: What do you expect to pay for muriate of potash fertilizer? | U147: 465 | V147: =IF(W142,CONCATENATE("$ Mg",Z155),"$/ton") -> $/ton | W147: =+U147/IF(W142,1000,2000)/IF(W142,0.49809078131038,0.6) -> 0.3875 | X147: =IF(W142,CONCATENATE("$ kg",Z155," K"),CONCATENATE("$/lb of K",Z153,"O")) -> $/lb of K₂O
A148: 147 | B148: 99.07264297 | C148: 0 | D148: 2009 | E148: 43 | F148: 3 | G148: 104 | H148: 0 | J148: Sample: 2004 2019
A149: 148 | B149: 100 | C149: 60 | D149: 2009 | E149: 43 | F149: 24 | G149: 104 | H149: 0 | J149: Periods included: 16 | Q149: What is the yield potential of your field? | U149: 65 | V149: =IF(W142,CONCATENATE("kg ha",Z155),"bu/acre") -> bu/acre | W149: =+U149/100 -> 0.65 | X149: kg ha-1/relative yield % (100% = yield potential) | Y149: =180*IF(W142,BP172,1) -> 180 | Z149: Max. Fert applied per acre in the experiment
A150: 149 | B150: 95.67233385 | C150: 120 | D150: 2009 | E150: 43 | F150: 42 | G150: 104 | H150: 0 | J150: Cross-sections included: 59 | BV150: Labels
A151: 150 | B151: 86.77165354 | C151: 0 | D151: 2009 | E151: 44 | F151: 4 | G151: 84 | H151: 0 | J151: Total panel (unbalanced) observations: 374 | Q151: What is your soil-test K value (STK) and range? | U151: 75 | V151: =IF(W142,CONCATENATE("mg K kg",Z155),"ppm") -> ppm | W151: Soil test range +/- | Y151: 15 | BI151: High | BJ151: =MMULT($BJ$157:$BO$157,BJ160:BJ165) -> 0.04105731443 | BK151: -0.0001850563203 | BL151: -0.0003133042348 | BM151: 5.234747021e-07 | BN151: -2.124959293e-09 | BO151: 1.35339192e-06 | BP151: =SQRT(MMULT(BJ151:BO151,BR160:BR165))*1.96 -> 1.859479488 | BV151: =CONCATENATE(TEXT(T156,0)," ",BQ154," ",TEXT(BP151,"0.0")) -> 96 ± 1.9
A152: 151 | B152: 92.75590551 | C152: 60 | D152: 2009 | E152: 44 | F152: 25 | G152: 84 | H152: 0 | J152: Wallace and Hussain estimator of component variances | BI152: Avg | BJ152: =MMULT($BJ$156:$BO$156,BJ160:BJ165) -> 0.07717513556 | BK152: -0.0003480400464 | BL152: -0.0007855572868 | BM152: 1.730212211e-06 | BN152: -7.652503292e-09 | BO152: 3.510564817e-06 | BP152: =SQRT(MMULT(BJ152:BO152,BQ160:BQ165))*1.96 -> 2.426539723 | BQ152: 95% C.I. of profit maximizing rate at conditional mean | BV152: =CONCATENATE(TEXT(U156,0)," ",BQ154," ",TEXT(BP152,"0.0")) -> 110 ± 2.4
A153: 152 | B153: 100 | C153: 120 | D153: 2009 | E153: 44 | F153: 43 | G153: 84 | H153: 0 | J153: White cross-section standard errors & covariance (d.f. corrected) | Q153: What is your cost to apply fertilizer (equipment, labor, fuel or custom)? | U153: 7 | V153: =IF(W142,CONCATENATE("$ ha",Z155),"$/acre") -> $/acre | W153: =CONCATENATE("...your rate in ",IF(W142,CONCATENATE("kg K ha",Z155),CONCATENATE("lbs of K",Z153,"O/acre")),":") -> ...your rate in lbs of K₂O/acre: | Y153: =(237-1.61*U151) -> 116.25 | Z153: ₂ | BI153: Low | BJ153: =MMULT($BJ$155:$BO$155,BJ160:BJ165) -> 0.1158084005 | BK153: =MMULT($BJ$155:$BO$155,BK160:BK165) -> -0.0005196366106 | BL153: -0.001298712984 | BM153: 3.065044231e-06 | BN153: -1.365405121e-08 | BO153: 5.812029748e-06 | BP153: =SQRT(MMULT(BJ153:BO153,BP160:BP165))*1.96 -> 3.222314231 | BV153: =CONCATENATE(TEXT(V156,0)," ",BQ154," ",TEXT(BP153,"0.0")) -> 120 ± 3.2
A154: 153 | B154: 66.2139219 | C154: 0 | D154: 2009 | E154: 45 | F154: 5 | G154: 85 | H154: 0 | J154: Variable | K154: Coefficient | L154: Std. Error | M154: t-Statistic | N154: Prob. | O154: English | Q154: =CONCATENATE("Profit change comparing applying at ",TEXT(ROUND(U156,1),"0.0"),IF(W142,CONCATENATE(" kg K ha",Z155),CONCATENATE("lb K",Z153,"O/acre"))," to no fertilizer:") -> Profit change comparing applying at 109.6lb K₂O/acre to no fertilizer: | U154: =+U160*$U$145/IF(W142,1,1)-U156*$W$147-IF(U156>0,$U$153)-R165*$U$145/IF(W142,1,1) -> 48.93353108 | V154: =IF(W142,CONCATENATE("$ ha",Z155),"$/acre") -> $/acre | W154: ...to your rate: | Y154: =+U162 -> 0.2053805424 | Z154: =CONCATENATE("Fertilizer-K Application Rate (lbs K",Z153,"O/acre)") -> Fertilizer-K Application Rate (lbs K₂O/acre) | BQ154: ±
A155: 154 | B155: 77.58913413 | C155: 40 | D155: 2009 | E155: 45 | F155: 14 | G155: 99 | H155: 0 | T155: =CONCATENATE(U151+Y151," ppm soil K") -> 90 ppm soil K | U155: =CONCATENATE(U151," ppm soil K") -> 75 ppm soil K | V155: =CONCATENATE(U151-Y151," ppm soil K") -> 60 ppm soil K | W155: K yield max | Z155: ⁻¹ | BI155: Low | BJ155: =+V156 -> 119.6099908 | BK155: =+BJ155^2 -> 14306.54989 | BL155: =+(U151-Y151)*BJ155 -> 7176.599446 | BM155: =+(U151-Y151)^2*BJ155 -> 430595.9668 | BN155: =+(U151-Y151)^2*BK155 -> 51503579.61 | BO155: =+(U151-Y151)*BK155 -> 858392.9935
A156: 155 | B156: 83.36162988 | C156: 80 | D156: 2009 | E156: 45 | F156: 31 | G156: 101 | H156: 0 | J156: C | K156: 60.01264683 | L156: 3.585006728 | M156: 16.73989797 | N156: 4.429219294e-47 | O156: 59.93589851 | Q156: Profit Maximizing K rate: | T156: =IF((IF(W142,K159,O159)+2*IF(W142,K160,O160)*0.1+IF(W142,K161,O161)*(U151+Y151)+IF(W142,K162,O162)*(U151+Y151)^2+2*IF(W142,K163,O163)*(U151+Y151)^2*0.1+2*IF(W142,K164,O164)*(U151+Y151)*0.1)<0,0,IF(((IF(W142,K159,O159)+2*IF(W142,K160,O160)*Y149+IF(W142,K161,O161)*(U151+Y151)+IF(W142,K162,O162)*(U151+Y151)^2+2*IF(W142,K163,O163)*(U151+Y151)^2*Y149+2*IF(W142,K164,O164)*(U151+Y151)*Y149)*U145/IF(W142,1,1)*W149)>W147,IF(Y149<T188,Y149,T188),IF((W147/(U145/IF(W142,1,1)*W149)-IF(W142,K159,O159)-IF(W142,K161,O161)*(U151+Y151)-IF(W142,K162,O162)*(U151+Y151)^2)/(2*(IF(W142,K160,O160)+IF(W142,K163,O163)*(U151+Y151)^2+IF(W142,K164,O164)*(U151+Y151)))<0,0,IF((W147/(U145/IF(W142,1,1)*W149)-IF(W142,K159,O159)-IF(W142,K161,O161)*(U151+Y151)-IF(W142,K162,O162)*(U151+Y151)^2)/(2*(IF(W142,K160,O160)+IF(W142,K163,O163)*(U151+Y151)^2+IF(W142,K164,O164)*(U151+Y151)))>T188,T188,(W147/(U145/IF(W142,1,1)*W149)-IF(W142,K159,O159)-IF(W142,K161,O161)*(U151+Y151)-IF(W142,K162,O162)*(U151+Y151)^2)/(2*(IF(W142,K160,O160)+IF(W142,K163,O163)*(U151+Y151)^2+IF(W142,K164,O164)*(U151+Y151))))))) -> 95.99987288 | U156: =IF((IF(W142,K159,O159)+2*IF(W142,K160,O160)*0.1+IF(W142,K161,O161)*(U151)+IF(W142,K162,O162)*(U151)^2+2*IF(W142,K163,O163)*(U151)^2*0.1+2*IF(W142,K164,O164)*(U151)*0.1)<0,0,IF(((IF(W142,K159,O159)+2*IF(W142,K160,O160)*Y149+IF(W142,K161,O161)*(U151)+IF(W142,K162,O162)*(U151)^2+2*IF(W142,K163,O163)*(U151)^2*Y149+2*IF(W142,K164,O164)*(U151)*Y149)*U145/IF(W142,1,1)*W149)>W147,IF(Y149<U188,Y149,U188),IF((W147/(U145/IF(W142,1,1)*W149)-IF(W142,K159,O159)-IF(W142,K161,O161)*(U151)-IF(W142,K162,O162)*(U151)^2)/(2*(IF(W142,K160,O160)+IF(W142,K163,O163)*(U151)^2+IF(W142,K164,O164)*(U151)))<0,0,IF((W147/(U145/IF(W142,1,1)*W149)-IF(W142,K159,O159)-IF(W142,K161,O161)*(U151)-IF(W142,K162,O162)*(U151)^2)/(2*(IF(W142,K160,O160)+IF(W142,K163,O163)*(U151)^2+IF(W142,K164,O164)*(U151)))>U188,U188,(W147/(U145/IF(W142,1,1)*W149)-IF(W142,K159,O159)-IF(W142,K161,O161)*(U151)-IF(W142,K162,O162)*(U151)^2)/(2*(IF(W142,K160,O160)+IF(W142,K163,O163)*(U151)^2+IF(W142,K164,O164)*(U151))))))) -> 109.6081887 | V156: =IF((IF(W142,K159,O159)+2*IF(W142,K160,O160)*0.1+IF(W142,K161,O161)*(U151-Y151)+IF(W142,K162,O162)*(U151-Y151)^2+2*IF(W142,K163,O163)*(U151-Y151)^2*0.1+2*IF(W142,K164,O164)*(U151-Y151)*0.1)<0,0,IF(((IF(W142,K159,O159)+2*IF(W142,K160,O160)*Y149+IF(W142,K161,O161)*(U151-Y151)+IF(W142,K162,O162)*(U151-Y151)^2+2*IF(W142,K163,O163)*(U151-Y151)^2*Y149+2*IF(W142,K164,O164)*(U151-Y151)*Y149)*U145/IF(W142,1,1)*W149)>W147,IF(Y149<V188,Y149,V188),IF((W147/(U145/IF(W142,1,1)*W149)-IF(W142,K159,O159)-IF(W142,K161,O161)*(U151-Y151)-IF(W142,K162,O162)*(U151-Y151)^2)/(2*(IF(W142,K160,O160)+IF(W142,K163,O163)*(U151-Y151)^2+IF(W142,K164,O164)*(U151-Y151)))<0,0,IF((W147/(U145/IF(W142,1,1)*W149)-IF(W142,K159,O159)-IF(W142,K161,O161)*(U151-Y151)-IF(W142,K162,O162)*(U151-Y151)^2)/(2*(IF(W142,K160,O160)+IF(W142,K163,O163)*(U151-Y151)^2+IF(W142,K164,O164)*(U151-Y151)))>V188,V188,(W147/(U145/IF(W142,1,1)*W149)-IF(W142,K159,O159)-IF(W142,K161,O161)*(U151-Y151)-IF(W142,K162,O162)*(U151-Y151)^2)/(2*(IF(W142,K160,O160)+IF(W142,K163,O163)*(U151-Y151)^2+IF(W142,K164,O164)*(U151-Y151))))))) -> 119.6099908 | W156: =+U187 -> 151.2237232 | Z156: =CONCATENATE("Soybean Grain Yield (kg ha",Z155,")") -> Soybean Grain Yield (kg ha⁻¹) | BI156: Avg | BJ156: =+U156 -> 109.6081887 | BK156: =+BJ156^2 -> 12013.95504 | BL156: =+U151*BJ156 -> 8220.614155 | BM156: =U151^2*BJ156 -> 616546.0616 | BN156: =+U151^2*BK156 -> 67578497.08 | BO156: =U151*BK156 -> 901046.6278
A157: 156 | B157: 96.26485569 | C157: 120 | D157: 2009 | E157: 45 | F157: 44 | G157: 105 | H157: 0 | J157: KSOIL | K157: 0.3538087627 | L157: 0.03899492056 | M157: 9.073201269 | N157: 7.294997935e-18 | O157: 0.3542995066 | Q157: VMP @ Profit Max: | T157: =IF((K159+2*K160*T156+K161*(U151+Y151)+K162*(U151+Y151)^0.5+2*K163*(U151+Y151)^0.5*T156+2*K164*(U151+Y151)*T156)*U145*W149<0,"na",(K159+2*K160*T156+K161*(U151+Y151)+K162*(U151+Y151)^0.5+2*K163*(U151+Y151)^0.5*T156+2*K164*(U151+Y151)*T156)*U145*W149) -> 0.1309086131 | U157: =IF((K159+2*K160*U156+K161*(U151)+K162*(U151)^0.5+2*K163*(U151)^0.5*U156+2*K164*(U151)*U156)*U145*W149<0,"na",(K159+2*K160*U156+K161*(U151)+K162*(U151)^0.5+2*K163*(U151)^0.5*U156+2*K164*(U151)*U156)*U145*W149) -> 0.2064303975 | V157: =IF((K159+2*K160*V156+K161*(U151-Y151)+K162*(U151-Y151)^0.5+2*K163*(U151-Y151)^0.5*V156+2*K164*(U151-Y151)*V156)*U145*W149<0,"na",(K159+2*K160*V156+K161*(U151-Y151)+K162*(U151-Y151)^0.5+2*K163*(U151-Y151)^0.5*V156+2*K164*(U151-Y151)*V156)*U145*W149) -> 0.234961111 | Z157: =CONCATENATE("Fertilizer-K Application Rate (kg K ha",Z155,")") -> Fertilizer-K Application Rate (kg K ha⁻¹) | BI157: High | BJ157: =+T156 -> 95.99987288 | BK157: =+BJ157^2 -> 9215.975592 | BL157: =+(U151+Y151)*BJ157 -> 8639.988559 | BM157: =+(U151+Y151)^2*BJ157 -> 777598.9703 | BN157: =+(U151+Y151)^2*BK157 -> 74649402.3 | BO157: =(U151+Y151)*BK157 -> 829437.8033
A158: 157 | B158: 100 | C158: 160 | D158: 2009 | E158: 45 | F158: 52 | G158: 123 | H158: 0 | J158: KSOIL^2 | K158: -0.0007615153282 | L158: 0.000107035554 | M158: -7.114601645 | N158: 5.975226827e-12 | O158: -0.0007626497765 | Q158: UAEX recommendation: | T158: =IF((237-1.61*(U151+Y151))*0.930509090050236<0,0,(237-1.61*(U151+Y151))*0.930509090050236) -> 85.69988719 | U158: =+Y153 -> 116.25 | V158: =IF((237-1.61*(U151-Y151))*0.930509090050236<0,0,(237-1.61*(U151-Y151))*0.930509090050236) -> 130.6434762 | BJ158: Coefficient Covariance Matrix as available in Eviews under the View Menu in the Equation Editor
A159: 158 | B159: 76.82333874 | C159: 0 | D159: 2009 | E159: 46 | F159: 6 | G159: 81 | H159: 0 | J159: MKRATE | K159: 0.5584222624 | L159: 0.08932162353 | M159: 6.251814962 | N159: 1.133541445e-09 | O159: 0.515588092 | T159: =+T156-T158 -> 10.29998568 | U159: =+U156-U158 -> -6.64181127 | V159: =+V156-V158 -> -11.03348548 | W159: Est. Yield Max | BJ159: K | BK159: K^2 | BL159: S*K | BM159: S^2*K | BN159: S^2*K^2 | BO159: S*K^2 | BP159: Low | BQ159: Avg | BR159: High | BW159: English
A160: 159 | B160: 86.54781199 | C160: 40 | D160: 2009 | E160: 46 | F160: 15 | G160: 94 | H160: 0 | J160: MKRATE^2 | K160: -0.001895548971 | L160: 0.0004438597985 | M160: -4.270602963 | N160: 2.48921076e-05 | O160: -0.001611024819 | Q160: Est. Yield at Profit-Max K: | T160: =IF((+K156+K157*(U151+Y151)+K158*(U151+Y151)^2+IF(W142,K159,O159)*T156+IF(W142,K160,O160)*T156^2+IF(W142,K161,O161)*(U151+Y151)*T156+IF(W142,K162,O162)*(U151+Y151)^2*T156+IF(W142,K163,O163)*(U151+Y151)^2*T156^2+IF(W142,K164,O164)*(U151+Y151)*T156^2)*W149>U149,U149,(+K156+K157*(U151+Y151)+K158*(U151+Y151)^2+IF(W142,K159,O159)*T156+IF(W142,K160,O160)*T156^2+IF(W142,K161,O161)*(U151+Y151)*T156+IF(W142,K162,O162)*(U151+Y151)^2*T156+IF(W142,K163,O163)*(U151+Y151)^2*T156^2+IF(W142,K164,O164)*(U151+Y151)*T156^2)*W149) -> 62.88355921 | U160: =IF((+K156+K157*U151+K158*U151^2+IF(W142,K159,O159)*U156+IF(W142,K160,O160)*U156^2+IF(W142,K161,O161)*U151*U156+IF(W142,K162,O162)*U151^2*U156+IF(W142,K163,O163)*U151^2*U156^2+IF(W142,K164,O164)*(U151)*U156^2)*W149>U149,U149,(+K156+K157*U151+K158*U151^2+IF(W142,K159,O159)*U156+IF(W142,K160,O160)*U156^2+IF(W142,K161,O161)*U151*U156+IF(W142,K162,O162)*U151^2*U156+IF(W142,K163,O163)*U151^2*U156^2+IF(W142,K164,O164)*(U151)*U156^2)*W149) -> 63.31277763 | V160: =IF((+K156+K157*(U151-Y151)+K158*(U151-Y151)^2+IF(W142,K159,O159)*V156+IF(W142,K160,O160)*V156^2+IF(W142,K161,O161)*(U151-Y151)*V156+IF(W142,K162,O162)*(U151-Y151)^2*V156+IF(W142,K163,O163)*(U151-Y151)^2*V156^2+IF(W142,K164,O164)*(U151-Y151)*V156^2)*W149>U149,U149,(+K156+K157*(U151-Y151)+K158*(U151-Y151)^2+IF(W142,K159,O159)*V156+IF(W142,K160,O160)*V156^2+IF(W142,K161,O161)*(U151-Y151)*V156+IF(W142,K162,O162)*(U151-Y151)^2*V156+IF(W142,K163,O163)*(U151-Y151)^2*V156^2+IF(W142,K164,O164)*(U151-Y151)*V156^2)*W149) -> 63.72767334 | W160: =IF((+K156+K157*U151+K158*U151^2+IF(W142,K159,O159)*W156+IF(W142,K160,O160)*W156^2+IF(W142,K161,O161)*U151*W156+IF(W142,K162,O162)*U151^2*W156+IF(W142,K163,O163)*U151^2*W156^2+IF(W142,K164,O164)*(U151)*W156^2)*W149>U149,U149,(+K156+K157*U151+K158*U151^2+IF(W142,K159,O159)*W156+IF(W142,K160,O160)*W156^2+IF(W142,K161,O161)*U151*W156+IF(W142,K162,O162)*U151^2*W156+IF(W142,K163,O163)*U151^2*W156^2+IF(W142,K164,O164)*(U151)*W156^2)*W149) -> 64.11907861 | BI160: KRATE | BJ160: =IF($W$142,BU167,BU160) -> 0.006153623978 | BK160: =IF($W$142,BV167,BV160) -> -2.902443715e-05 | BL160: -7.77397736e-05 | BM160: 1.986694516e-07 | BN160: -9.392180491e-10 | BO160: 3.678351258e-07 | BP160: =+BJ155 -> 119.6099908 | BQ160: =+BJ156 -> 109.6081887 | BR160: =+BJ157 -> 95.99987288 | BU160: 0.006153623978 | BV160: -2.902443715e-05 | BW160: -7.77397736e-05 | BX160: 1.986694516e-07 | BY160: -9.392180491e-10 | BZ160: 3.678351258e-07
A161: 160 | B161: 94.81361426 | C161: 80 | D161: 2009 | E161: 46 | F161: 32 | G161: 98 | H161: 0 | J161: KSOIL*MKRATE | K161: -0.005150455329 | L161: 0.0009872529011 | M161: -5.216956388 | N161: 3.056027235e-07 | O161: -0.004757942336 | Q161: Est. Yield at UAEX rec.: | T161: =IF((+K156+K157*(U151+Y151)+K158*(U151+Y151)^2+IF(W142,K159,O159)*T158+IF(W142,K160,O160)*T158^2+IF(W142,K161,O161)*(U151+Y151)*T158+IF(W142,K162,O162)*(U151+Y151)^2*T158+IF(W142,K163,O163)*(U151+Y151)^2*T158^2+IF(W142,K164,O164)*(U151+Y151)*T158^2)*W149>U149,U149,(+K156+K157*(U151+Y151)+K158*(U151+Y151)^2+IF(W142,K159,O159)*T158+IF(W142,K160,O160)*T158^2+IF(W142,K161,O161)*(U151+Y151)*T158+IF(W142,K162,O162)*(U151+Y151)^2*T158+IF(W142,K163,O163)*(U151+Y151)^2*T158^2+IF(W142,K164,O164)*(U151+Y151)*T158^2)*W149) -> 62.44452544 | U161: =IF((+K156+K157*U151+K158*U151^2+IF(W142,K159,O159)*U158+IF(W142,K160,O160)*U158^2+IF(W142,K161,O161)*U151*U158+IF(W142,K162,O162)*U151^2*U158+IF(W142,K163,O163)*U151^2*U158^2+IF(W142,K164,O164)*(U151)*U158^2)*W149>U149,U149,(+K156+K157*U151+K158*U151^2+IF(W142,K159,O159)*U158+IF(W142,K160,O160)*U158^2+IF(W142,K161,O161)*U151*U158+IF(W142,K162,O162)*U151^2*U158+IF(W142,K163,O163)*U151^2*U158^2+IF(W142,K164,O164)*(U151)*U158^2)*W149) -> 63.54960976 | V161: =IF((+K156+K157*(U151-Y151)+K158*(U151-Y151)^2+IF(W142,K159,O159)*V158+IF(W142,K160,O160)*V158^2+IF(W142,K161,O161)*(U151-Y151)*V158+IF(W142,K162,O162)*(U151-Y151)^2*V158+IF(W142,K163,O163)*(U151-Y151)^2*V158^2+IF(W142,K164,O164)*(U151-Y151)*V158^2)*W149>U149,U149,(+K156+K157*(U151-Y151)+K158*(U151-Y151)^2+IF(W142,K159,O159)*V158+IF(W142,K160,O160)*V158^2+IF(W142,K161,O161)*(U151-Y151)*V158+IF(W142,K162,O162)*(U151-Y151)^2*V158+IF(W142,K163,O163)*(U151-Y151)^2*V158^2+IF(W142,K164,O164)*(U151-Y151)*V158^2)*W149) -> 64.08656864 | BI161: KRATE^2 | BJ161: =IF($W$142,BU168,BU161) -> -2.902443715e-05 | BK161: 1.418102744e-07 | BL161: 3.681021432e-07 | BM161: -9.415661121e-10 | BN161: 4.620038619e-12 | BO161: -1.806952436e-09 | BP161: =+BK155 -> 14306.54989 | BQ161: =+BK156 -> 12013.95504 | BR161: =+BK157 -> 9215.975592 | BU161: -2.902443715e-05 | BV161: 1.418102744e-07 | BW161: 3.681021432e-07 | BX161: -9.415661121e-10 | BY161: 4.620038619e-12 | BZ161: -1.806952436e-09
A162: 161 | B162: 96.75850891 | C162: 120 | D162: 2009 | E162: 46 | F162: 45 | G162: 105 | H162: 0 | J162: KSOIL^2*MKRATE | K162: 1.114166895e-05 | L162: 2.528337922e-06 | M162: 4.406716703 | N162: 1.381572918e-05 | O162: 1.029149839e-05 | Q162: Added Profit in $/acre | T162: =+(T160-T161)*U145/IF(W142,1,1)-(T156-T158)*W147-IF(T158=0,IF(T156=0,0,U153),IF(T156=0,IF(T158>0,-U153,0))) -> 0.3990932687 | U162: =+(U160-U161)*U145/IF(W142,1,1)-(U156-U158)*W147-IF(U158=0,IF(U156=0,0,U153),IF(U156=0,IF(U158>0,-U153,0))) -> 0.2053805424 | V162: =+(V160-V161)*U145/IF(W142,1,1)-(V156-V158)*W147-IF(V158=0,IF(V156=0,0,U153),IF(V156=0,IF(V158>0,-U153,0))) -> 0.6865225541 | W162: =+(U160-W160)*U145/IF(W142,1,1)-(U156-W156)*W147-IF(W156=0,IF(U156=0,0,U153),IF(U156=0,IF(W156>0,-U153,0))) -> 8.063009795 | BI162: KSOIL*KRATE | BJ162: -7.77397736e-05 | BK162: 3.681021432e-07 | BL162: 1.05864846e-06 | BM162: -2.843675092e-09 | BN162: 1.3607416e-11 | BO162: -5.056404994e-09 | BP162: =+BL155 -> 7176.599446 | BQ162: =+BL156 -> 8220.614155 | BR162: =+BL157 -> 8639.988559 | BU162: -7.77397736e-05 | BV162: 3.681021432e-07 | BW162: 1.05864846e-06 | BX162: -2.843675092e-09 | BY162: 1.3607416e-11 | BZ162: -5.056404994e-09
A163: 162 | B163: 100 | C163: 160 | D163: 2009 | E163: 46 | F163: 53 | G163: 115 | H163: 0 | J163: KSOIL^2*MKRATE^2 | K163: -3.614401676e-08 | L163: 1.184281091e-08 | M163: -3.051979554 | N163: 0.002439868623 | O163: -3.06921373e-08 | Q163: Yield change: | T163: =+T161-T160 -> -0.4390337721 | U163: =+U161-U160 -> 0.2368321325 | V163: =+V161-V160 -> 0.3588953068 | W163: =+W160-U160 -> 0.8063009795 | BI163: KSOIL^2*KRATE | BJ163: 1.986694516e-07 | BK163: -9.415661121e-10 | BL163: -2.843675092e-09 | BM163: 8.114723535e-12 | BN163: -3.905292047e-14 | BO163: 1.362763987e-11 | BP163: =+BM155 -> 430595.9668 | BQ163: =+BM156 -> 616546.0616 | BR163: =+BM157 -> 777598.9703 | BU163: 1.986694516e-07 | BV163: -9.415661121e-10 | BW163: -2.843675092e-09 | BX163: 8.114723535e-12 | BY163: -3.905292047e-14 | BZ163: 1.362763987e-11
A164: 163 | B164: 78.63397548 | C164: 0 | D164: 2010 | E164: 47 | F164: 1 | G164: 73 | H164: 0 | J164: KSOIL*MKRATE^2 | K164: 1.673402449e-05 | L164: 4.792630617e-06 | M164: 3.491615739 | N164: 0.0005389506417 | O164: 1.423205995e-05 | Q164: K rate | R164: =CONCATENATE("Est. Yield (STK = ",U151,")") -> Est. Yield (STK = 75) | S164: =CONCATENATE("Est. Yield (STK = ",U151-Y151,")") -> Est. Yield (STK = 60) | T164: =CONCATENATE("Est. Yield (STK = ",U151+Y151,")") -> Est. Yield (STK = 90) | AA164: Year | AB164: Potash Fertilizer Price in $/ton | AC164: Soybean Price in $/bu | AD164: Soybean Yield in bu/acre | AE164: $/kg Ps | AF164: $/Mg K | AG164: Y in kg/ha | AI164: $/kg K | BI164: KSOIL^2*KRATE^2 | BJ164: -9.392180491e-10 | BK164: 4.620038619e-12 | BL164: 1.3607416e-11 | BM164: -3.905292047e-14 | BN164: 1.962642187e-16 | BO164: -6.798547564e-14 | BP164: =+BN155 -> 51503579.61 | BQ164: =+BN156 -> 67578497.08 | BR164: =+BN157 -> 74649402.3 | BU164: -9.392180491e-10 | BV164: 4.620038619e-12 | BW164: 1.3607416e-11 | BX164: -3.905292047e-14 | BY164: 1.962642187e-16 | BZ164: -6.798547564e-14
A165: 164 | B165: 95.79684764 | C165: 45 | D165: 2010 | E165: 47 | F165: 22 | G165: 73 | H165: 0 | Q165: 0 | R165: =IF((+$K$156+$K$157*$U$151+$K$158*$U$151^2+$K$159*Q165+$K$160*Q165^2+$K$161*$U$151*Q165+$K$162*$U$151^2*Q165+$K$163*$U$151^2*Q165^2+$K$164*$U$151*Q165^2)*$W$149>$U$149,$U$149,(+$K$156+$K$157*$U$151+$K$158*$U$151^2+$K$159*Q165+$K$160*Q165^2+$K$161*$U$151*Q165+$K$162*$U$151^2*Q165+$K$163*$U$151^2*Q165^2+$K$164*$U$151*Q165^2)*$W$149) -> 53.47210721 | S165: =IF((+$K$156+$K$157*($U$151-$Y$151)+$K$158*($U$151-$Y$151)^2+$K$159*Q165+$K$160*Q165^2+$K$161*($U$151-$Y$151)*Q165+$K$162*($U$151-$Y$151)^2*Q165+$K$163*($U$151-$Y$151)^2*Q165^2+$K$164*($U$151-$Y$151)*Q165^2)*$W$149>$U$149,$U$149,(+$K$156+$K$157*($U$151-$Y$151)+$K$158*($U$151-$Y$151)^2+$K$159*Q165+$K$160*Q165^2+$K$161*($U$151-$Y$151)*Q165+$K$162*($U$151-$Y$151)^2*Q165+$K$163*($U$151-$Y$151)^2*Q165^2+$K$164*($U$151-$Y$151)*Q165^2)*$W$149) -> 51.02481632 | T165: =IF((+$K$156+$K$157*($U$151+$Y$151)+$K$158*($U$151+$Y$151)^2+$K$159*Q165+$K$160*Q165^2+$K$161*($U$151+$Y$151)*Q165+$K$162*($U$151+$Y$151)^2*Q165+$K$163*($U$151+$Y$151)^2*Q165^2+$K$164*($U$151+$Y$151)*Q165^2)*$W$149>$U$149,$U$149,(+$K$156+$K$157*($U$151+$Y$151)+$K$158*($U$151+$Y$151)^2+$K$159*Q165+$K$160*Q165^2+$K$161*($U$151+$Y$151)*Q165+$K$162*($U$151+$Y$151)^2*Q165+$K$163*($U$151+$Y$151)^2*Q165^2+$K$164*($U$151+$Y$151)*Q165^2)*$W$149) -> 55.69665486 | U165: =ROUNDUP((MAX(BJ175:BJ548,U149)+IF(W142,500,10))/10,0)*10 -> 80 | AA165: 2009 | AB165: =26.1*20 -> 522 | AC165: 9.66 | AD165: 39 | AE165: =+AC165/60*2204.62/1000 -> 0.35494382 | AF165: =+AB165/2000*2204 -> 575.244 | AG165: =+(AD165*60*0.4536)*2.4711 -> 2622.884846 | AI165: =+AF165/1000/0.49809078131038 -> 1.154897905 | AR165: =CONCATENATE("Obs. Yields (",U151-Y151," < STK < ",U151+Y151,")") -> Obs. Yields (60 < STK < 90) | BI165: KSOIL*KRATE^2 | BJ165: 3.678351258e-07 | BK165: -1.806952436e-09 | BL165: -5.056404994e-09 | BM165: 1.362763987e-11 | BN165: -6.798547564e-14 | BO165: 2.514909949e-11 | BP165: =+BO155 -> 858392.9935 | BQ165: =+BO156 -> 901046.6278 | BR165: =+BO157 -> 829437.8033 | BU165: 3.678351258e-07 | BV165: -1.806952436e-09 | BW165: -5.056404994e-09 | BX165: 1.362763987e-11 | BY165: -6.798547564e-14 | BZ165: 2.514909949e-11
A166: 165 | B166: 100 | C166: 90 | D166: 2010 | E166: 47 | F166: 39 | G166: 73 | H166: 0 | K166: Effects Specification | Q166: 2 | R166: =IF((+$K$156+$K$157*$U$151+$K$158*$U$151^2+$K$159*Q166+$K$160*Q166^2+$K$161*$U$151*Q166+$K$162*$U$151^2*Q166+$K$163*$U$151^2*Q166^2+$K$164*$U$151*Q166^2)*$W$149>$U$149,$U$149,(+$K$156+$K$157*$U$151+$K$158*$U$151^2+$K$159*Q166+$K$160*Q166^2+$K$161*$U$151*Q166+$K$162*$U$151^2*Q166+$K$163*$U$151^2*Q166^2+$K$164*$U$151*Q166^2)*$W$149) -> 53.77516631 | S166: =IF((+$K$156+$K$157*($U$151-$Y$151)+$K$158*($U$151-$Y$151)^2+$K$159*Q166+$K$160*Q166^2+$K$161*($U$151-$Y$151)*Q166+$K$162*($U$151-$Y$151)^2*Q166+$K$163*($U$151-$Y$151)^2*Q166^2+$K$164*($U$151-$Y$151)*Q166^2)*$W$149>$U$149,$U$149,(+$K$156+$K$157*($U$151-$Y$151)+$K$158*($U$151-$Y$151)^2+$K$159*Q166+$K$160*Q166^2+$K$161*($U$151-$Y$151)*Q166+$K$162*($U$151-$Y$151)^2*Q166+$K$163*($U$151-$Y$151)^2*Q166^2+$K$164*($U$151-$Y$151)*Q166^2)*$W$149) -> 51.39851653 | T166: =IF((+$K$156+$K$157*($U$151+$Y$151)+$K$158*($U$151+$Y$151)^2+$K$159*Q166+$K$160*Q166^2+$K$161*($U$151+$Y$151)*Q166+$K$162*($U$151+$Y$151)^2*Q166+$K$163*($U$151+$Y$151)^2*Q166^2+$K$164*($U$151+$Y$151)*Q166^2)*$W$149>$U$149,$U$149,(+$K$156+$K$157*($U$151+$Y$151)+$K$158*($U$151+$Y$151)^2+$K$159*Q166+$K$160*Q166^2+$K$161*($U$151+$Y$151)*Q166+$K$162*($U$151+$Y$151)^2*Q166+$K$163*($U$151+$Y$151)^2*Q166^2+$K$164*($U$151+$Y$151)*Q166^2)*$W$149) -> 55.93554844 | U166: =ROUNDDOWN((S165-IF(W142,500,10))/10,0)*10 -> 40 | AA166: 2010 | AB166: =23*20 -> 460 | AC166: 10.9 | AD166: 39.5 | AE166: =+AC166/60*2204.62/1000 -> 0.4005059667 | AF166: =+AB166/2000*2204 -> 506.92 | AG166: =+(AD166*60*0.4536)*2.4711 -> 2656.511575 | AI166: =+AF166/1000/0.49809078131038 -> 1.017726123 | AR166: =CONCATENATE("Estimated Yield Response to K Fertilizer and Profit-Maximizing Application Rates for a Range of Initial Soil-Test K Values (STK) at Specified Yield Potential") -> Estimated Yield Response to K Fertilizer and Profit-Maximizing Application Rates for a Range of Initial Soil-Test K Values (STK) at Specified Yield Potential | BW166: Metric
A167: 166 | B167: 92.92543021 | C167: 0 | D167: 2010 | E167: 49 | F167: 2 | G167: 73 | H167: 0 | M167: S.D. | N167: Rho | Q167: 5 | R167: 54.22152784 | S167: 51.94910599 | T167: 56.28723685 | AA167: 2011 | AB167: =29.19*20 -> 583.8 | AC167: 12.3 | AD167: 42.2 | AE167: 0.4519471 | AF167: 643.3476 | AG167: 2838.095911 | AI167: 1.291627198 | BU167: 0.007978352431 | BV167: -3.914722195e-05 | BW167: -8.542603635e-05 | BX167: 1.888551474e-07 | BY167: -8.382988803e-10 | BZ167: 4.079309434e-07
A168: 167 | B168: 98.47036329 | C168: 40 | D168: 2010 | E168: 49 | F168: 14 | G168: 109 | H168: 0 | Q168: 7 | R168: 54.51361745 | S168: 52.30952506 | T168: 56.51726114 | AA168: 2012 | AB168: =29.8*20 -> 596 | AC168: 14.3 | AD168: 48.3 | AE168: 0.5254344333 | AF168: 656.792 | AG168: 3248.342002 | AI168: 1.318619064 | BU168: -3.914722195e-05 | BV168: 1.970115207e-07 | BW168: 4.163377502e-07 | BX168: -8.855216898e-10 | BY168: 4.003477611e-12 | BZ168: -2.037638646e-09
A169: 168 | B169: 100 | C169: 80 | D169: 2010 | E169: 49 | F169: 31 | G169: 115 | H169: 0 | J169: Period random | M169: 1.101110922 | N169: 0.04982149258 | Q169: 10 | R169: 54.94352474 | S169: 52.84019281 | T169: 56.8556456 | AA169: 2013 | AB169: =23.75*20 -> 475 | AC169: 13.1 | AD169: 46.4 | AE169: 0.4813420333 | AF169: 523.45 | AG169: 3120.560433 | AI169: 1.050912845 | BU169: -8.542603635e-05 | BV169: 4.163377502e-07 | BW169: 9.746682908e-07 | BX169: -2.318912192e-09 | BY169: 1.055673656e-11 | BZ169: -4.661499405e-09
A170: 169 | B170: 93.30783939 | C170: 120 | D170: 2010 | E170: 49 | F170: 41 | G170: 142 | H170: 0 | J170: Idiosyncratic random | M170: 4.808673658 | N170: 0.9501785074 | Q170: 15 | R170: 55.63809791 | S170: 53.6980768 | T170: 57.40188113 | AA170: 2014 | AB170: =23.6*20 -> 472 | AC170: 10.6 | AD170: 51.9 | AE170: 0.3894828667 | AF170: 520.144 | AG170: 3490.454449 | AI170: 1.044275501 | BU170: 1.888551474e-07 | BV170: -8.855216898e-10 | BW170: -2.318912192e-09 | BX170: 6.392492648e-12 | BY170: -2.929105109e-14 | BZ170: 1.076790656e-11
A171: 170 | B171: 96.94072658 | C171: 160 | D171: 2010 | E171: 49 | F171: 52 | G171: 151 | H171: 0 | Q171: 30 | R171: 57.55727499 | S171: 56.07251168 | T171: 58.9075483 | AA171: 2015 | AB171: =21.27*20 -> 425.4 | AC171: 9.46 | AD171: 51.4 | AE171: 0.3475950867 | AF171: 468.7908 | AG171: 3456.827721 | AI171: 0.9411754194 | BU171: -8.382988803e-10 | BV171: 4.003477611e-12 | BW171: 1.055673656e-11 | BX171: -2.929105109e-14 | BY171: 1.402521702e-16 | BZ171: -5.056382676e-14
A172: 171 | B172: 74.32432432 | C172: 0 | D172: 2011 | E172: 51 | F172: 1 | G172: 167 | H172: 0 | K172: Weighted Statistics | Q172: 45 | R172: 59.22963846 | S172: 58.14812096 | T172: 60.21365639 | AA172: 2016 | AB172: =16.97*20 -> 339.4 | AC172: 9.83 | AD172: 50 | AE172: 0.3611902433 | AF172: 374.0188 | AG172: 3362.67288 | AI172: 0.7509048833 | BP172: 0.9305090901 | BQ172: convert lbs of K20/acre to kg K ha-1 | BU172: 4.079309434e-07 | BV172: -2.037638646e-09 | BW172: -4.661499405e-09 | BX172: 1.076790656e-11 | BY172: -5.056382676e-14 | BZ172: 2.296930823e-11
A173: 172 | B173: 91.89189189 | C173: 40 | D173: 2011 | E173: 51 | F173: 14 | G173: 57 | H173: 0 | Q173: 60 | R173: 60.65518832 | S173: 59.92490466 | T173: 61.32020538 | AA173: 2017 | AB173: =18.98*20 -> 379.6 | AC173: 9.77 | AD173: 52.9 | AE173: 0.3589856233 | AF173: 418.3192 | AG173: 3557.707907 | AI173: 0.8398452967 | BJ173: Actual RelYld Obs Converted to Yield | BN173: Min Yield
A174: 173 | B174: 95.94594595 | C174: 80 | D174: 2011 | E174: 51 | F174: 31 | G174: 63 | H174: 0 | J174: R-squared | K174: 0.6017576178 | L174: Mean dependent var | N174: 61.92672705 | Q174: 75 | R174: 61.83392456 | S174: 61.40286276 | T174: 62.22719529 | AA174: 2018 | AB174: =20*20 -> 400 | AC174: 8.81 | AD174: 53.2 | AE174: 0.3237117033 | AF174: 440.8 | AG174: 3577.883944 | AI174: 0.8849792378 | BI174: RelYld | BJ174: Yield | BK174: Krate | BL174: Ksoil | BN174: =MIN(BN175:BN548) -> 39.49367089 | BP174: Mkrate
A175: 174 | B175: 98.64864865 | C175: 120 | D175: 2011 | E175: 51 | F175: 41 | G175: 72 | H175: 0 | J175: Adjusted R-squared | K175: 0.5930290176 | L175: S.D. dependent var | N175: 8.558721579 | Q175: 90 | R175: 62.76584719 | S175: 62.58199526 | T175: 62.9346261 | AA175: Avg. | AB175: =AVERAGE($AB$165:$AB$174) -> 465.32 | AC175: =AVERAGE($AC$165:$AC$174) -> 10.873 | AD175: =AVERAGE($AD$165:$AD$174) -> 47.48 | AE175: =+AC175/60*2204.62/1000 -> 0.3995138877 | AF175: 512.78264 | AG175: =+(AD175*60*0.4536)*2.4711 -> 3193.194167 | AI175: 1.029496347 | BI175: =_xlfn.NUMBERVALUE(IF(AND($G2>=($U$151-$Y$151),$G2<=($U$151+$Y$151)),B2,"")) -> 0 | BJ175: =_xlfn.NUMBERVALUE(IFERROR(+BI175*$W$149,"")) -> 0 | BK175: =_xlfn.NUMBERVALUE(IF(AND($G2>=($U$151-$Y$151),$G2<=($U$151+$Y$151)),C2,"")) -> 0 | BL175: =_xlfn.NUMBERVALUE(IF(AND($G2>=($U$151-$Y$151),$G2<=($U$151+$Y$151)),G2,"")) -> 0 | BN175: =IF(BJ175=0,999,BJ175) -> 999 | BP175: =+BK175*$BP$172 -> 0
A176: 175 | B176: 100 | C176: 160 | D176: 2011 | E176: 51 | F176: 52 | G176: 83 | H176: 0 | J176: S.E. of regression | K176: 4.809805925 | L176: Sum squared resid | N176: 8443.995058 | Q176: 105 | R176: 63.4509562 | S176: 63.46230217 | T176: 63.44249782 | AA176: Min. | AB176: =MIN($AB$165:$AB$174) -> 339.4 | AC176: =MIN($AC$165:$AC$174) -> 8.81 | AD176: =MIN($AD$165:$AD$174) -> 39 | BI176: =_xlfn.NUMBERVALUE(IF(AND($G3>=($U$151-$Y$151),$G3<=($U$151+$Y$151)),B3,"")) -> 0 | BJ176: =_xlfn.NUMBERVALUE(IFERROR(+BI176*$W$149,"")) -> 0 | BK176: =_xlfn.NUMBERVALUE(IF(AND($G3>=($U$151-$Y$151),$G3<=($U$151+$Y$151)),C3,"")) -> 0 | BL176: =_xlfn.NUMBERVALUE(IF(AND($G3>=($U$151-$Y$151),$G3<=($U$151+$Y$151)),G3,"")) -> 0 | BN176: =IF(BJ176=0,999,BJ176) -> 999 | BP176: =+BK176*$BP$172 -> 0
A177: 176 | B177: 89.65517241 | C177: 0 | D177: 2011 | E177: 53 | F177: 2 | G177: 89 | H177: 0 | J177: F-statistic | K177: 68.94090769 | L177: Durbin-Watson stat | N177: 1.923903196 | Q177: 120 | R177: 63.8892516 | S177: 64.04378349 | T177: 63.75081045 | AA177: Max. | AB177: =MAX($AB$165:$AB$174) -> 596 | AC177: =MAX($AC$165:$AC$174) -> 14.3 | AD177: =MAX($AD$165:$AD$174) -> 53.2 | BI177: 0 | BJ177: 0 | BK177: 0 | BL177: 0 | BN177: 999 | BP177: 0
A178: 177 | B178: 98.27586207 | C178: 40 | D178: 2011 | E178: 53 | F178: 15 | G178: 113 | H178: 0 | J178: Prob(F-statistic) | K178: 2.45307933e-68 | Q178: 135 | R178: 64.08073338 | S178: 64.32643922 | T178: 63.859564 | BI178: 0 | BJ178: 0 | BK178: 0 | BL178: 0 | BN178: 999 | BP178: 0
A179: 178 | B179: 100 | C179: 80 | D179: 2011 | E179: 53 | F179: 32 | G179: 120 | H179: 0 | Q179: 150 | R179: 64.02540156 | S179: 64.31026935 | T179: 63.76875844 | BI179: 0 | BJ179: 0 | BK179: 0 | BL179: 0 | BN179: 999 | BP179: 0
A180: 179 | B180: 94.82758621 | C180: 120 | D180: 2011 | E180: 53 | F180: 42 | G180: 126 | H180: 0 | K180: Unweighted Statistics | Q180: 165 | R180: 63.72325611 | S180: 63.99527389 | T180: 63.4783938 | BI180: 77.50865052 | BJ180: 50.38062284 | BK180: 0 | BL180: 85 | BN180: 50.38062284 | BP180: 0
A181: 180 | B181: 93.10344828 | C181: 160 | D181: 2011 | E181: 53 | F181: 53 | G181: 143 | H181: 0 | Q181: 180 | R181: 63.17429706 | S181: 63.38145283 | T181: 62.98847007 | BI181: 82.52595156 | BJ181: 53.64186851 | BK181: 30 | BL181: 86 | BN181: 53.64186851 | BP181: 27.9152727
A182: 181 | B182: 92.06349206 | C182: 0 | D182: 2012 | E182: 57 | F182: 1 | G182: 164 | H182: 0 | J182: R-squared | K182: 0.5978137228 | L182: Mean dependent var | N182: 93.90080214 | R182: 53.47210721 | S182: 51.02481632 | T182: 55.69665486 | BI182: 100 | BJ182: 65 | BK182: 60 | BL182: 85 | BN182: 65 | BP182: 55.8305454
A183: 182 | B183: 98.41269841 | C183: 40 | D183: 2012 | E183: 57 | F183: 14 | G183: 105 | H183: 0 | R183: 53.47210721 | S183: 51.02481632 | T183: 55.69665486 | BI183: 99.30795848 | BJ183: 64.55017301 | BK183: 90 | BL183: 89 | BN183: 64.55017301 | BP183: 83.7458181
A184: 183 | B184: 100 | C184: 80 | D184: 2012 | E184: 57 | F184: 31 | G184: 126 | H184: 0 | J184: Sum squared resid | K184: 8871.074903 | L184: Durbin-Watson stat | N184: 1.876635671 | Q184: Disclaimer: This software is provided ‘as is’ and without warranties as to performance or merchantability. Further, statements may have been made to you about this software, and they do not constitute warranties and shall not be relied upon by the user to use the program or act on its results. This program is provided without any expressed or implied warranties whatsoever. Because the diversity of conditions and hardware under which this program may be used, no warranty of merchantability or warranty of fitness for a particular purpose is offered. The user is advised to test the program thoroughly before relying on it. The user assumes the entire risk of using the program. The authors will not be liable for any claim or damage brought against the user by any third party, nor will the authors be liable for any consequential, indirect, or special damages suffered by the user as a result of the software. Results pertain to silt loam soils common in major rice producing regions of the humid mid-Southern U.S. | BI184: 0 | BJ184: 0 | BK184: 0 | BL184: 0 | BN184: 999 | BP184: 0
A185: 184 | B185: 96.82539683 | C185: 120 | D185: 2012 | E185: 57 | F185: 41 | G185: 142 | H185: 0 | BI185: 69.81707317 | BJ185: 45.38109756 | BK185: 0 | BL185: 73 | BN185: 45.38109756 | BP185: 0
A186: 185 | B186: 96.82539683 | C186: 160 | D186: 2012 | E186: 57 | F186: 52 | G186: 156 | H186: 0 | BI186: 83.53658537 | BJ186: 54.29878049 | BK186: 30 | BL186: 80 | BN186: 54.29878049 | BP186: 27.9152727
A187: 186 | B187: 96.875 | C187: 0 | D187: 2012 | E187: 58 | F187: 2 | G187: 185 | H187: 0 | R187: Potash fertilizer needed @ RY = 100 if possible or K max or zero if yield max at negative K: | T187: =IF((IF(W142,K159,O159)+IF(W142,K161,O161)*($U$151+$Y$151)+IF(W142,K162,O162)*($U$151+$Y$151)^2)/(-2*(IF(W142,K160,O160)+IF(W142,K163,O163)*($U$151+$Y$151)^2+IF(W142,K164,O164)*($U$151+$Y$151)))>$Y$149,$Y$149,(IF(W142,K159,O159)+IF(W142,K161,O161)*($U$151+$Y$151)+IF(W142,K162,O162)*($U$151+$Y$151)^2)/(-2*(IF(W142,K160,O160)+IF(W142,K163,O163)*($U$151+$Y$151)^2+IF(W142,K164,O164)*($U$151+$Y$151)))) -> 147.5038244 | U187: =IF((IF(W142,K159,O159)+IF(W142,K161,O161)*($U$151)+IF(W142,K162,O162)*($U$151)^2)/(-2*(IF(W142,K160,O160)+IF(W142,K163,O163)*($U$151)^2+IF(W142,K164,O164)*($U$151)))>$Y$149,$Y$149,(IF(W142,K159,O159)+IF(W142,K161,O161)*($U$151)+IF(W142,K162,O162)*($U$151)^2)/(-2*(IF(W142,K160,O160)+IF(W142,K163,O163)*($U$151)^2+IF(W142,K164,O164)*($U$151)))) -> 151.2237232 | V187: =IF((IF(W142,K159,O159)+IF(W142,K161,O161)*($U$151-$Y$151)+IF(W142,K162,O162)*($U$151-$Y$151)^2)/(-2*(IF(W142,K160,O160)+IF(W142,K163,O163)*($U$151-$Y$151)^2+IF(W142,K164,O164)*($U$151-$Y$151)))>$Y$149,$Y$149,(IF(W142,K159,O159)+IF(W142,K161,O161)*($U$151-$Y$151)+IF(W142,K162,O162)*($U$151-$Y$151)^2)/(-2*(IF(W142,K160,O160)+IF(W142,K163,O163)*($U$151-$Y$151)^2+IF(W142,K164,O164)*($U$151-$Y$151)))) -> 153.9667631 | BI187: 87.04268293 | BJ187: 56.5777439 | BK187: 60 | BL187: 78 | BN187: 56.5777439 | BP187: 55.8305454
A188: 187 | B188: 100 | C188: 80 | D188: 2012 | E188: 58 | F188: 32 | G188: 72 | H188: 0 | T188: =IF(T187<0,0,IFERROR((SQRT(T191^2+4*T192*T190)-T191)/(2*T192),$Y$149)) -> 180 | U188: =IF(U187<0,0,IFERROR((SQRT(U191^2+4*U192*U190)-U191)/(2*U192),$Y$149)) -> 180 | V188: =IF(V187<0,0,IFERROR((SQRT(V191^2+4*V192*V190)-V191)/(2*V192),$Y$149)) -> 180 | BI188: 91.61585366 | BJ188: 59.55030488 | BK188: 90 | BL188: 79 | BN188: 59.55030488 | BP188: 83.7458181
A189: 188 | B189: 89.85507246 | C189: 0 | D189: 2012 | E189: 59 | F189: 3 | G189: 72 | H189: 0 | BI189: 100 | BJ189: 65 | BK189: 120 | BL189: 85 | BN189: 65 | BP189: 111.6610908
A190: 189 | B190: 100 | C190: 80 | D190: 2012 | E190: 59 | F190: 33 | G190: 72 | H190: 0 | S190: c | T190: =100-$K$156-$K$157*(U151+Y151)-$K$158*(U151+Y151)^2 -> 14.31283868 | U190: =100-$K$156-$K$157*U151-$K$158*U151^2 -> 17.73521968 | V190: =100-$K$156-$K$157*(U151-Y151)-$K$158*(U151-Y151)^2 -> 21.50028258 | BI190: 74.81203008 | BJ190: 48.62781955 | BK190: 0 | BL190: 71 | BN190: 48.62781955 | BP190: 0
A191: 190 | B191: 95.83333333 | C191: 0 | D191: 2012 | E191: 60 | F191: 4 | G191: 72 | H191: 0 | S191: a | T191: =IF(W142,K159,O159)+IF(W142,K161,O161)*(U151+Y151)+IF(W142,K162,O162)*(U151+Y151)^2 -> 0.1707344188 | U191: =IF(W142,K159,O159)+IF(W142,K161,O161)*(U151)+IF(W142,K162,O162)*(U151)^2 -> 0.2166320953 | V191: =IF(W142,K159,O159)+IF(W142,K161,O161)*(U151-Y151)+IF(W142,K162,O162)*(U151-Y151)^2 -> 0.2671609461 | BI191: 84.02255639 | BJ191: 54.61466165 | BK191: 30 | BL191: 70 | BN191: 54.61466165 | BP191: 27.9152727
A192: 191 | B192: 95.83333333 | C192: 45 | D192: 2012 | E192: 60 | F192: 22 | G192: 95 | H192: 0 | S192: b | T192: =+IF(W142,K160,O160)+IF(W142,K163,O163)*(U151+Y151)^2+IF(W142,K164,O164)*(U151+Y151) -> -0.0005787457358 | U192: =+IF(W142,K160,O160)+IF(W142,K163,O163)*(U151)^2+IF(W142,K164,O164)*(U151) -> -0.0007162635953 | V192: =+IF(W142,K160,O160)+IF(W142,K163,O163)*(U151-Y151)^2+IF(W142,K164,O164)*(U151-Y151) -> -0.0008675929165 | BI192: 89.47368421 | BJ192: 58.15789474 | BK192: 60 | BL192: 81 | BN192: 58.15789474 | BP192: 55.8305454
A193: 192 | B193: 100 | C193: 90 | D193: 2012 | E193: 60 | F193: 39 | G193: 95 | H193: 0 | BI193: 0 | BJ193: 0 | BK193: 0 | BL193: 0 | BN193: 999 | BP193: 0
A194: 193 | B194: 91.75572519 | C194: 0 | D194: 2012 | E194: 61 | F194: 5 | G194: 95 | H194: 0 | BI194: 0 | BJ194: 0 | BK194: 0 | BL194: 0 | BN194: 999 | BP194: 0
A195: 194 | B195: 99.84732824 | C195: 40 | D195: 2012 | E195: 61 | F195: 15 | G195: 64 | H195: 0 | BI195: 70.80536913 | BJ195: 46.02348993 | BK195: 0 | BL195: 65 | BN195: 46.02348993 | BP195: 0
A196: 195 | B196: 97.40458015 | C196: 80 | D196: 2012 | E196: 61 | F196: 34 | G196: 73 | H196: 0 | BI196: 81.04026846 | BJ196: 52.6761745 | BK196: 30 | BL196: 68 | BN196: 52.6761745 | BP196: 27.9152727
A197: 196 | B197: 100 | C197: 120 | D197: 2012 | E197: 61 | F197: 42 | G197: 78 | H197: 0 | BI197: 94.63087248 | BJ197: 61.51006711 | BK197: 60 | BL197: 63 | BN197: 61.51006711 | BP197: 55.8305454
A198: 197 | B198: 98.77862595 | C198: 160 | D198: 2012 | E198: 61 | F198: 53 | G198: 82 | H198: 0 | BI198: 92.7852349 | BJ198: 60.31040268 | BK198: 90 | BL198: 83 | BN198: 60.31040268 | BP198: 83.7458181
A199: 198 | B199: 72.95081967 | C199: 0 | D199: 2013 | E199: 62 | F199: 1 | G199: 91 | H199: 0 | BI199: 100 | BJ199: 65 | BK199: 120 | BL199: 79 | BN199: 65 | BP199: 111.6610908
A200: 199 | B200: 95.49180328 | C200: 40 | D200: 2013 | E200: 62 | F200: 14 | G200: 64 | H200: 0 | BI200: 0 | BJ200: 0 | BK200: 0 | BL200: 0 | BN200: 999 | BP200: 0
... 348 more rows

Sheet K on Rice
B1: RELYLD | C1: KRATE | D1: YEAR | E1: SITE | F1: YEAROB | G1: KSOIL | H1: DCLAY
A2: 1 | B2: 97.1 | C2: 0 | D2: 2004 | E2: 1 | F2: 1 | G2: 104 | H2: 0 | Q2: Rice Price | U2: 10 | V2: $/cwt | Y2: Conventional
A3: 2 | B3: 100 | C3: 40 | D3: 2004 | E3: 1 | F3: 15 | G3: 104 | H3: 0 | J3: Dependent Variable: RELYLD | Y3: Clearfield
A4: 3 | B4: 99.5 | C4: 80 | D4: 2004 | E4: 1 | F4: 37 | G4: 104 | H4: 0 | J4: Method: Panel EGLS (Period random effects) | Q4: Cost of K (0-0-60) | U4: 450 | V4: $/ton
A5: 4 | B5: 99.5 | C5: 120 | D5: 2004 | E5: 1 | F5: 57 | G5: 104 | H5: 0 | J5: Date: 03/12/19 Time: 15:57 | Y5: Clay
A6: 5 | B6: 98.6 | C6: 160 | D6: 2004 | E6: 1 | F6: 71 | G6: 104 | H6: 0 | J6: Sample: 2001 2018 IF KRATE<>135 | Q6: How much K do you currently apply per acre? | U6: 25 | V6: lbs/acre | Y6: Loam
A7: 6 | B7: 88.8 | C7: 0 | D7: 2004 | E7: 2 | F7: 2 | G7: 74 | H7: 0 | J7: Periods included: 17
A8: 7 | B8: 90.8 | C8: 40 | D8: 2004 | E8: 2 | F8: 16 | G8: 74 | H8: 0 | J8: Cross-sections included: 79 | Q8: What yield do you expect at that application rate? | U8: 180 | V8: bu/acre | Y8: Yes
A9: 8 | B9: 96.1 | C9: 80 | D9: 2004 | E9: 2 | F9: 38 | G9: 74 | H9: 0 | J9: Total panel (unbalanced) observations: 440 | Y9: No
A10: 9 | B10: 99 | C10: 120 | D10: 2004 | E10: 2 | F10: 58 | G10: 74 | H10: 0 | J10: Wallace and Hussain estimator of component variances | Q10: Do you use conventional or hybrid seed? | U10: Conventional
A11: 10 | B11: 100 | C11: 160 | D11: 2004 | E11: 2 | F11: 72 | G11: 74 | H11: 0
A12: 11 | B12: 92.5 | C12: 0 | D12: 2004 | E12: 3 | F12: 3 | G12: 87 | H12: 0 | J12: Variable | K12: Coefficient | L12: Std. Error | M12: t-Statistic | N12: Prob. | Q12: What is your soil test K? | U12: 110
A13: 12 | B13: 95.3 | C13: 40 | D13: 2004 | E13: 3 | F13: 17 | G13: 87 | H13: 0
A14: 13 | B14: 96.7 | C14: 80 | D14: 2004 | E14: 3 | F14: 39 | G14: 87 | H14: 0 | J14: C | K14: 85.53190393 | L14: 1.088768197 | M14: 78.55841503 | N14: 1.523340846e-257 | Q14: Does the field have mostly clayey or loamy soil texture? | U14: Loam
A15: 14 | B15: 98.1 | C15: 120 | D15: 2004 | E15: 3 | F15: 59 | G15: 87 | H15: 0 | J15: DRREC | K15: 1.821873436 | L15: 0.6169528489 | M15: 2.953018921 | N15: 0.00331893321
A16: 15 | B16: 100 | C16: 160 | D16: 2004 | E16: 3 | F16: 73 | G16: 87 | H16: 0 | J16: KRATE | K16: 0.1546276126 | L16: 0.01680227412 | M16: 9.202778833 | N16: 1.519289268e-18 | Q16: Do you operate South of I-40? | U16: No
A17: 16 | B17: 91.5 | C17: 0 | D17: 2004 | E17: 4 | F17: 4 | G17: 64 | H17: 0 | J17: KRATE^2 | K17: -0.000421958113 | L17: 8.710848e-05 | M17: -4.84405322 | N17: 1.77718926e-06
A18: 17 | B18: 85.7 | C18: 40 | D18: 2004 | E18: 4 | F18: 18 | G18: 64 | H18: 0 | J18: DCLFIELD | K18: 2.254139283 | L18: 0.9265560337 | M18: 2.432814855 | N18: 0.01538783875 | Q18: Predicted RELYLD based on above questions: | U18: =+K14+IF($U$16="Yes",K15,0)+$U$6*($U$12*K21+K16+IF($U$10="Clearfield",K23,0))+$U$6^2*(K17+IF($U$14="Clay",K22))+IF($U$14="Clay",K20,0)+IF($U$10="Clearfield",K18,0)+$U$12*K19 -> 93.32878185
A19: 18 | B19: 89.7 | C19: 80 | D19: 2004 | E19: 4 | F19: 40 | G19: 64 | H19: 0 | J19: KSOIL | K19: 0.04813541892 | L19: 0.009622753276 | M19: 5.00225014 | N19: 8.265255539e-07
A20: 19 | B20: 100 | C20: 120 | D20: 2004 | E20: 4 | F20: 60 | G20: 64 | H20: 0 | J20: DCLAY | K20: -3.267803257 | L20: 1.636446995 | M20: -1.996889155 | N20: 0.04646560705 | Q20: Yield/RELYLD | U20: =+U8/U18 -> 1.928665482
A21: 20 | B21: 82.5 | C21: 160 | D21: 2004 | E21: 4 | F21: 74 | G21: 64 | H21: 0 | J21: KSOIL*KRATE | K21: -0.0003999944219 | L21: 8.797209869e-05 | M21: -4.546832779 | N21: 7.086112312e-06
A22: 21 | B22: 96.6 | C22: 0 | D22: 2004 | E22: 5 | F22: 5 | G22: 76 | H22: 0 | J22: DCLAY*KRATE^2 | Q22: dRELYLD/dKRATE | U22: =+K16+U12*K21+IF(U10="Clearfield",K23,0)+2*U6*(K17+IF(U14="Clay",K22)) -> 0.08953032052 | W22: =+K16+U12*K21+IF(U10="Clearfield",K23,0)+2*U28*(K17+IF(U14="Clay",K22)) -> 0.0431645616
A23: 22 | B23: 94.1 | C23: 40 | D23: 2004 | E23: 5 | F23: 19 | G23: 76 | H23: 0 | J23: DCLFIELD*KRATE | K23: -0.02087856875 | L23: 0.009566473542 | M23: -2.182472847 | N23: 0.02961379485
A24: 23 | B24: 100 | C24: 80 | D24: 2004 | E24: 5 | F24: 41 | G24: 76 | H24: 0 | Q24: =CONCATENATE("VMP of K @ KRATE = ",U6," lbs/acre and soil test K of ",U12) -> VMP of K @ KRATE = 25 lbs/acre and soil test K of 110 | U24: =+U22*U2/2.22*U20 -> 0.7778109854 | W24: =+W22*U2/2.22*U20 -> 0.375
A25: 24 | B25: 97.5 | C25: 120 | D25: 2004 | E25: 5 | F25: 61 | G25: 76 | H25: 0 | K25: Effects Specification
A26: 25 | B26: 98.5 | C26: 160 | D26: 2004 | E26: 5 | F26: 75 | G26: 76 | H26: 0 | M26: S.D. | N26: Rho | Q26: Cost per lb of K | U26: =+U4/0.6/2000 -> 0.375
A27: 26 | B27: 102.7 | C27: 0 | D27: 2004 | E27: 6 | F27: 6 | G27: 132 | H27: 0
A28: 27 | B28: 98.2 | C28: 40 | D28: 2004 | E28: 6 | F28: 20 | G28: 132 | H28: 0 | J28: Period random | M28: 1.060097175 | N28: 0.04768826784 | Q28: Profit Maximizing K rate: | U28: =IF((U26/(U2/2.22*U20)-(K16+U12*K21+IF(U10="Clearfield",K23,0)))/(2*(K17+IF(U14="Clay",K22)))>180,180,(U26/(U2/2.22*U20)-(K16+U12*K21+IF(U10="Clearfield",K23,0)))/(2*(K17+IF(U14="Clay",K22)))) -> 79.94118668 | W28: 125 | X28: Alt User K
A29: 28 | B29: 99.5 | C29: 80 | D29: 2004 | E29: 6 | F29: 42 | G29: 132 | H29: 0 | J29: Idiosyncratic random | M29: 4.737284535 | N29: 0.9523117322
A30: 29 | B30: 100 | C30: 120 | D30: 2004 | E30: 6 | F30: 62 | G30: 132 | H30: 0 | Q30: Expected Yield at Profit-Maximizing K rate: | U30: =(+K14+IF(U16="Yes",K15,0)+U28*(U12*K21+K16+IF(U10="Clearfield",K23,0))+U28^2*(K17+IF(U14="Clay",K22))+IF(U14="Clay",K20,0)+IF(U10="Clearfield",K18,0)+U12*K19)*U20 -> 187.0303852 | W30: =(+K14+IF(U16="Yes",K15,0)+W28*(U12*K21+K16+IF(U10="Clearfield",K23,0))+W28^2*(K17+IF(U14="Clay",K22))+IF(U14="Clay",K20,0)+IF(U10="Clearfield",K18,0)+U12*K19)*U20 -> 189.1292434
A31: 30 | B31: 98.6 | C31: 160 | D31: 2004 | E31: 6 | F31: 76 | G31: 132 | H31: 0 | K31: Weighted Statistics
A32: 31 | B32: 83.4 | C32: 0 | D32: 2004 | E32: 7 | F32: 7 | G32: 81 | H32: 0 | Q32: Added Profit in $/acre | U32: =+(U30-U8)*U2/2.22-(U28-U6)*U26 -> 11.06545677 | W32: =+(W30-U8)*U2/2.22-(W28-U6)*U26 -> 3.622718031
A33: 32 | B33: 89.4 | C33: 30 | D33: 2004 | E33: 7 | F33: 13 | G33: 81 | H33: 0 | J33: R-squared | K33: 0.2954420526 | L33: Mean dependent var | N33: 60.43268787
A34: 33 | B34: 95.4 | C34: 60 | D34: 2004 | E34: 7 | F34: 27 | G34: 87 | H34: 0 | J34: Adjusted R-squared | K34: 0.2823644109 | L34: S.D. dependent var | N34: 9.884122327 | BH34: K rate | BI34: Exp. Yield
A35: 34 | B35: 89.4 | C35: 90 | D35: 2004 | E35: 7 | F35: 45 | G35: 100 | H35: 0 | J35: S.E. of regression | K35: 4.743914196 | L35: Sum squared resid | N35: 9699.535137 | BH35: 0 | BI35: =(+$K$14+IF($U$16="Yes",$K$15,0)+BH35*($U$12*$K$21+$K$16+IF($U$10="Clearfield",$K$23,0))+BH35^2*($K$17+IF($U$14="Clay",$K$22))+IF($U$14="Clay",$K$20,0)+IF($U$10="Clearfield",$K$18,0)+$U$12*$K$19)*$U$20 -> 175.174514
A36: 35 | B36: 100 | C36: 120 | D36: 2004 | E36: 7 | F36: 63 | G36: 105 | H36: 0 | J36: F-statistic | K36: 22.59138605 | L36: Durbin-Watson stat | N36: 2.49064464 | BH36: 10 | BI36: =(+$K$14+IF($U$16="Yes",$K$15,0)+BH36*($U$12*$K$21+$K$16+IF($U$10="Clearfield",$K$23,0))+BH36^2*($K$17+IF($U$14="Clay",$K$22))+IF($U$14="Clay",$K$20,0)+IF($U$10="Clearfield",$K$18,0)+$U$12*$K$19)*$U$20 -> 177.2267808
A37: 36 | B37: 89.4 | C37: 0 | D37: 2004 | E37: 8 | F37: 8 | G37: 78 | H37: 0 | J37: Prob(F-statistic) | K37: 7.693327162e-29 | BH37: 20 | BI37: 179.1162844
A38: 37 | B38: 94.7 | C38: 30 | D38: 2004 | E38: 8 | F38: 14 | G38: 83 | H38: 0 | BH38: 30 | BI38: 180.8430248
A39: 38 | B39: 95.3 | C39: 60 | D39: 2004 | E39: 8 | F39: 28 | G39: 87 | H39: 0 | K39: Unweighted Statistics | BH39: 40 | BI39: 182.407002
A40: 39 | B40: 100 | C40: 90 | D40: 2004 | E40: 8 | F40: 46 | G40: 112 | H40: 0 | BH40: 50 | BI40: 183.8082159
A41: 40 | B41: 100 | C41: 120 | D41: 2004 | E41: 8 | F41: 64 | G41: 115 | H41: 0 | J41: R-squared | K41: 0.2961173096 | L41: Mean dependent var | N41: 95.92045455 | BH41: 60 | BI41: 185.0466667
A42: 41 | B42: 75.6 | C42: 0 | D42: 2005 | E42: 9 | F42: 1 | G42: 94 | H42: 0 | J42: Sum squared resid | K42: 10114.18604 | L42: Durbin-Watson stat | N42: 2.482420507 | BH42: 70 | BI42: 186.1223542
A43: 42 | B43: 90.3 | C43: 40 | D43: 2005 | E43: 9 | F43: 15 | G43: 94 | H43: 0 | BH43: 80 | BI43: 187.0352786
A44: 43 | B44: 90.9 | C44: 80 | D44: 2005 | E44: 9 | F44: 37 | G44: 94 | H44: 0 | BH44: 90 | BI44: 187.7854397
A45: 44 | B45: 92.6 | C45: 120 | D45: 2005 | E45: 9 | F45: 57 | G45: 94 | H45: 0 | BH45: 100 | BI45: 188.3728376
A46: 45 | B46: 100 | C46: 160 | D46: 2005 | E46: 9 | F46: 71 | G46: 94 | H46: 0 | BH46: 110 | BI46: 188.7974724
A47: 46 | B47: 91.3 | C47: 0 | D47: 2005 | E47: 10 | F47: 2 | G47: 71 | H47: 0 | M47: =174/192 -> 0.90625 | BH47: 120 | BI47: 189.0593439
A48: 47 | B48: 100 | C48: 40 | D48: 2005 | E48: 10 | F48: 16 | G48: 71 | H48: 0 | BH48: 130 | BI48: 189.1584521
A49: 48 | B49: 99.5 | C49: 80 | D49: 2005 | E49: 10 | F49: 38 | G49: 71 | H49: 0 | BH49: 140 | BI49: 189.0947972
A50: 49 | B50: 99.5 | C50: 120 | D50: 2005 | E50: 10 | F50: 58 | G50: 71 | H50: 0 | BH50: 150 | BI50: 188.8683791
A51: 50 | B51: 93.4 | C51: 160 | D51: 2005 | E51: 10 | F51: 72 | G51: 71 | H51: 0 | BH51: 160 | BI51: 188.4791978
A52: 51 | B52: 86.6 | C52: 0 | D52: 2005 | E52: 11 | F52: 3 | G52: 81 | H52: 0 | BH52: 170 | BI52: 187.9272532
A53: 52 | B53: 96.8 | C53: 40 | D53: 2005 | E53: 11 | F53: 17 | G53: 81 | H53: 0 | BH53: 180 | BI53: 187.2125455
A54: 53 | B54: 100 | C54: 80 | D54: 2005 | E54: 11 | F54: 39 | G54: 81 | H54: 0
A55: 54 | B55: 95.5 | C55: 120 | D55: 2005 | E55: 11 | F55: 59 | G55: 81 | H55: 0
A56: 55 | B56: 96.8 | C56: 160 | D56: 2005 | E56: 11 | F56: 73 | G56: 81 | H56: 0
A57: 56 | B57: 93.6 | C57: 0 | D57: 2005 | E57: 12 | F57: 4 | G57: 94 | H57: 0
A58: 57 | B58: 95.5 | C58: 40 | D58: 2005 | E58: 12 | F58: 18 | G58: 94 | H58: 0 | J58: Dependent Variable: RELYLD | Q58: Predicted RELYLD based on above questions: | U58: =+K69+IF($U$16="Yes",K70,0)+$U$6*($U$12*K76+K71+IF($U$10="Clearfield",K77,0)+IF($U$14="Clay",K78))+$U$6^0.5*K72+IF($U$14="Clay",K75,0)+IF($U$10="Clearfield",K73,0)+$U$12*K74 -> 94.5669452
A59: 58 | B59: 97 | C59: 80 | D59: 2005 | E59: 12 | F59: 40 | G59: 94 | H59: 0 | J59: Method: Panel EGLS (Period random effects)
A60: 59 | B60: 100 | C60: 120 | D60: 2005 | E60: 12 | F60: 60 | G60: 94 | H60: 0 | J60: Date: 03/13/19 Time: 09:12 | Q60: Yield/RELYLD | U60: =+U8/U58 -> 1.903413498
A61: 60 | B61: 97.5 | C61: 160 | D61: 2005 | E61: 12 | F61: 74 | G61: 94 | H61: 0 | J61: Sample: 2001 2018 IF KRATE<>135
A62: 61 | B62: 67.7 | C62: 0 | D62: 2005 | E62: 13 | F62: 5 | G62: 64 | H62: 0 | J62: Periods included: 17 | Q62: dRELYLD/dKRATE | U62: =+K71+U12*K76+IF(U10="Clearfield",K77,0)+IF(U14="Clay",K78,0)+0.5*U6^-0.5*K72 -> 0.05961510745 | W62: =+K71+U12*K76+IF(U10="Clearfield",K77,0)+IF(U14="Clay",K78,0)+0.5*U68^-0.5*K72 -> 0.04373721215
A63: 62 | B63: 94.9 | C63: 40 | D63: 2005 | E63: 13 | F63: 19 | G63: 64 | H63: 0 | J63: Cross-sections included: 79
A64: 63 | B64: 96.2 | C64: 80 | D64: 2005 | E64: 13 | F64: 41 | G64: 64 | H64: 0 | J64: Total panel (unbalanced) observations: 440 | Q64: =CONCATENATE("VMP of K @ KRATE = ",U6," lbs/acre and soil test K of ",U12) -> VMP of K @ KRATE = 25 lbs/acre and soil test K of 110 | U64: =+U62*U2/2.22*U60 -> 0.5111360371 | W64: =+W62*U2/2.22*U60 -> 0.375
A65: 64 | B65: 100 | C65: 120 | D65: 2005 | E65: 13 | F65: 61 | G65: 64 | H65: 0 | J65: Wallace and Hussain estimator of component variances
A66: 65 | B66: 99.4 | C66: 160 | D66: 2005 | E66: 13 | F66: 75 | G66: 64 | H66: 0 | Q66: Cost per lb of K | U66: =+U4/0.6/2000 -> 0.375 | W66: =(K71+U12*K76+IF(U10="Clearfield",K77,0)+IF(U14="Clay",K78)+0.5*W68^-0.5*K72)*U2/2.22*U60 -> 1.383980984 | X66: VMP at Alt User K
A67: 66 | B67: 92.7 | C67: 0 | D67: 2005 | E67: 14 | F67: 6 | G67: 164 | H67: 0 | J67: Variable | K67: Coefficient | L67: Std. Error | M67: t-Statistic | N67: Prob.
A68: 67 | B68: 100 | C68: 80 | D68: 2005 | E68: 14 | F68: 42 | G68: 164 | H68: 0 | Q68: Optimal K | U68: =IF(((U66/(U2/2.22*U60)-(K71+U12*K76+IF(U10="Clearfield",K77,0)+IF(U14="Clay",K78,0)))*2/K72)^-2>180,180,((U66/(U2/2.22*U60)-(K71+U12*K76+IF(U10="Clearfield",K77,0)+IF(U14="Clay",K78,0)))*2/K72)^-2) -> 38.36754456 | W68: 5 | X68: Alt User K
A69: 68 | B69: 90.1 | C69: 120 | D69: 2005 | E69: 14 | F69: 62 | G69: 164 | H69: 0 | J69: C | K69: 83.57802419 | L69: 1.206595779 | M69: 69.26762523 | N69: 2.275095698e-235
A70: 69 | B70: 95.4 | C70: 160 | D70: 2005 | E70: 14 | F70: 76 | G70: 164 | H70: 0 | J70: DRREC | K70: 1.901372692 | L70: 0.6112073646 | M70: 3.110847156 | N70: 0.001989737646 | Q70: Expected Yield | U70: =(+K69+IF(U16="Yes",K70,0)+U68*(K71+IF(U10="Clearfield",K77,0)+IF(U14="Clay",K78,0)+U12*K76)+U68^0.5*(K72)+IF(U14="Clay",K75,0)+IF(U10="Clearfield",K73,0)+U12*K74)*U60 -> 181.2932979 | W70: =(K69+IF($U$16="Yes",K70,0)+$W$68*($U$12*K76+K71+IF($U$10="Clearfield",K77,0)+IF($U$14="Clay",K78,0))+$W$68^0.5*K72+IF($U$14="Clay",K75,0)+IF($U$10="Clearfield",K73,0)+$U$12*K74)*U60 -> 176.5329818
A71: 70 | B71: 74.4 | C71: 0 | D71: 2005 | E71: 15 | F71: 7 | G71: 63 | H71: 0 | J71: KRATE | K71: 0.05527424609 | L71: 0.01945111966 | M71: 2.841699967 | N71: 0.004700819505
A72: 71 | B72: 85.6 | C72: 30 | D72: 2005 | E72: 15 | F72: 13 | G72: 68 | H72: 0 | J72: KRATE^.5 | K72: 0.8235966589 | L72: 0.1795438504 | M72: 4.587161615 | N72: 5.902285465e-06 | Q72: Added Profit in $/acre | U72: =+(U70-U8)*U2/2.22-(U68-U6)*U66 -> 0.8128370095 | W72: =+(W70-U8)*U2/2.22-(W68-U6)*U66 -> -8.117199183
A73: 72 | B73: 92.2 | C73: 60 | D73: 2005 | E73: 15 | F73: 27 | G73: 72 | H73: 0 | J73: DCLFIELD | K73: 2.333261436 | L73: 0.9170687768 | M73: 2.544260032 | N73: 0.0112997258
A74: 73 | B74: 95 | C74: 90 | D74: 2005 | E74: 15 | F74: 45 | G74: 69 | H74: 0 | J74: KSOIL | K74: 0.06763228791 | L74: 0.01098263876 | M74: 6.158109118 | N74: 1.69129018e-09
A75: 74 | B75: 100 | C75: 120 | D75: 2005 | E75: 15 | F75: 63 | G75: 93 | H75: 0 | J75: DCLAY | K75: -9.296610794 | L75: 2.441795438 | M75: -3.807284857 | N75: 0.0001609195768
A76: 75 | B76: 78.5 | C76: 0 | D76: 2005 | E76: 16 | F76: 8 | G76: 77 | H76: 0 | J76: KSOIL*KRATE | K76: -0.0007092618593 | L76: 0.0001239922289 | M76: -5.720212189 | N76: 1.99520725e-08 | Q76: K rate | R76: Exp. Yield
A77: 76 | B77: 85.9 | C77: 30 | D77: 2005 | E77: 16 | F77: 14 | G77: 77 | H77: 0 | J77: DCLFIELD*KRATE | K77: -0.02113021601 | L77: 0.009446821853 | M77: -2.236753941 | N77: 0.02581434428 | Q77: 0.01 | R77: =(+$K$69+IF($U$16="Yes",$K$70,0)+Q77*($U$12*$K$76+$K$71+IF($U$10="Clearfield",$K$77,0)+IF($U$14="Clay",$K$78,0))+Q77^0.5*($K$72)+IF($U$14="Clay",$K$75,0)+IF($U$10="Clearfield",$K$73,0)+$U$12*$K$74)*$U$60 -> 173.4004141
A78: 77 | B78: 94.9 | C78: 60 | D78: 2005 | E78: 16 | F78: 28 | G78: 66 | H78: 0 | J78: DCLAY*KRATE | K78: 0.09240656048 | L78: 0.02766610215 | M78: 3.340064314 | N78: 0.0009106295903 | Q78: 2 | R78: 175.3744827
A79: 78 | B79: 96.6 | C79: 90 | D79: 2005 | E79: 16 | F79: 46 | G79: 69 | H79: 0 | Q79: 7 | R79: 177.0886352
A80: 79 | B80: 100 | C80: 120 | D80: 2005 | E80: 16 | F80: 64 | G80: 80 | H80: 0 | K80: Effects Specification | Q80: 15 | R80: 178.666161
A81: 80 | B81: 98.6 | C81: 0 | D81: 2006 | E81: 17 | F81: 1 | G81: 151 | H81: 0 | M81: S.D. | N81: Rho | Q81: 25 | R81: 180
A82: 81 | B82: 98.1 | C82: 40 | D82: 2006 | E82: 17 | F82: 15 | G82: 151 | H82: 0 | Q82: 45 | R82: 181.8120114
A83: 82 | B83: 95.3 | C83: 80 | D83: 2006 | E83: 17 | F83: 37 | G83: 151 | H83: 0 | J83: Period random | M83: 1.099880019 | N83: 0.05237979079 | Q83: 60 | R83: 182.7894705
A84: 83 | B84: 100 | C84: 120 | D84: 2006 | E84: 17 | F84: 57 | G84: 151 | H84: 0 | J84: Idiosyncratic random | M84: 4.678219447 | N84: 0.9476202092 | Q84: 70 | R84: 183.3294806
A85: 84 | B85: 90.6 | C85: 160 | D85: 2006 | E85: 17 | F85: 71 | G85: 151 | H85: 0 | Q85: 80 | R85: 183.8021417
A86: 85 | B86: 86.4 | C86: 0 | D86: 2006 | E86: 18 | F86: 2 | G86: 71 | H86: 0 | K86: Weighted Statistics | Q86: 90 | R86: 184.2197618
A87: 86 | B87: 94.3 | C87: 40 | D87: 2006 | E87: 18 | F87: 16 | G87: 76 | H87: 0 | Q87: 100 | R87: 184.5913025
A88: 87 | B88: 94.9 | C88: 80 | D88: 2006 | E88: 18 | F88: 38 | G88: 85 | H88: 0 | J88: R-squared | K88: 0.3131037289 | L88: Mean dependent var | N88: 58.69433819 | Q88: 110 | R88: 184.923529
A89: 88 | B89: 95.5 | C89: 120 | D89: 2006 | E89: 18 | F89: 58 | G89: 98 | H89: 0 | J89: Adjusted R-squared | K89: 0.2987268302 | L89: S.D. dependent var | N89: 10.00229228 | Q89: 120 | R89: 185.2216971
A90: 89 | B90: 100 | C90: 160 | D90: 2006 | E90: 18 | F90: 72 | G90: 100 | H90: 0 | J90: S.E. of regression | K90: 4.685069483 | L90: Sum squared resid | N90: 9438.446708 | Q90: 130 | R90: 185.4899866
A91: 90 | B91: 91.3 | C91: 0 | D91: 2006 | E91: 19 | F91: 3 | G91: 116 | H91: 0 | J91: F-statistic | K91: 21.77825243 | L91: Durbin-Watson stat | N91: 2.440948805 | Q91: 140 | R91: 185.7317863
A92: 91 | B92: 93.6 | C92: 40 | D92: 2006 | E92: 19 | F92: 17 | G92: 116 | H92: 0 | J92: Prob(F-statistic) | K92: 1.9758798e-30 | Q92: 150 | R92: 185.9498893
A93: 92 | B93: 100 | C93: 80 | D93: 2006 | E93: 19 | F93: 39 | G93: 116 | H93: 0 | Q93: 160 | R93: 186.1466296
A94: 93 | B94: 94.8 | C94: 120 | D94: 2006 | E94: 19 | F94: 59 | G94: 116 | H94: 0 | K94: Unweighted Statistics | Q94: 170 | R94: 186.3239817
A95: 94 | B95: 94.8 | C95: 160 | D95: 2006 | E95: 19 | F95: 73 | G95: 116 | H95: 0 | Q95: 180 | R95: 186.4836333
A96: 95 | B96: 99.4 | C96: 0 | D96: 2006 | E96: 20 | F96: 4 | G96: 104 | H96: 0 | J96: R-squared | K96: 0.3119695218 | L96: Mean dependent var | N96: 95.92045455
A97: 96 | B97: 100 | C97: 40 | D97: 2006 | E97: 20 | F97: 18 | G97: 104 | H97: 0 | J97: Sum squared resid | K97: 9886.403451 | L97: Durbin-Watson stat | N97: 2.431277786
A98: 97 | B98: 97.4 | C98: 80 | D98: 2006 | E98: 20 | F98: 40 | G98: 104 | H98: 0
A99: 98 | B99: 98.7 | C99: 120 | D99: 2006 | E99: 20 | F99: 60 | G99: 104 | H99: 0
A100: 99 | B100: 98.7 | C100: 160 | D100: 2006 | E100: 20 | F100: 74 | G100: 104 | H100: 0
A101: 100 | B101: 97.9 | C101: 0 | D101: 2006 | E101: 21 | F101: 5 | G101: 121 | H101: 0 | J101: Dependent Variable: RELYLD | Q101: Predicted RELYLD based on above questions: | U101: =+K112+IF($U$16="Yes",K113,0)+LN($U$6)*(K117+$U$12*K120+IF($U$10="Clearfield",K119,0)+IF($U$14="Clay",K118))+IF($U$14="Clay",K116,0)+IF($U$10="Clearfield",K114,0)+$U$12*K115 -> 96.18393227
A102: 101 | B102: 88 | C102: 40 | D102: 2006 | E102: 21 | F102: 19 | G102: 121 | H102: 0 | J102: Method: Panel EGLS (Period random effects)
A103: 102 | B103: 95.8 | C103: 80 | D103: 2006 | E103: 21 | F103: 41 | G103: 121 | H103: 0 | J103: Date: 03/13/19 Time: 16:57 | Q103: Yield/RELYLD | U103: =+U8/U101 -> 1.871414443
A104: 103 | B104: 99.5 | C104: 120 | D104: 2006 | E104: 21 | F104: 61 | G104: 121 | H104: 0 | J104: Sample: 2001 2018 IF KRATE<>135
A105: 104 | B105: 100 | C105: 160 | D105: 2006 | E105: 21 | F105: 75 | G105: 121 | H105: 0 | J105: Periods included: 17 | Q105: dRELYLD/dKRATE | U105: =(K117+IF(U14="Clay",K118,0)+IF(U10="Clearfield",K119,0)+U12*K120)/U6 -> 0.01701949554 | W105: =(K117+IF(U14="Clay",K118,0)+IF(U10="Clearfield",K119,0)+U12*K120)/U111 -> 0.04448506867
A106: 105 | B106: 103.3 | C106: 0 | D106: 2006 | E106: 22 | F106: 6 | G106: 133 | H106: 0 | J106: Cross-sections included: 79
A107: 106 | B107: 100 | C107: 80 | D107: 2006 | E107: 22 | F107: 42 | G107: 133 | H107: 0 | J107: Total panel (unbalanced) observations: 440 | Q107: =CONCATENATE("VMP of K @ KRATE = ",U49," lbs/acre and soil test K of ",U55) -> VMP of K @ KRATE = lbs/acre and soil test K of | U107: =+U105*U2/2.22*U103 -> 0.1434708548 | W107: =+W105*U2/2.22*U103 -> 0.375
A108: 107 | B108: 100 | C108: 140 | D108: 2006 | E108: 22 | F108: 68 | G108: 133 | H108: 0 | J108: Wallace and Hussain estimator of component variances
A109: 108 | B109: 96.5 | C109: 0 | D109: 2007 | E109: 23 | F109: 1 | G109: 92 | H109: 0 | Q109: Cost per lb of K | U109: =+U4/0.6/2000 -> 0.375 | W109: =(K117+IF(U14="Clay",K118,0)+IF(U10="Clearfield",K119,0)+U12*K120)/W111*U2/2.22*U103 -> 0.717354274 | X109: VMP at Alt User K
A110: 109 | B110: 96.5 | C110: 40 | D110: 2007 | E110: 23 | F110: 15 | G110: 92 | H110: 0 | J110: Variable | K110: Coefficient | L110: Std. Error | M110: t-Statistic | N110: Prob.
A111: 110 | B111: 100 | C111: 80 | D111: 2007 | E111: 23 | F111: 37 | G111: 92 | H111: 0 | Q111: Optimal K | U111: =IF(((K117+IF(U14="Clay",K118,0)+IF(U10="Clearfield",K119,0)+U12*K120)/(U109/(U2/2.22*U103)))>180,180,((K117+IF(U14="Clay",K118,0)+IF(U10="Clearfield",K119,0)+U12*K120)/(U109/(U2/2.22*U103)))) -> 9.564723654 | W111: 5 | X111: Alt User K
A112: 111 | B112: 97.8 | C112: 120 | D112: 2007 | E112: 23 | F112: 57 | G112: 92 | H112: 0 | J112: C | K112: 92.04835626 | L112: 0.8118564696 | M112: 113.3800859 | N112: 0
A113: 112 | B113: 98.7 | C113: 160 | D113: 2007 | E113: 23 | F113: 71 | G113: 92 | H113: 0 | J113: DRREC | K113: 1.674272927 | L113: 0.6247099459 | M113: 2.680080472 | N113: 0.007642508367 | Q113: Expected Yield | U113: =(+K112+IF(U16="Yes",K113,0)+LN(U111)*(K117+IF(U10="Clearfield",K119,0)+IF(U14="Clay",K118,0)+U12*K120)+IF(U14="Clay",K116,0)+IF(U10="Clearfield",K114,0)+U12*K115)*U103 -> 179.234955 | W113: =(+K112+IF(U16="Yes",K113,0)+LN(W111)*(K117+IF(U10="Clearfield",K119,0)+IF(U14="Clay",K118,0)+U12*K120)+IF(U14="Clay",K116,0)+IF(U10="Clearfield",K114,0)+U12*K115)*U103 -> 178.7184637
A114: 113 | B114: 93.7 | C114: 0 | D114: 2007 | E114: 24 | F114: 2 | G114: 104 | H114: 0 | J114: DCLFIELD | K114: 0.9538761766 | L114: 0.599352375 | M114: 1.591511465 | N114: 0.1122276617
A115: 114 | B115: 100 | C115: 40 | D115: 2007 | E115: 24 | F115: 16 | G115: 104 | H115: 0 | J115: KSOIL | K115: 0.02514531757 | L115: 0.007907350482 | M115: 3.179992796 | N115: 0.001579079719 | Q115: Added Profit in $/acre | U115: =+(U113-U8)*U2/2.22-(U111-U6)*U109 -> 2.34207981 | W115: =+(W113-U8)*U2/2.22-(W111-U6)*U109 -> 1.727314174
A116: 115 | B116: 98.9 | C116: 80 | D116: 2007 | E116: 24 | F116: 38 | G116: 104 | H116: 0 | J116: DCLAY | K116: -3.488411949 | L116: 1.646380839 | M116: -2.118836581 | N116: 0.03467569419
A117: 116 | B117: 100 | C117: 120 | D117: 2007 | E117: 24 | F117: 58 | G117: 104 | H117: 0 | J117: LNK | K117: 0.9466911285 | L117: 0.1187053689 | M117: 7.975133199 | N117: 1.383119288e-14
A118: 117 | B118: 97.4 | C118: 160 | D118: 2007 | E118: 24 | F118: 72 | G118: 104 | H118: 0 | J118: LNK*DCLAY | K118: 0.4990002373 | L118: 0.2438559311 | M118: 2.046291165 | N118: 0.04133396676 | Q118: K rate | R118: Exp. Yield
A119: 118 | B119: 101.4 | C119: 0 | D119: 2007 | E119: 25 | F119: 3 | G119: 101 | H119: 0 | J119: LNK*DCLFIELD | K119: -0.1496455639 | L119: 0.09193539344 | M119: -1.627725279 | N119: 0.1043139117 | Q119: 0.01 | R119: =(+$K$112+IF($U$16="Yes",$K$113,0)+LN(Q119)*($K$117+IF($U$10="Clearfield",$K$119,0)+IF($U$14="Clay",$K$118,0)+$U$12*$K$120)+IF($U$14="Clay",$K$116,0)+IF($U$10="Clearfield",$K$114,0)+$U$12*$K$115)*$U$103 -> 173.7699997
A120: 119 | B120: 99.5 | C120: 40 | D120: 2007 | E120: 25 | F120: 17 | G120: 101 | H120: 0 | J120: LNK*KSOIL | K120: -0.004738215818 | L120: 0.001134485983 | M120: -4.176530947 | N120: 3.583942662e-05 | Q120: 2 | R120: 177.9888551
A121: 120 | B121: 95.2 | C121: 80 | D121: 2007 | E121: 25 | F121: 39 | G121: 101 | H121: 0 | Q121: 5 | R121: 178.7184637
A122: 121 | B122: 98.1 | C122: 120 | D122: 2007 | E122: 25 | F122: 59 | G122: 101 | H122: 0 | K122: Effects Specification | Q122: 7 | R122: 178.9863842
A123: 122 | B123: 100 | C123: 160 | D123: 2007 | E123: 25 | F123: 73 | G123: 101 | H123: 0 | M123: S.D. | N123: Rho | Q123: 10 | R123: 179.2703914
A124: 123 | B124: 100 | C124: 0 | D124: 2007 | E124: 26 | F124: 4 | G124: 132 | H124: 0 | Q124: 15 | R124: 179.5932483
A125: 124 | B125: 100 | C125: 40 | D125: 2007 | E125: 26 | F125: 18 | G125: 132 | H125: 0 | J125: Period random | M125: 1.106470735 | N125: 0.05032333769 | Q125: 30 | R125: 180.145176
A126: 125 | B126: 87.4 | C126: 80 | D126: 2007 | E126: 26 | F126: 40 | G126: 132 | H126: 0 | J126: Idiosyncratic random | M126: 4.806656593 | N126: 0.9496766623 | Q126: 50 | R126: 180.5519276
A127: 126 | B127: 98.2 | C127: 120 | D127: 2007 | E127: 26 | F127: 60 | G127: 132 | H127: 0 | Q127: 70 | R127: 180.8198481
A128: 127 | B128: 92.8 | C128: 160 | D128: 2007 | E128: 26 | F128: 74 | G128: 132 | H128: 0 | K128: Weighted Statistics | Q128: 90 | R128: 181.0199605
A129: 128 | B129: 97.8 | C129: 0 | D129: 2007 | E129: 27 | F129: 5 | G129: 150 | H129: 0 | Q129: 100 | R129: 181.1038552
A130: 129 | B130: 100 | C130: 40 | D130: 2007 | E130: 27 | F130: 19 | G130: 150 | H130: 0 | J130: R-squared | K130: 0.2740428809 | L130: Mean dependent var | N130: 59.43892963 | Q130: 110 | R130: 181.1797472
A131: 130 | B131: 97.2 | C131: 80 | D131: 2007 | E131: 27 | F131: 41 | G131: 150 | H131: 0 | J131: Adjusted R-squared | K131: 0.2605680388 | L131: S.D. dependent var | N131: 9.954107887 | Q131: 120 | R131: 181.2490312
A132: 131 | B132: 98.9 | C132: 120 | D132: 2007 | E132: 27 | F132: 61 | G132: 150 | H132: 0 | J132: S.E. of regression | K132: 4.812796269 | L132: Sum squared resid | N132: 9983.256415 | Q132: 130 | R132: 181.3127663
A133: 132 | B133: 98.3 | C133: 160 | D133: 2007 | E133: 27 | F133: 75 | G133: 150 | H133: 0 | J133: F-statistic | K133: 20.33737231 | L133: Durbin-Watson stat | N133: 2.371216243 | Q133: 140 | R133: 181.3717757
A134: 133 | B134: 86.9 | C134: 0 | D134: 2007 | E134: 28 | F134: 6 | G134: 81 | H134: 0 | J134: Prob(F-statistic) | K134: 3.890647391e-26 | Q134: 150 | R134: 181.4267122
A135: 134 | B135: 96.2 | C135: 40 | D135: 2007 | E135: 28 | F135: 20 | G135: 81 | H135: 0 | Q135: 160 | R135: 181.4781019
A136: 135 | B136: 95.6 | C136: 80 | D136: 2007 | E136: 28 | F136: 42 | G136: 81 | H136: 0 | K136: Unweighted Statistics | Q136: 170 | R136: 181.526375
A137: 136 | B137: 100 | C137: 120 | D137: 2007 | E137: 28 | F137: 62 | G137: 81 | H137: 0 | Q137: 180 | R137: 181.5718882
A138: 137 | B138: 100 | C138: 160 | D138: 2007 | E138: 28 | F138: 76 | G138: 81 | H138: 0 | J138: R-squared | K138: 0.2734639836 | L138: Mean dependent var | N138: 95.92045455
A139: 138 | B139: 81.2 | C139: 0 | D139: 2007 | E139: 29 | F139: 7 | G139: 56 | H139: 0 | J139: Sum squared resid | K139: 10439.69476 | L139: Durbin-Watson stat | N139: 2.364096255
A140: 139 | B140: 94.2 | C140: 40 | D140: 2007 | E140: 29 | F140: 21 | G140: 61 | H140: 0
A141: 140 | B141: 96.9 | C141: 80 | D141: 2007 | E141: 29 | F141: 43 | G141: 78 | H141: 0
A142: 141 | B142: 99 | C142: 120 | D142: 2007 | E142: 29 | F142: 63 | G142: 87 | H142: 0 | W142: FALSE
A143: 142 | B143: 100 | C143: 160 | D143: 2007 | E143: 29 | F143: 77 | G143: 121 | H143: 0 | J143: =0.8301513*2.47105*0.453592 -> 0.930473849 | Q143: Profit-Maximizing K Rate Calculator for Rice as developed by Dr. M. Popp, Dr. N. Slaton, J. Norsworthy and Dr. B. Dixon
A144: 143 | B144: 84 | C144: 0 | D144: 2007 | E144: 30 | F144: 8 | G144: 54 | H144: 0
A145: 144 | B145: 93.6 | C145: 40 | D145: 2007 | E145: 30 | F145: 22 | G145: 64 | H145: 0 | J145: Dependent Variable: RELYLD | Q145: What is your expected rice price? | U145: 12.5 | V145: =IF(W142,CONCATENATE("$ kg",Z155),"$/cwt") -> $/cwt
A146: 145 | B146: 95.7 | C146: 80 | D146: 2007 | E146: 30 | F146: 44 | G146: 70 | H146: 0 | J146: Method: Panel EGLS (Period random effects)
A147: 146 | B147: 99.5 | C147: 120 | D147: 2007 | E147: 30 | F147: 64 | G147: 74 | H147: 0 | J147: Date: 01/31/20 Time: 14:06 | Q147: What do you expect to pay for muriate of potash fertilizer? | U147: 465 | V147: =IF(W142,CONCATENATE("$ Mg",Z155),"$/ton") -> $/ton | W147: =+U147/IF(W142,1000,2000)/IF(W142,0.49809078131038,0.6) -> 0.3875 | X147: =IF(W142,CONCATENATE("$ kg",Z155," K"),CONCATENATE("$/lb of K",Z153,"O")) -> $/lb of K₂O
A148: 147 | B148: 100 | C148: 160 | D148: 2007 | E148: 30 | F148: 78 | G148: 99 | H148: 0 | J148: Sample: 2001 2018 IF KRATE<>135 AND DCLAY=0
A149: 148 | B149: 81.8 | C149: 0 | D149: 2006 | E149: 31 | F149: 7 | G149: 60 | H149: 0 | J149: Periods included: 17 | Q149: What is the yield potential of your field? | U149: 175 | V149: =IF(W142,CONCATENATE("kg ha",Z155),"bu/acre") -> bu/acre | W149: =+U149/100 -> 1.75 | X149: kg ha-1/relative yield % (100% = yield potential)
A150: 149 | B150: 94.9 | C150: 40 | D150: 2006 | E150: 31 | F150: 20 | G150: 66 | H150: 0 | J150: Cross-sections included: 77 | BV150: Labels
A151: 150 | B151: 97.5 | C151: 80 | D151: 2006 | E151: 31 | F151: 43 | G151: 67 | H151: 0 | J151: Total panel (unbalanced) observations: 414 | Q151: What is your soil test-K value (SK) and range? | U151: 95 | V151: =IF(W142,CONCATENATE("mg K kg",Z155),"ppm") -> ppm | W151: Soil test range +/- | Y151: 20 | BI151: High | BJ151: =MMULT($BJ$157:$BO$157,BJ160:BJ165) -> 0 | BK151: 0 | BL151: 0 | BM151: 0 | BN151: 0 | BO151: 0 | BP151: =SQRT(MMULT(BJ151:BO151,BR160:BR165))*1.96 -> 0 | BV151: =CONCATENATE(TEXT(T156,0)," ",BQ154," ",TEXT(BP151,"0.0")) -> 0 ± 0.0
A152: 151 | B152: 97.5 | C152: 120 | D152: 2006 | E152: 31 | F152: 62 | G152: 81 | H152: 0 | J152: Wallace and Hussain estimator of component variances | W152: Max K recommendation: | Y152: =180*IF(W142,BP172,1) -> 180 | BI152: Avg | BJ152: =MMULT($BJ$156:$BO$156,BJ160:BJ165) -> -0.08922255874 | BK152: 0.0002865182185 | BL152: -0.001434914491 | BM152: 0.0244444212 | BN152: -8.790347018e-05 | BO152: 5.392240709e-06 | BP152: =SQRT(MMULT(BJ152:BO152,BQ160:BQ165))*1.96 -> 1.02066431 | BQ152: 95% C.I. of profit maximizing rate at conditional mean | BV152: =CONCATENATE(TEXT(U156,0)," ",BQ154," ",TEXT(BP152,"0.0")) -> 24 ± 1.0
A153: 152 | B153: 100 | C153: 160 | D153: 2006 | E153: 31 | F153: 76 | G153: 94 | H153: 0 | J153: White cross-section standard errors & covariance (d.f. corrected) | Q153: What is your cost to apply fertilizer (equipment, labor, fuel or custom)? | U153: 5 | V153: =IF(W142,CONCATENATE("$ ha",Z155),"$/acre") -> $/acre | W153: =CONCATENATE("...your rate in ",IF(W142,CONCATENATE("kg K ha",Z155),CONCATENATE("lbs of K",Z153,"O/acre")),":") -> ...your rate in lbs of K₂O/acre: | Y153: =(223-1.825*U151) -> 49.625 | Z153: ₂ | BI153: Low | BJ153: =MMULT($BJ$155:$BO$155,BJ160:BJ165) -> -0.123453785 | BK153: =MMULT($BJ$155:$BO$155,BK160:BK165) -> 0.000311715942 | BL153: -0.00301573059 | BM153: 0.0457827739 | BN153: -0.0001583577367 | BO153: 1.123875569e-05 | BP153: =SQRT(MMULT(BJ153:BO153,BP160:BP165))*1.96 -> 3.091917557 | BV153: =CONCATENATE(TEXT(V156,0)," ",BQ154," ",TEXT(BP153,"0.0")) -> 94 ± 3.1
A154: 153 | B154: 96.5 | C154: 0 | D154: 2001 | E154: 32 | F154: 1 | G154: 153 | H154: 0 | J154: Variable | K154: Coefficient | L154: Std. Error | M154: t-Statistic | N154: Prob. | O154: English | Q154: =CONCATENATE("Profit change comparing applying at ",TEXT(ROUND(U156,1),"0.0"),IF(W142,CONCATENATE("kg K ha",Z155),CONCATENATE("lb K",Z153,"O/acre"))," to no fertilizer:") -> Profit change comparing applying at 23.9lb K₂O/acre to no fertilizer: | U154: =+U160*$U$145/IF(W142,1,2.22222222222)-U156*$W$147-IF(U156>0,$U$153)-R165*$U$145/IF(W142,1,2.22222222222) -> -4.266458944 | V154: =IF(W142,CONCATENATE("$ ha",Z155),"$/acre") -> $/acre | W154: ...to your rate: | Y154: =+U162 -> 0.8442123434 | Z154: =CONCATENATE("lb Fertilizer-K",Z153,"O/acre") -> lb Fertilizer-K₂O/acre | BQ154: ±
A155: 154 | B155: 96.5 | C155: 60 | D155: 2001 | E155: 32 | F155: 27 | G155: 153 | H155: 0 | T155: =CONCATENATE(U151+Y151," ppm soil K") -> 115 ppm soil K | U155: =CONCATENATE(U151," ppm soil K") -> 95 ppm soil K | V155: =CONCATENATE(U151-Y151," ppm soil K") -> 75 ppm soil K | W155: K yield max | Z155: ⁻¹ | BI155: Low | BJ155: =+V156 -> 93.93366238 | BK155: =+BJ155^2 -> 8823.532928 | BL155: =+(U151-Y151)*BJ155 -> 7045.024678 | BM155: =+(U151-Y151)^0.5*BJ155 -> 813.4893789 | BN155: =+(U151-Y151)^0.5*BK155 -> 76414.03667 | BO155: =+(U151-Y151)*BK155 -> 661764.9696
A156: 155 | B156: 100 | C156: 120 | D156: 2001 | E156: 32 | F156: 57 | G156: 153 | H156: 0 | J156: C | K156: 11.75039641 | L156: 25.15261737 | M156: 0.4671639628 | N156: 0.640633807 | O156: 11.75039641 | Q156: Profit Maximizing K rate: | T156: =IF((IF(W142,K159,O159)+2*IF(W142,K160,O160)*0.1+IF(W142,K161,O161)*(U151+Y151)+IF(W142,K162,O162)*(U151+Y151)^0.5+2*IF(W142,K163,O163)*(U151+Y151)^0.5*0.1+2*IF(W142,K164,O164)*(U151+Y151)*0.1)<0,0,IF(((IF(W142,K159,O159)+2*IF(W142,K160,O160)*Y152+IF(W142,K161,O161)*(U151+Y151)+IF(W142,K162,O162)*(U151+Y151)^0.5+2*IF(W142,K163,O163)*(U151+Y151)^0.5*Y152+2*IF(W142,K164,O164)*(U151+Y151)*Y152)*U145/IF(W142,1,2.2222222222222)*W149)>W147,IF(Y152<T188,Y152,T188),IF((W147/(U145/IF(W142,1,2.2222222222222)*W149)-IF(W142,K159,O159)-IF(W142,K161,O161)*(U151+Y151)-IF(W142,K162,O162)*(U151+Y151)^0.5)/(2*(IF(W142,K160,O160)+IF(W142,K163,O163)*(U151+Y151)^0.5+IF(W142,K164,O164)*(U151+Y151)))<0,0,IF((W147/(U145/IF(W142,1,2.2222222222222)*W149)-IF(W142,K159,O159)-IF(W142,K161,O161)*(U151+Y151)-IF(W142,K162,O162)*(U151+Y151)^0.5)/(2*(IF(W142,K160,O160)+IF(W142,K163,O163)*(U151+Y151)^0.5+IF(W142,K164,O164)*(U151+Y151)))>T188,T188,(W147/(U145/IF(W142,1,2.2222222222222)*W149)-IF(W142,K159,O159)-IF(W142,K161,O161)*(U151+Y151)-IF(W142,K162,O162)*(U151+Y151)^0.5)/(2*(IF(W142,K160,O160)+IF(W142,K163,O163)*(U151+Y151)^0.5+IF(W142,K164,O164)*(U151+Y151))))))) -> 0 | U156: =IF((IF(W142,K159,O159)+2*IF(W142,K160,O160)*0.1+IF(W142,K161,O161)*(U151)+IF(W142,K162,O162)*(U151)^0.5+2*IF(W142,K163,O163)*(U151)^0.5*0.1+2*IF(W142,K164,O164)*(U151)*0.1)<0,0,IF(((IF(W142,K159,O159)+2*IF(W142,K160,O160)*Y152+IF(W142,K161,O161)*(U151)+IF(W142,K162,O162)*(U151)^0.5+2*IF(W142,K163,O163)*(U151)^0.5*Y152+2*IF(W142,K164,O164)*(U151)*Y152)*U145/IF(W142,1,2.2222222222222)*W149)>W147,IF(Y152<U188,Y152,U188),IF((W147/(U145/IF(W142,1,2.2222222222222)*W149)-IF(W142,K159,O159)-IF(W142,K161,O161)*(U151)-IF(W142,K162,O162)*(U151)^0.5)/(2*(IF(W142,K160,O160)+IF(W142,K163,O163)*(U151)^0.5+IF(W142,K164,O164)*(U151)))<0,0,IF((W147/(U145/IF(W142,1,2.2222222222222)*W149)-IF(W142,K159,O159)-IF(W142,K161,O161)*(U151)-IF(W142,K162,O162)*(U151)^0.5)/(2*(IF(W142,K160,O160)+IF(W142,K163,O163)*(U151)^0.5+IF(W142,K164,O164)*(U151)))>U188,U188,(W147/(U145/IF(W142,1,2.2222222222222)*W149)-IF(W142,K159,O159)-IF(W142,K161,O161)*(U151)-IF(W142,K162,O162)*(U151)^0.5)/(2*(IF(W142,K160,O160)+IF(W142,K163,O163)*(U151)^0.5+IF(W142,K164,O164)*(U151))))))) -> 23.94119226 | V156: =IF((IF(W142,K159,O159)+2*IF(W142,K160,O160)*0.1+IF(W142,K161,O161)*(U151-Y151)+IF(W142,K162,O162)*(U151-Y151)^0.5+2*IF(W142,K163,O163)*(U151-Y151)^0.5*0.1+2*IF(W142,K164,O164)*(U151-Y151)*0.1)<0,0,IF(((IF(W142,K159,O159)+2*IF(W142,K160,O160)*Y152+IF(W142,K161,O161)*(U151-Y151)+IF(W142,K162,O162)*(U151-Y151)^0.5+2*IF(W142,K163,O163)*(U151-Y151)^0.5*Y152+2*IF(W142,K164,O164)*(U151-Y151)*Y152)*U145/IF(W142,1,2.2222222222222)*W149)>W147,IF(Y152<V188,Y152,V188),IF((W147/(U145/IF(W142,1,2.2222222222222)*W149)-IF(W142,K159,O159)-IF(W142,K161,O161)*(U151-Y151)-IF(W142,K162,O162)*(U151-Y151)^0.5)/(2*(IF(W142,K160,O160)+IF(W142,K163,O163)*(U151-Y151)^0.5+IF(W142,K164,O164)*(U151-Y151)))<0,0,IF((W147/(U145/IF(W142,1,2.2222222222222)*W149)-IF(W142,K159,O159)-IF(W142,K161,O161)*(U151-Y151)-IF(W142,K162,O162)*(U151-Y151)^0.5)/(2*(IF(W142,K160,O160)+IF(W142,K163,O163)*(U151-Y151)^0.5+IF(W142,K164,O164)*(U151-Y151)))>V188,V188,(W147/(U145/IF(W142,1,2.2222222222222)*W149)-IF(W142,K159,O159)-IF(W142,K161,O161)*(U151-Y151)-IF(W142,K162,O162)*(U151-Y151)^0.5)/(2*(IF(W142,K160,O160)+IF(W142,K163,O163)*(U151-Y151)^0.5+IF(W142,K164,O164)*(U151-Y151))))))) -> 93.93366238 | W156: =+U187 -> 175.3352516 | Z156: =CONCATENATE("Yield in kg ha",Z155) -> Yield in kg ha⁻¹ | BI156: Avg | BJ156: =+U156 -> 23.94119226 | BK156: =+BJ156^2 -> 573.1806869 | BL156: =+U151*BJ156 -> 2274.413265 | BM156: =U151^0.5*BJ156 -> 233.3498774 | BN156: =+U151^0.5*BK156 -> 5586.674278 | BO156: =U151*BK156 -> 54452.16526
A157: 156 | B157: 94.8 | C157: 180 | D157: 2001 | E157: 32 | F157: 79 | G157: 153 | H157: 0 | J157: KSOIL | K157: -0.5530711173 | L157: 0.2697197605 | M157: -2.050539851 | N157: 0.0409548935 | O157: -0.5530711174 | Q157: VMP @ Profit Max: | T157: =IF((K159+2*K160*T156+K161*(U151+Y151)+K162*(U151+Y151)^0.5+2*K163*(U151+Y151)^0.5*T156+2*K164*(U151+Y151)*T156)*U145*W149<0,"na",(K159+2*K160*T156+K161*(U151+Y151)+K162*(U151+Y151)^0.5+2*K163*(U151+Y151)^0.5*T156+2*K164*(U151+Y151)*T156)*U145*W149) -> 0.2184681573 | U157: =IF((K159+2*K160*U156+K161*(U151)+K162*(U151)^0.5+2*K163*(U151)^0.5*U156+2*K164*(U151)*U156)*U145*W149<0,"na",(K159+2*K160*U156+K161*(U151)+K162*(U151)^0.5+2*K163*(U151)^0.5*U156+2*K164*(U151)*U156)*U145*W149) -> 0.9144902812 | V157: =IF((K159+2*K160*V156+K161*(U151-Y151)+K162*(U151-Y151)^0.5+2*K163*(U151-Y151)^0.5*V156+2*K164*(U151-Y151)*V156)*U145*W149<0,"na",(K159+2*K160*V156+K161*(U151-Y151)+K162*(U151-Y151)^0.5+2*K163*(U151-Y151)^0.5*V156+2*K164*(U151-Y151)*V156)*U145*W149) -> 0.8075170235 | Z157: =CONCATENATE("kg Fertilizer-K ha",Z155) -> kg Fertilizer-K ha⁻¹ | BI157: High | BJ157: =+T156 -> 0 | BK157: =+BJ157^2 -> 0 | BL157: =+(U151+Y151)*BJ157 -> 0 | BM157: =+(U151+Y151)^0.5*BJ157 -> 0 | BN157: =+(U151+Y151)^0.5*BK157 -> 0 | BO157: =(U151+Y151)*BK157 -> 0
A158: 157 | B158: 95.3 | C158: 0 | D158: 2002 | E158: 33 | F158: 1 | G158: 113 | H158: 0 | J158: KSOIL^.5 | K158: 13.89586261 | L158: 5.254161259 | M158: 2.644734701 | N158: 0.008493422719 | O158: 13.89586261 | Q158: UAEX recommendation: | T158: =IF((U151+Y151)<61,120*IF(W142,BP172,1),IF((U151+Y151)<=90,90*IF(W142,BP172,1),IF((U151+Y151)<=130,60*IF(W142,BP172,1),0))) -> 60 | U158: =+Y153 -> 49.625 | V158: =IF((U151-Y151)<61,120*IF(W142,BP172,1),IF((U151-Y151)<=90,90*IF(W142,BP172,1),IF((U151-Y151)<=130,60*IF(W142,BP172,1),0))) -> 90 | BJ158: Coefficient Covariance Matrix as available in Eviews under the View Menu in the Equation Editor
A159: 158 | B159: 100 | C159: 60 | D159: 2002 | E159: 33 | F159: 27 | G159: 113 | H159: 0 | J159: MKRATE | K159: 1.468430116 | L159: 0.3784135595 | M159: 3.880490217 | N159: 0.0001216566887 | O159: 1.366387571 | W159: Est. Yield Max | BJ159: K | BK159: K^2 | BL159: S*K | BM159: S^.5*K | BN159: S^.5*K^2 | BO159: S*K^2 | BP159: Low | BQ159: Avg | BR159: High | BW159: English
A160: 159 | B160: 98.4 | C160: 120 | D160: 2002 | E160: 33 | F160: 57 | G160: 113 | H160: 0 | J160: MKRATE^2 | K160: -0.006536869186 | L160: 0.00163267241 | M160: -4.003784926 | N160: 7.415189242e-05 | O160: -0.005659929664 | Q160: Est. Yield at Profit-Max K: | T160: =IF((+K156+K157*(U151+Y151)+K158*(U151+Y151)^0.5+IF(W142,K159,O159)*T156+IF(W142,K160,O160)*T156^2+IF(W142,K161,O161)*(U151+Y151)*T156+IF(W142,K162,O162)*(U151+Y151)^0.5*T156+IF(W142,K163,O163)*(U151+Y151)^0.5*T156^2+IF(W142,K164,O164)*(U151+Y151)*T156^2)*W149>U149,U149,(+K156+K157*(U151+Y151)+K158*(U151+Y151)^0.5+IF(W142,K159,O159)*T156+IF(W142,K160,O160)*T156^2+IF(W142,K161,O161)*(U151+Y151)*T156+IF(W142,K162,O162)*(U151+Y151)^0.5*T156+IF(W142,K163,O163)*(U151+Y151)^0.5*T156^2+IF(W142,K164,O164)*(U151+Y151)*T156^2)*W149) -> 170.0365501 | U160: =IF((+K156+K157*U151+K158*U151^0.5+IF(W142,K159,O159)*U156+IF(W142,K160,O160)*U156^2+IF(W142,K161,O161)*U151*U156+IF(W142,K162,O162)*U151^0.5*U156+IF(W142,K163,O163)*U151^0.5*U156^2+IF(W142,K164,O164)*(U151)*U156^2)*W149>U149,U149,(+K156+K157*U151+K158*U151^0.5+IF(W142,K159,O159)*U156+IF(W142,K160,O160)*U156^2+IF(W142,K161,O161)*U151*U156+IF(W142,K162,O162)*U151^0.5*U156+IF(W142,K163,O163)*U151^0.5*U156^2+IF(W142,K164,O164)*(U151)*U156^2)*W149) -> 167.4150113 | V160: =IF((+K156+K157*(U151-Y151)+K158*(U151-Y151)^0.5+IF(W142,K159,O159)*V156+IF(W142,K160,O160)*V156^2+IF(W142,K161,O161)*(U151-Y151)*V156+IF(W142,K162,O162)*(U151-Y151)^0.5*V156+IF(W142,K163,O163)*(U151-Y151)^0.5*V156^2+IF(W142,K164,O164)*(U151-Y151)*V156^2)*W149>U149,U149,(+K156+K157*(U151-Y151)+K158*(U151-Y151)^0.5+IF(W142,K159,O159)*V156+IF(W142,K160,O160)*V156^2+IF(W142,K161,O161)*(U151-Y151)*V156+IF(W142,K162,O162)*(U151-Y151)^0.5*V156+IF(W142,K163,O163)*(U151-Y151)^0.5*V156^2+IF(W142,K164,O164)*(U151-Y151)*V156^2)*W149) -> 170.561288 | W160: =+U185 -> 0 | BI160: KRATE | BJ160: =IF($W$142,BU167,BU160) -> 0.1239865626 | BK160: =IF($W$142,BV167,BV160) -> -0.0004468687905 | BL160: 0.001346796763 | BM160: -0.02627442232 | BN160: 9.627036054e-05 | BO160: -4.983134738e-06 | BP160: =+BJ155 -> 93.93366238 | BQ160: =+BJ156 -> 23.94119226 | BR160: =+BJ157 -> 0 | BU160: 0.1239865626 | BV160: -0.0004468687905 | BW160: 0.001346796763 | BX160: -0.02627442232 | BY160: 9.627036054e-05 | BZ160: -4.983134738e-06
A161: 160 | B161: 97.9 | C161: 180 | D161: 2002 | E161: 33 | F161: 79 | G161: 113 | H161: 0 | J161: KSOIL*MKRATE | K161: 0.009857073615 | L161: 0.004293023232 | M161: 2.296068081 | N161: 0.02218196532 | O161: 0.009172096602 | Q161: Est. Yield at UAEX rec.: | T161: =IF((+K156+K157*(U151+Y151)+K158*(U151+Y151)^0.5+IF(W142,K159,O159)*T158+IF(W142,K160,O160)*T158^2+IF(W142,K161,O161)*(U151+Y151)*T158+IF(W142,K162,O162)*(U151+Y151)^0.5*T158+IF(W142,K163,O163)*(U151+Y151)^0.5*T158^2+IF(W142,K164,O164)*(U151+Y151)*T158^2)*W149>U149,U149,(+K156+K157*(U151+Y151)+K158*(U151+Y151)^0.5+IF(W142,K159,O159)*T158+IF(W142,K160,O160)*T158^2+IF(W142,K161,O161)*(U151+Y151)*T158+IF(W142,K162,O162)*(U151+Y151)^0.5*T158+IF(W142,K163,O163)*(U151+Y151)^0.5*T158^2+IF(W142,K164,O164)*(U151+Y151)*T158^2)*W149) -> 170.9567254 | U161: =IF((+K156+K157*U151+K158*U151^0.5+IF(W142,K159,O159)*U158+IF(W142,K160,O160)*U158^2+IF(W142,K161,O161)*U151*U158+IF(W142,K162,O162)*U151^0.5*U158+IF(W142,K163,O163)*U151^0.5*U158^2+IF(W142,K164,O164)*(U151)*U158^2)*W149>U149,U149,(+K156+K157*U151+K158*U151^0.5+IF(W142,K159,O159)*U158+IF(W142,K160,O160)*U158^2+IF(W142,K161,O161)*U151*U158+IF(W142,K162,O162)*U151^0.5*U158+IF(W142,K163,O163)*U151^0.5*U158^2+IF(W142,K164,O164)*(U151)*U158^2)*W149) -> 169.0342581 | V161: =IF((+K156+K157*(U151-Y151)+K158*(U151-Y151)^0.5+IF(W142,K159,O159)*V158+IF(W142,K160,O160)*V158^2+IF(W142,K161,O161)*(U151-Y151)*V158+IF(W142,K162,O162)*(U151-Y151)^0.5*V158+IF(W142,K163,O163)*(U151-Y151)^0.5*V158^2+IF(W142,K164,O164)*(U151-Y151)*V158^2)*W149>U149,U149,(+K156+K157*(U151-Y151)+K158*(U151-Y151)^0.5+IF(W142,K159,O159)*V158+IF(W142,K160,O160)*V158^2+IF(W142,K161,O161)*(U151-Y151)*V158+IF(W142,K162,O162)*(U151-Y151)^0.5*V158+IF(W142,K163,O163)*(U151-Y151)^0.5*V158^2+IF(W142,K164,O164)*(U151-Y151)*V158^2)*W149) -> 170.2806225 | BI161: KRATE^2 | BJ161: =IF($W$142,BU168,BU161) -> -0.0004468687905 | BK161: 1.998391566e-06 | BL161: -4.599211807e-06 | BM161: 9.20516686e-05 | BN161: -4.090993712e-07 | BO161: 2.030071881e-08 | BP161: =+BK155 -> 8823.532928 | BQ161: =+BK156 -> 573.1806869 | BR161: =+BK157 -> 0 | BU161: -0.0004468687905 | BV161: 1.998391566e-06 | BW161: -4.599211807e-06 | BX161: 9.20516686e-05 | BY161: -4.090993712e-07 | BZ161: 2.030071881e-08
A162: 161 | B162: 98.8 | C162: 0 | D162: 2001 | E162: 34 | F162: 2 | G162: 113 | H162: 0 | J162: KSOIL^.5*MKRATE | K162: -0.2417058492 | L162: 0.0814382365 | M162: -2.967965167 | N162: 0.003175726744 | O162: -0.2249094898 | Q162: Added Profit in $/acre | T162: =+(T160-T161)*U145/IF(W142,1,2.2222222222222)-(T156-T158)*W147-IF(T158=0,IF(T156=0,0,U153),IF(T156=0,IF(T158>0,-U153,0))) -> 23.07401408 | U162: =+(U160-U161)*U145/IF(W142,1,2.2222222222222)-(U156-U158)*W147-IF(U158=0,IF(U156=0,0,U153),IF(U156=0,IF(U158>0,-U153,0))) -> 0.8442123434 | V162: =+(V160-V161)*U145/IF(W142,1,2.2222222222222)-(V156-V158)*W147-IF(V158=0,IF(V156=0,0,U153),IF(V156=0,IF(V158>0,-U153,0))) -> 0.05444913929 | W162: =+(U160-W160)*U145/IF(W142,1,2.2222222222222)-(U156-W156)*W147-IF(W156=0,IF(U156=0,0,U153),IF(U156=0,IF(W156>0,-U153,0))) -> 1000.374637 | BI162: KSOIL*KRATE | BJ162: 0.001346796763 | BK162: -4.599211807e-06 | BL162: 1.595760525e-05 | BM162: -0.0003005845988 | BN162: 1.065079506e-06 | BO162: -5.777029094e-08 | BP162: =+BL155 -> 7045.024678 | BQ162: =+BL156 -> 2274.413265 | BR162: =+BL157 -> 0 | BU162: 0.001346796763 | BV162: -4.599211807e-06 | BW162: 1.595760525e-05 | BX162: -0.0003005845988 | BY162: 1.065079506e-06 | BZ162: -5.777029094e-08
A163: 162 | B163: 100 | C163: 30 | D163: 2001 | E163: 34 | F163: 13 | G163: 113 | H163: 0 | J163: KSOIL^.5*MKRATE^2 | K163: 0.001120626718 | L163: 0.0003424969586 | M163: 3.27193188 | N163: 0.001159693785 | O163: 0.0009702914686 | T163: =+T161-T160 -> 0.9201752749 | U163: =+U161-U160 -> 1.619246783 | V163: =+V161-V160 -> -0.2806654775 | BI163: KSOIL^.5*KRATE | BJ163: -0.02627442232 | BK163: 9.20516686e-05 | BL163: -0.0003005845988 | BM163: 0.005742459773 | BN163: -2.068054483e-05 | BO163: 1.10023103e-06 | BP163: =+BM155 -> 813.4893789 | BQ163: =+BM156 -> 233.3498774 | BR163: =+BM157 -> 0 | BU163: -0.02627442232 | BV163: 9.20516686e-05 | BW163: -0.0003005845988 | BX163: 0.005742459773 | BY163: -2.068054483e-05 | BZ163: 1.10023103e-06
A164: 163 | B164: 98.2 | C164: 60 | D164: 2001 | E164: 34 | F164: 28 | G164: 113 | H164: 0 | J164: KSOIL*MKRATE^2 | K164: -4.774527315e-05 | L164: 1.782473111e-05 | M164: -2.678597105 | N164: 0.007694186614 | O164: -4.134010948e-05 | Q164: K rate | R164: =CONCATENATE("Est. Yield (SK = ",U151,")") -> Est. Yield (SK = 95) | S164: =CONCATENATE("Est. Yield (SK = ",U151-Y151,")") -> Est. Yield (SK = 75) | T164: =CONCATENATE("Est. Yield (SK = ",U151+Y151,")") -> Est. Yield (SK = 115) | AA164: Year | AB164: Potash Fertilizer Price in $/ton | AC164: Rough Rice Price in $/cwt | AD164: Rough Rice Yield in bu/acre | AE164: lbs/acre | BI164: KSOIL^.5*KRATE^2 | BJ164: 9.627036054e-05 | BK164: -4.090993712e-07 | BL164: 1.065079506e-06 | BM164: -2.068054483e-05 | BN164: 8.79419151e-08 | BO164: -4.52092238e-09 | BP164: =+BN155 -> 76414.03667 | BQ164: =+BN156 -> 5586.674278 | BR164: =+BN157 -> 0 | BU164: 9.627036054e-05 | BV164: -4.090993712e-07 | BW164: 1.065079506e-06 | BX164: -2.068054483e-05 | BY164: 8.79419151e-08 | BZ164: -4.52092238e-09
A165: 164 | B165: 98.2 | C165: 90 | D165: 2001 | E165: 34 | F165: 45 | G165: 113 | H165: 0 | Q165: 0 | R165: =IF((+$K$156+$K$157*$U$151+$K$158*$U$151^0.5+$K$159*Q165+$K$160*Q165^2+$K$161*$U$151*Q165+$K$162*$U$151^0.5*Q165+$K$163*$U$151^0.5*Q165^2+$K$164*$U$151*Q165^2)*$W$149>$U$149,$U$149,(+$K$156+$K$157*$U$151+$K$158*$U$151^0.5+$K$159*Q165+$K$160*Q165^2+$K$161*$U$151*Q165+$K$162*$U$151^0.5*Q165+$K$163*$U$151^0.5*Q165^2+$K$164*$U$151*Q165^2)*$W$149) -> 165.6353219 | S165: =IF((+$K$156+$K$157*($U$151-$Y$151)+$K$158*($U$151-$Y$151)^0.5+$K$159*Q165+$K$160*Q165^2+$K$161*($U$151-$Y$151)*Q165+$K$162*($U$151-$Y$151)^0.5*Q165+$K$163*($U$151-$Y$151)^0.5*Q165^2+$K$164*($U$151-$Y$151)*Q165^2)*$W$149>$U$149,$U$149,(+$K$156+$K$157*($U$151-$Y$151)+$K$158*($U$151-$Y$151)^0.5+$K$159*Q165+$K$160*Q165^2+$K$161*($U$151-$Y$151)*Q165+$K$162*($U$151-$Y$151)^0.5*Q165+$K$163*($U$151-$Y$151)^0.5*Q165^2+$K$164*($U$151-$Y$151)*Q165^2)*$W$149) -> 158.570585 | T165: =IF((+$K$156+$K$157*($U$151+$Y$151)+$K$158*($U$151+$Y$151)^0.5+$K$159*Q165+$K$160*Q165^2+$K$161*($U$151+$Y$151)*Q165+$K$162*($U$151+$Y$151)^0.5*Q165+$K$163*($U$151+$Y$151)^0.5*Q165^2+$K$164*($U$151+$Y$151)*Q165^2)*$W$149>$U$149,$U$149,(+$K$156+$K$157*($U$151+$Y$151)+$K$158*($U$151+$Y$151)^0.5+$K$159*Q165+$K$160*Q165^2+$K$161*($U$151+$Y$151)*Q165+$K$162*($U$151+$Y$151)^0.5*Q165+$K$163*($U$151+$Y$151)^0.5*Q165^2+$K$164*($U$151+$Y$151)*Q165^2)*$W$149) -> 170.0365501 | U165: =ROUNDUP((MAX(BJ175:BJ588,U149)+IF(W142,500,10))/10,0)*10 -> 190 | AA165: 2009 | AB165: 880 | AC165: 15 | AD165: =+AE165/45 -> 157.4444444 | AE165: 7085 | AR165: =CONCATENATE("Obs. Yields (",U151-Y151," < SK < ",U151+Y151,")") -> Obs. Yields (75 < SK < 115) | BI165: KSOIL*KRATE^2 | BJ165: -4.983134738e-06 | BK165: 2.030071881e-08 | BL165: -5.777029094e-08 | BM165: 1.10023103e-06 | BN165: -4.52092238e-09 | BO165: 2.381927039e-10 | BP165: =+BO155 -> 661764.9696 | BQ165: =+BO156 -> 54452.16526 | BR165: =+BO157 -> 0 | BU165: -4.983134738e-06 | BV165: 2.030071881e-08 | BW165: -5.777029094e-08 | BX165: 1.10023103e-06 | BY165: -4.52092238e-09 | BZ165: 2.381927039e-10
A166: 165 | B166: 97.5 | C166: 120 | D166: 2001 | E166: 34 | F166: 58 | G166: 113 | H166: 0 | K166: Effects Specification | Q166: 2 | R166: =IF((+$K$156+$K$157*$U$151+$K$158*$U$151^0.5+$K$159*Q166+$K$160*Q166^2+$K$161*$U$151*Q166+$K$162*$U$151^0.5*Q166+$K$163*$U$151^0.5*Q166^2+$K$164*$U$151*Q166^2)*$W$149>$U$149,$U$149,(+$K$156+$K$157*$U$151+$K$158*$U$151^0.5+$K$159*Q166+$K$160*Q166^2+$K$161*$U$151*Q166+$K$162*$U$151^0.5*Q166+$K$163*$U$151^0.5*Q166^2+$K$164*$U$151*Q166^2)*$W$149) -> 165.805753 | S166: =IF((+$K$156+$K$157*($U$151-$Y$151)+$K$158*($U$151-$Y$151)^0.5+$K$159*Q166+$K$160*Q166^2+$K$161*($U$151-$Y$151)*Q166+$K$162*($U$151-$Y$151)^0.5*Q166+$K$163*($U$151-$Y$151)^0.5*Q166^2+$K$164*($U$151-$Y$151)*Q166^2)*$W$149>$U$149,$U$149,(+$K$156+$K$157*($U$151-$Y$151)+$K$158*($U$151-$Y$151)^0.5+$K$159*Q166+$K$160*Q166^2+$K$161*($U$151-$Y$151)*Q166+$K$162*($U$151-$Y$151)^0.5*Q166+$K$163*($U$151-$Y$151)^0.5*Q166^2+$K$164*($U$151-$Y$151)*Q166^2)*$W$149) -> 158.9683631 | T166: =IF((+$K$156+$K$157*($U$151+$Y$151)+$K$158*($U$151+$Y$151)^0.5+$K$159*Q166+$K$160*Q166^2+$K$161*($U$151+$Y$151)*Q166+$K$162*($U$151+$Y$151)^0.5*Q166+$K$163*($U$151+$Y$151)^0.5*Q166^2+$K$164*($U$151+$Y$151)*Q166^2)*$W$149>$U$149,$U$149,(+$K$156+$K$157*($U$151+$Y$151)+$K$158*($U$151+$Y$151)^0.5+$K$159*Q166+$K$160*Q166^2+$K$161*($U$151+$Y$151)*Q166+$K$162*($U$151+$Y$151)^0.5*Q166+$K$163*($U$151+$Y$151)^0.5*Q166^2+$K$164*($U$151+$Y$151)*Q166^2)*$W$149) -> 170.0714337 | U166: =ROUNDDOWN((S165-IF(W142,500,10))/10,0)*10 -> 140 | AA166: 2010 | AB166: 522 | AC166: 13.4 | AD166: =+AE166/45 -> 149.4444444 | AE166: 6725 | AR166: =CONCATENATE("Estimated Yield Response to K Fertilizer and Profit-Maximizing Application Rates for a Range of Initial Soil-Test K Values at Specified Yield Potential") -> Estimated Yield Response to K Fertilizer and Profit-Maximizing Application Rates for a Range of Initial Soil-Test K Values at Specified Yield Potential | BW166: Metric
A167: 166 | B167: 92.7 | C167: 0 | D167: 2002 | E167: 35 | F167: 2 | G167: 65 | H167: 0 | M167: S.D. | N167: Rho | Q167: 5 | R167: 166.0574581 | S167: 159.5541928 | T167: 170.1234915 | AA167: 2011 | AB167: 460 | AC167: 11.3 | AD167: 157.0444444 | AE167: 7067 | BU167: 0.143196822 | BV167: -0.0005546489103 | BW167: 0.001555467079 | BX167: -0.03034533498 | BY167: 0.0001194897735 | BZ167: -6.18501518e-06
A168: 167 | B168: 98.3 | C168: 30 | D168: 2002 | E168: 35 | F168: 13 | G168: 65 | H168: 0 | Q168: 7 | R168: 166.2226339 | S168: 159.937521 | T168: 170.1580183 | AA168: 2012 | AB168: 583.8 | AC168: 13.4 | AD168: 165.8444444 | AE168: 7463 | BU168: -0.0005546489103 | BV168: 2.665619199e-06 | BW168: -5.708494017e-06 | BX168: 0.0001142535768 | BY168: -5.456904227e-07 | BZ168: 2.707877012e-08
A169: 168 | B169: 96.6 | C169: 60 | D169: 2002 | E169: 35 | F169: 28 | G169: 65 | H169: 0 | J169: Period random | M169: 1.560918191 | N169: 0.1360718419 | Q169: 10 | R169: 166.4664561 | S169: 160.501676 | T169: 170.2095409 | AA169: 2013 | AB169: 596 | AC169: 14.3 | AD169: 170.9777778 | AE169: 7694 | BU169: 0.001555467079 | BV169: -5.708494017e-06 | BW169: 1.843004847e-05 | BX169: -0.0003471566465 | BY169: 1.321965641e-06 | BZ169: -7.170388624e-08
A170: 169 | B170: 95.5 | C170: 90 | D170: 2002 | E170: 35 | F170: 45 | G170: 65 | H170: 0 | J170: Idiosyncratic random | M170: 3.933098517 | N170: 0.8639281581 | Q170: 15 | R170: 166.8623158 | S170: 161.4130345 | T170: 170.2946985 | AA170: 2014 | AB170: 475 | AC170: 15.2 | AD170: 168.3555556 | AE170: 7576 | BU170: -0.03034533498 | BV170: 0.0001142535768 | BW170: -0.0003471566465 | BX170: 0.006632186364 | BY170: -2.566847786e-05 | BZ170: 1.365595349e-06
A171: 170 | B171: 100 | C171: 120 | D171: 2002 | E171: 35 | F171: 58 | G171: 65 | H171: 0 | Q171: 30 | R171: 167.971065 | S171: 163.9303626 | T171: 170.5448199 | AA171: 2015 | AB171: 472 | AC171: 12 | AD171: 166.0444444 | AE171: 7472 | BU171: 0.0001194897735 | BV171: -5.456904227e-07 | BW171: 1.321965641e-06 | BX171: -2.566847786e-05 | BY171: 1.173041667e-07 | BZ171: -6.030378481e-09
A172: 171 | B172: 94.5 | C172: 0 | D172: 2008 | E172: 36 | F172: 1 | G172: 147 | H172: 0 | K172: Weighted Statistics | Q172: 45 | R172: 168.9615695 | S172: 166.1225693 | T172: 170.7869145 | AA172: 2016 | AB172: 425.4 | AC172: 10.9 | AD172: 160.8222222 | AE172: 7237 | BP172: 0.9305090901 | BQ172: convert lbs of K20/acre to kg K ha-1 | BU172: -6.18501518e-06 | BV172: 2.707877012e-08 | BW172: -7.170388624e-08 | BX172: 1.365595349e-06 | BY172: -6.030378481e-09 | BZ172: 3.17721039e-10
A173: 172 | B173: 100 | C173: 40 | D173: 2008 | E173: 36 | F173: 15 | G173: 147 | H173: 0 | Q173: 60 | R173: 169.8338294 | S173: 167.9896545 | T173: 171.0209822 | AA173: 2017 | AB173: =16.97*20 -> 339.4 | AC173: 9.39 | AD173: 166.8222222 | AE173: 7507 | BJ173: Actual RelYld Obs Converted to Yield | BN173: Min Yield
A174: 173 | B174: 94.1 | C174: 80 | D174: 2008 | E174: 36 | F174: 37 | G174: 147 | H174: 0 | J174: R-squared | K174: 0.5125997896 | L174: Mean dependent var | N174: 41.75075271 | Q174: 75 | R174: 170.5878446 | S174: 169.5316182 | T174: 171.247023 | AA174: 2018 | AB174: =22.2*20 -> 444 | AC174: 11.1 | AD174: 170.9333333 | AE174: 7692 | BI174: RelYld | BJ174: Yield | BK174: Krate | BL174: Ksoil | BN174: =MIN(BN175:BN588) -> 132.3 | BP174: Mkrate
A175: 174 | B175: 93 | C175: 120 | D175: 2008 | E175: 36 | F175: 57 | G175: 147 | H175: 0 | J175: Adjusted R-squared | K175: 0.5029721311 | L175: S.D. dependent var | N175: 9.812127135 | Q175: 90 | R175: 171.2236151 | S175: 170.7484606 | T175: 171.465037 | AA175: Avg. | AB175: =AVERAGE($AB$165:$AB$174) -> 519.76 | AC175: =AVERAGE($AC$165:$AC$174) -> 12.599 | AD175: =AVERAGE($AD$165:$AD$174) -> 163.3733333 | BI175: =_xlfn.NUMBERVALUE(IF(AND($G2>=($U$151-$Y$151),$G2<=($U$151+$Y$151)),B2,"")) -> 97.1 | BJ175: =_xlfn.NUMBERVALUE(IFERROR(+BI175*$W$149,"")) -> 169.925 | BK175: =_xlfn.NUMBERVALUE(IF(AND($G2>=($U$151-$Y$151),$G2<=($U$151+$Y$151)),C2,"")) -> 0 | BL175: =_xlfn.NUMBERVALUE(IF(AND($G2>=($U$151-$Y$151),$G2<=($U$151+$Y$151)),G2,"")) -> 104 | BN175: =IF(BJ175=0,999,BJ175) -> 169.925 | BP175: =+BK175*$BP$172 -> 0
A176: 175 | B176: 95 | C176: 160 | D176: 2008 | E176: 36 | F176: 71 | G176: 147 | H176: 0 | J176: S.E. of regression | K176: 3.938924371 | L176: Sum squared resid | N176: 6283.625706 | Q176: 105 | R176: 171.7411409 | S176: 171.6401815 | T176: 171.675024 | AA176: Min. | AB176: =MIN($AB$165:$AB$174) -> 339.4 | AC176: =MIN($AC$165:$AC$174) -> 9.39 | AD176: =MIN($AD$165:$AD$174) -> 149.4444444 | BI176: =_xlfn.NUMBERVALUE(IF(AND($G3>=($U$151-$Y$151),$G3<=($U$151+$Y$151)),B3,"")) -> 100 | BJ176: =_xlfn.NUMBERVALUE(IFERROR(+BI176*$W$149,"")) -> 175 | BK176: =_xlfn.NUMBERVALUE(IF(AND($G3>=($U$151-$Y$151),$G3<=($U$151+$Y$151)),C3,"")) -> 40 | BL176: =_xlfn.NUMBERVALUE(IF(AND($G3>=($U$151-$Y$151),$G3<=($U$151+$Y$151)),G3,"")) -> 104 | BN176: =IF(BJ176=0,999,BJ176) -> 175 | BP176: =+BK176*$BP$172 -> 37.2203636
A177: 176 | B177: 81.6 | C177: 0 | D177: 2008 | E177: 38 | F177: 2 | G177: 104 | H177: 0 | J177: F-statistic | K177: 53.24241515 | L177: Durbin-Watson stat | N177: 2.161163646 | Q177: 120 | R177: 172.140422 | S177: 172.206781 | T177: 171.8769842 | AA177: Max. | AB177: =MAX($AB$165:$AB$174) -> 880 | AC177: =MAX($AC$165:$AC$174) -> 15.2 | AD177: =MAX($AD$165:$AD$174) -> 170.9777778 | BI177: 99.5 | BJ177: 174.125 | BK177: 80 | BL177: 104 | BN177: 174.125 | BP177: 74.4407272
A178: 177 | B178: 95.3 | C178: 60 | D178: 2008 | E178: 38 | F178: 27 | G178: 104 | H178: 0 | J178: Prob(F-statistic) | K178: 1.219584143e-58 | Q178: 135 | R178: 172.4214584 | S178: 172.448259 | T178: 172.0709174 | BI178: 99.5 | BJ178: 174.125 | BK178: 120 | BL178: 104 | BN178: 174.125 | BP178: 111.6610908
A179: 178 | B179: 100 | C179: 120 | D179: 2008 | E179: 38 | F179: 58 | G179: 104 | H179: 0 | Q179: 150 | R179: 172.5842502 | S179: 172.3646156 | T179: 172.2568238 | BI179: 98.6 | BJ179: 172.55 | BK179: 160 | BL179: 104 | BN179: 172.55 | BP179: 148.8814544
A180: 179 | B180: 94.3 | C180: 0 | D180: 2008 | E180: 39 | F180: 3 | G180: 103 | H180: 0 | K180: Unweighted Statistics | Q180: 165 | R180: 172.6287973 | S180: 171.9558508 | T180: 172.4347033 | BI180: 0 | BJ180: 0 | BK180: 0 | BL180: 0 | BN180: 999 | BP180: 0
A181: 180 | B181: 99.5 | C181: 60 | D181: 2008 | E181: 39 | F181: 28 | G181: 103 | H181: 0 | Q181: 180 | R181: 172.5550997 | S181: 171.2219645 | T181: 172.604556 | BI181: 0 | BJ181: 0 | BK181: 0 | BL181: 0 | BN181: 999 | BP181: 0
A182: 181 | B182: 100 | C182: 120 | D182: 2008 | E182: 39 | F182: 59 | G182: 103 | H182: 0 | J182: R-squared | K182: 0.4751019154 | L182: Mean dependent var | N182: 95.85821256 | R182: 165.6353219 | S182: 158.570585 | T182: 170.0365501 | BI182: 0 | BJ182: 0 | BK182: 0 | BL182: 0 | BN182: 999 | BP182: 0
A183: 182 | B183: 91.4 | C183: 0 | D183: 2008 | E183: 40 | F183: 4 | G183: 78 | H183: 0 | J183: Sum squared resid | K183: 7193.08109 | L183: Durbin-Watson stat | N183: 2.036288816 | R183: 165.6353219 | S183: 158.570585 | T183: 170.0365501 | BI183: 0 | BJ183: 0 | BK183: 0 | BL183: 0 | BN183: 999 | BP183: 0
A184: 183 | B184: 96.1 | C184: 60 | D184: 2008 | E184: 40 | F184: 29 | G184: 78 | H184: 0 | Q184: Disclaimer: This software is provided ‘as is’ and without warranties as to performance or merchantability. Further, statements may have been made to you about this software, and they do not constitute warranties and shall not be relied upon by the user to use the program or act on its results. This program is provided without any expressed or implied warranties whatsoever. Because the diversity of conditions and hardware under which this program may be used, no warranty of merchantability or warranty of fitness for a particular purpose is offered. The user is advised to test the program thoroughly before relying on it. The user assumes the entire risk of using the program. The authors will not be liable for any claim or damage brought against the user by any third party, nor will the authors be liable for any consequential, indirect, or special damages suffered by the user as a result of the software. Results pertain to silt loam soils common in major rice producing regions of the humid mid-Southern U.S. | BI184: 0 | BJ184: 0 | BK184: 0 | BL184: 0 | BN184: 999 | BP184: 0
A185: 184 | B185: 100 | C185: 120 | D185: 2008 | E185: 40 | F185: 60 | G185: 78 | H185: 0 | BI185: 92.5 | BJ185: 161.875 | BK185: 0 | BL185: 87 | BN185: 161.875 | BP185: 0
A186: 185 | B186: 83.7 | C186: 0 | D186: 2008 | E186: 41 | F186: 5 | G186: 56 | H186: 0 | BI186: 95.3 | BJ186: 166.775 | BK186: 40 | BL186: 87 | BN186: 166.775 | BP186: 37.2203636
A187: 186 | B187: 92.3 | C187: 60 | D187: 2008 | E187: 41 | F187: 30 | G187: 56 | H187: 0 | R187: Potash fertilizer needed @ RY = 100 if possible or K max or zero if yield max at negative K: | T187: =IF((IF(W142,K159,O159)+IF(W142,K161,O161)*($U$151+$Y$151)+IF(W142,K162,O162)*($U$151+$Y$151)^0.5)/(-2*(IF(W142,K160,O160)+IF(W142,K163,O163)*($U$151+$Y$151)^0.5+IF(W142,K164,O164)*($U$151+$Y$151)))>$Y$152,$Y$152,(IF(W142,K159,O159)+IF(W142,K161,O161)*($U$151+$Y$151)+IF(W142,K162,O162)*($U$151+$Y$151)^0.5)/(-2*(IF(W142,K160,O160)+IF(W142,K163,O163)*($U$151+$Y$151)^0.5+IF(W142,K164,O164)*($U$151+$Y$151)))) -> 180 | U187: =IF((IF(W142,K159,O159)+IF(W142,K161,O161)*($U$151)+IF(W142,K162,O162)*($U$151)^0.5)/(-2*(IF(W142,K160,O160)+IF(W142,K163,O163)*($U$151)^0.5+IF(W142,K164,O164)*($U$151)))>$Y$152,$Y$152,(IF(W142,K159,O159)+IF(W142,K161,O161)*($U$151)+IF(W142,K162,O162)*($U$151)^0.5)/(-2*(IF(W142,K160,O160)+IF(W142,K163,O163)*($U$151)^0.5+IF(W142,K164,O164)*($U$151)))) -> 175.3352516 | V187: =IF((IF(W142,K159,O159)+IF(W142,K161,O161)*($U$151-$Y$151)+IF(W142,K162,O162)*($U$151-$Y$151)^0.5)/(-2*(IF(W142,K160,O160)+IF(W142,K163,O163)*($U$151-$Y$151)^0.5+IF(W142,K164,O164)*($U$151-$Y$151)))>$Y$152,$Y$152,(IF(W142,K159,O159)+IF(W142,K161,O161)*($U$151-$Y$151)+IF(W142,K162,O162)*($U$151-$Y$151)^0.5)/(-2*(IF(W142,K160,O160)+IF(W142,K163,O163)*($U$151-$Y$151)^0.5+IF(W142,K164,O164)*($U$151-$Y$151)))) -> 148.994759 | BI187: 96.7 | BJ187: 169.225 | BK187: 80 | BL187: 87 | BN187: 169.225 | BP187: 74.4407272
A188: 187 | B188: 100 | C188: 120 | D188: 2008 | E188: 41 | F188: 61 | G188: 56 | H188: 0 | T188: =IF(T187<0,0,IFERROR((SQRT(T191^2+4*T192*T190)-T191)/(2*T192),$Y$152)) -> 180 | U188: =IF(U187<0,0,IFERROR((SQRT(U191^2+4*U192*U190)-U191)/(2*U192),$Y$152)) -> 180 | V188: =IF(V187<0,0,IFERROR((SQRT(V191^2+4*V192*V190)-V191)/(2*V192),$Y$152)) -> 180 | BI188: 98.1 | BJ188: 171.675 | BK188: 120 | BL188: 87 | BN188: 171.675 | BP188: 111.6610908
A189: 188 | B189: 98.1 | C189: 0 | D189: 2009 | E189: 42 | F189: 1 | G189: 146 | H189: 0 | BI189: 100 | BJ189: 175 | BK189: 160 | BL189: 87 | BN189: 175 | BP189: 148.8814544
A190: 189 | B190: 100 | C190: 45 | D190: 2009 | E190: 42 | F190: 23 | G190: 146 | H190: 0 | S190: c | T190: =100-$K$156-$K$157*(U151+Y151)-$K$158*(U151+Y151)^0.5 -> 2.836257067 | U190: =100-$K$156-$K$157*U151-$K$158*U151^0.5 -> 5.351244648 | V190: =100-$K$156-$K$157*(U151-Y151)-$K$158*(U151-Y151)^0.5 -> 9.388237126 | BI190: 0 | BJ190: 0 | BK190: 0 | BL190: 0 | BN190: 999 | BP190: 0
A191: 190 | B191: 98.6 | C191: 90 | D191: 2009 | E191: 42 | F191: 45 | G191: 146 | H191: 0 | S191: a | T191: =IF(W142,K159,O159)+IF(W142,K161,O161)*(U151+Y151)+IF(W142,K162,O162)*(U151+Y151)^0.5 -> 0.009293102014 | U191: =IF(W142,K159,O159)+IF(W142,K161,O161)*(U151)+IF(W142,K162,O162)*(U151)^0.5 -> 0.0455902043 | V191: =IF(W142,K159,O159)+IF(W142,K161,O161)*(U151-Y151)+IF(W142,K162,O162)*(U151-Y151)^0.5 -> 0.1065214984 | BI191: 0 | BJ191: 0 | BK191: 0 | BL191: 0 | BN191: 999 | BP191: 0
A192: 191 | B192: 68.4 | C192: 0 | D192: 2009 | E192: 43 | F192: 2 | G192: 62 | H192: 0 | S192: b | T192: =+IF(W142,K160,O160)+IF(W142,K163,O163)*(U151+Y151)^0.5+IF(W142,K164,O164)*(U151+Y151) -> -8.825466122e-06 | U192: =+IF(W142,K160,O160)+IF(W142,K163,O163)*(U151)^0.5+IF(W142,K164,O164)*(U151) -> -0.0001300086659 | V192: =+IF(W142,K160,O160)+IF(W142,K163,O163)*(U151-Y151)^0.5+IF(W142,K164,O164)*(U151-Y151) -> -0.0003574672664 | BI192: 0 | BJ192: 0 | BK192: 0 | BL192: 0 | BN192: 999 | BP192: 0
A193: 192 | B193: 90.4 | C193: 60 | D193: 2009 | E193: 43 | F193: 27 | G193: 62 | H193: 0 | BI193: 0 | BJ193: 0 | BK193: 0 | BL193: 0 | BN193: 999 | BP193: 0
A194: 193 | B194: 100 | C194: 120 | D194: 2009 | E194: 43 | F194: 57 | G194: 62 | H194: 0 | BI194: 0 | BJ194: 0 | BK194: 0 | BL194: 0 | BN194: 999 | BP194: 0
A195: 194 | B195: 63.4 | C195: 0 | D195: 2009 | E195: 44 | F195: 3 | G195: 66 | H195: 0 | BI195: 96.6 | BJ195: 169.05 | BK195: 0 | BL195: 76 | BN195: 169.05 | BP195: 0
A196: 195 | B196: 84.1 | C196: 40 | D196: 2009 | E196: 44 | F196: 15 | G196: 79 | H196: 0 | BI196: 94.1 | BJ196: 164.675 | BK196: 40 | BL196: 76 | BN196: 164.675 | BP196: 37.2203636
A197: 196 | B197: 93.8 | C197: 80 | D197: 2009 | E197: 44 | F197: 37 | G197: 86 | H197: 0 | BI197: 100 | BJ197: 175 | BK197: 80 | BL197: 76 | BN197: 175 | BP197: 74.4407272
A198: 197 | B198: 92.4 | C198: 120 | D198: 2009 | E198: 44 | F198: 58 | G198: 109 | H198: 0 | BI198: 97.5 | BJ198: 170.625 | BK198: 120 | BL198: 76 | BN198: 170.625 | BP198: 111.6610908
A199: 198 | B199: 100 | C199: 160 | D199: 2009 | E199: 44 | F199: 71 | G199: 116 | H199: 0 | BI199: 98.5 | BJ199: 172.375 | BK199: 160 | BL199: 76 | BN199: 172.375 | BP199: 148.8814544
A200: 199 | B200: 93.9 | C200: 0 | D200: 2009 | E200: 45 | F200: 4 | G200: 96 | H200: 0 | BI200: 0 | BJ200: 0 | BK200: 0 | BL200: 0 | BN200: 999 | BP200: 0
... 388 more rows
